Body Name,Body,Organisational unit,Service division,Expenditure category,Date,Transacton number,Net amount,Supplier,Narrative
Tendring DC,http://statistics.data.gov.uk/id/local-authority-district/22UN,Corporate Services,1100 - Corporate Director (Corporate Services) and Admin Service Unit,1710 - Training - Central Department Budget,11/02/2014,7011439-1,238.5,2113636 - Act Now Training,INFO SHARING ICO CODE
Tendring DC,http://statistics.data.gov.uk/id/local-authority-district/22UN,Corporate Services,1100 - Corporate Director (Corporate Services) and Admin Service Unit,1710 - Training - Central Department Budget,11/02/2014,7011440-1,238.5,2113636 - Act Now Training,INFO SHARING ICO CODE
Tendring DC,http://statistics.data.gov.uk/id/local-authority-district/22UN,Corporate Services,1950 - Transport,3062 - Running Costs - Petrol,18/02/2014,7011512-1,179.17,2101825 - Allstar Business Solutions Ltd,COURIER FUEL
Tendring DC,http://statistics.data.gov.uk/id/local-authority-district/22UN,Corporate Services,1320 - Print Unit Service Unit,4080 - Materials & Consumables,18/02/2014,2113314-1,39.85,2103017 - ALS Presentation Ltd,binders
Tendring DC,http://statistics.data.gov.uk/id/local-authority-district/22UN,Corporate Services,1320 - Print Unit Service Unit,4080 - Materials & Consumables,11/02/2014,7011363-1,89.85,2103017 - ALS Presentation Ltd,BINDERS
Tendring DC,http://statistics.data.gov.uk/id/local-authority-district/22UN,Corporate Services,1320 - Print Unit Service Unit,4302 - External Print Unit Expenses,25/02/2014,1057580-1,90,2100069 - Autoprint,ENVELOPES JOB 628
Tendring DC,http://statistics.data.gov.uk/id/local-authority-district/22UN,Corporate Services,1320 - Print Unit Service Unit,4302 - External Print Unit Expenses,11/02/2014,7011364-1,49,2100069 - Autoprint,JOB 591
Tendring DC,http://statistics.data.gov.uk/id/local-authority-district/22UN,Corporate Services,1100 - Corporate Director (Corporate Services) and Admin Service Unit,4300 - Printing & Stationery,04/02/2014,1057246-1,86.18,2100111 - Banner Business Supplies Ltd,BANNER
Tendring DC,http://statistics.data.gov.uk/id/local-authority-district/22UN,Corporate Services,1100 - Corporate Director (Corporate Services) and Admin Service Unit,4300 - Printing & Stationery,04/02/2014,2112976-1,9.77,2100111 - Banner Business Supplies Ltd,member envelopes/misc items
Tendring DC,http://statistics.data.gov.uk/id/local-authority-district/22UN,Corporate Services,6580 - Member Support Cost,4300 - Printing & Stationery,04/02/2014,2112976-2,40.84,2100111 - Banner Business Supplies Ltd,member envelopes/misc items
Tendring DC,http://statistics.data.gov.uk/id/local-authority-district/22UN,Corporate Services,6560 - Other Democratic Costs,4110 - General Provisions,11/02/2014,2113068-1,10.27,2100111 - Banner Business Supplies Ltd,misc stationery
Tendring DC,http://statistics.data.gov.uk/id/local-authority-district/22UN,Corporate Services,1100 - Corporate Director (Corporate Services) and Admin Service Unit,4300 - Printing & Stationery,11/02/2014,2113068-2,26.5,2100111 - Banner Business Supplies Ltd,misc stationery
Tendring DC,http://statistics.data.gov.uk/id/local-authority-district/22UN,Corporate Services,7100 - Community Health/Safety,4300 - Printing & Stationery,18/02/2014,2113323-1,56.37,2100111 - Banner Business Supplies Ltd,banner stationery
Tendring DC,http://statistics.data.gov.uk/id/local-authority-district/22UN,Corporate Services,1100 - Corporate Director (Corporate Services) and Admin Service Unit,4300 - Printing & Stationery,18/02/2014,7011522-1,25.28,2100111 - Banner Business Supplies Ltd,BANNER
Tendring DC,http://statistics.data.gov.uk/id/local-authority-district/22UN,Corporate Services,1100 - Corporate Director (Corporate Services) and Admin Service Unit,4300 - Printing & Stationery,18/02/2014,7011523-1,25.65,2100111 - Banner Business Supplies Ltd,BANNER
Tendring DC,http://statistics.data.gov.uk/id/local-authority-district/22UN,Corporate Services,1100 - Corporate Director (Corporate Services) and Admin Service Unit,4300 - Printing & Stationery,18/02/2014,7011524-1,32.28,2100111 - Banner Business Supplies Ltd,PART BANNER PAPER
Tendring DC,http://statistics.data.gov.uk/id/local-authority-district/22UN,Corporate Services,1100 - Corporate Director (Corporate Services) and Admin Service Unit,4300 - Printing & Stationery,18/02/2014,7011525-1,24.03,2100111 - Banner Business Supplies Ltd,PART BANNER STATIONERY
Tendring DC,http://statistics.data.gov.uk/id/local-authority-district/22UN,Corporate Services,1100 - Corporate Director (Corporate Services) and Admin Service Unit,4300 - Printing & Stationery,18/02/2014,7011527-1,2.22,2100111 - Banner Business Supplies Ltd,PART BANNER ORDER STATIONERY
Tendring DC,http://statistics.data.gov.uk/id/local-authority-district/22UN,Corporate Services,1320 - Print Unit Service Unit,4080 - Materials & Consumables,25/02/2014,7011684-1,143.99,2100111 - Banner Business Supplies Ltd,STATIONERY
Tendring DC,http://statistics.data.gov.uk/id/local-authority-district/22UN,Corporate Services,7100 - Community Health/Safety,4300 - Printing & Stationery,25/02/2014,7011825-1,17.86,2100111 - Banner Business Supplies Ltd,BANNER - STATIONERY
Tendring DC,http://statistics.data.gov.uk/id/local-authority-district/22UN,Corporate Services,9900 - General Fund Balance Sheet,B382 - Rechargeable Works - Other,18/02/2014,1057452-1,145,REDACTED PERSONAL DATA,REDACTED PERSONAL DATA
Tendring DC,http://statistics.data.gov.uk/id/local-authority-district/22UN,Corporate Services,9900 - General Fund Balance Sheet,B382 - Rechargeable Works - Other,18/02/2014,1057452-2,-145,REDACTED PERSONAL DATA,REDACTED PERSONAL DATA
Tendring DC,http://statistics.data.gov.uk/id/local-authority-district/22UN,Corporate Services,1200 - Payroll & Payments,4753 - Computer - Application Software,18/02/2014,2113321-1,692.28,2108648 - Bond International Software (UK) Ltd,bond teamspirit
Tendring DC,http://statistics.data.gov.uk/id/local-authority-district/22UN,Corporate Services,1200 - Payroll & Payments,4753 - Computer - Application Software,18/02/2014,2113322-1,1383.03,2108648 - Bond International Software (UK) Ltd,bond team spirit
Tendring DC,http://statistics.data.gov.uk/id/local-authority-district/22UN,Corporate Services,1180 - Benefit Fraud Investigation Service Unit,4880 - Subscriptions Paid,11/02/2014,7011442-1,68.5,2102227 - Brighton & Hove City Council,NAFN CHARGES
Tendring DC,http://statistics.data.gov.uk/id/local-authority-district/22UN,Corporate Services,1180 - Benefit Fraud Investigation Service Unit,4880 - Subscriptions Paid,11/02/2014,7011442-2,377.24,2102227 - Brighton & Hove City Council,NAFN CHARGES
Tendring DC,http://statistics.data.gov.uk/id/local-authority-district/22UN,Corporate Services,1320 - Print Unit Service Unit,4080 - Materials & Consumables,04/02/2014,7011285-1,21,2100291 - Canon (UK) Ltd,PAPER
Tendring DC,http://statistics.data.gov.uk/id/local-authority-district/22UN,Corporate Services,1320 - Print Unit Service Unit,4080 - Materials & Consumables,04/02/2014,7011286-1,313.9,2100291 - Canon (UK) Ltd,PAPER
Tendring DC,http://statistics.data.gov.uk/id/local-authority-district/22UN,Corporate Services,9900 - General Fund Balance Sheet,B879 - Charges made by Merchant Acquirer,06/02/2014,7800120-1,28.44,2100202 - Capita Business Services Ltd,CAPITA - January 2014
Tendring DC,http://statistics.data.gov.uk/id/local-authority-district/22UN,Corporate Services,9900 - General Fund Balance Sheet,B879 - Charges made by Merchant Acquirer,06/02/2014,7800120-3,65.15,2100202 - Capita Business Services Ltd,CAPITA - January 2014
Tendring DC,http://statistics.data.gov.uk/id/local-authority-district/22UN,Corporate Services,9900 - General Fund Balance Sheet,B879 - Charges made by Merchant Acquirer,06/02/2014,7800120-4,84.96,2100202 - Capita Business Services Ltd,CAPITA - January 2014
Tendring DC,http://statistics.data.gov.uk/id/local-authority-district/22UN,Corporate Services,9900 - General Fund Balance Sheet,B879 - Charges made by Merchant Acquirer,06/02/2014,7800120-5,237.61,2100202 - Capita Business Services Ltd,CAPITA - January 2014
Tendring DC,http://statistics.data.gov.uk/id/local-authority-district/22UN,Corporate Services,9900 - General Fund Balance Sheet,B879 - Charges made by Merchant Acquirer,06/02/2014,7800120-6,457.38,2100202 - Capita Business Services Ltd,CAPITA - January 2014
Tendring DC,http://statistics.data.gov.uk/id/local-authority-district/22UN,Corporate Services,9900 - General Fund Balance Sheet,B879 - Charges made by Merchant Acquirer,06/02/2014,7800120-7,429.65,2100202 - Capita Business Services Ltd,CAPITA - January 2014
Tendring DC,http://statistics.data.gov.uk/id/local-authority-district/22UN,Corporate Services,9900 - General Fund Balance Sheet,B879 - Charges made by Merchant Acquirer,06/02/2014,7800120-8,355.32,2100202 - Capita Business Services Ltd,CAPITA - January 2014
Tendring DC,http://statistics.data.gov.uk/id/local-authority-district/22UN,Corporate Services,9900 - General Fund Balance Sheet,B879 - Charges made by Merchant Acquirer,06/02/2014,7800120-9,305.26,2100202 - Capita Business Services Ltd,CAPITA - January 2014
Tendring DC,http://statistics.data.gov.uk/id/local-authority-district/22UN,Corporate Services,1760 - IT Direct Service Costs,4753 - Computer - Application Software,25/02/2014,7011716-1,792.88,2110989 - Certero Ltd,POWER STUDIO 14-15
Tendring DC,http://statistics.data.gov.uk/id/local-authority-district/22UN,Corporate Services,1925 - Central Purchasing,4753 - Computer - Application Software,04/02/2014,7011278-1,468.75,2101847 - Chelmsford City Council,PAE BIP SUBSCRIPTION 14
Tendring DC,http://statistics.data.gov.uk/id/local-authority-district/22UN,Corporate Services,1320 - Print Unit Service Unit,4302 - External Print Unit Expenses,18/02/2014,2113315-1,248,2113356 - Classique Design & Print Limted,job 556
Tendring DC,http://statistics.data.gov.uk/id/local-authority-district/22UN,Corporate Services,6640 - Treasury Management,5192 - Brokerage,03/02/2014,7800127-0,203,2100269 - Co operative Bank plc,FD Invoice -  Jan 2014
Tendring DC,http://statistics.data.gov.uk/id/local-authority-district/22UN,Corporate Services,6620 - Corporate Management - General,5190 - Bank Commission Charges,03/02/2014,7800127-2,241.6,2100269 - Co operative Bank plc,FD Invoice -  Jan 2014
Tendring DC,http://statistics.data.gov.uk/id/local-authority-district/22UN,Corporate Services,"1580 - Benefits, Revenues and Customer Contact SU",5186 - Paypoint/post office charges,03/02/2014,7800127-4,1305.44,2100269 - Co operative Bank plc,FD Invoice -  Jan 2014
Tendring DC,http://statistics.data.gov.uk/id/local-authority-district/22UN,Corporate Services,"1580 - Benefits, Revenues and Customer Contact SU",5186 - Paypoint/post office charges,03/02/2014,7800127-6,2502.92,2100269 - Co operative Bank plc,FD Invoice -  Jan 2014
Tendring DC,http://statistics.data.gov.uk/id/local-authority-district/22UN,Corporate Services,"1580 - Benefits, Revenues and Customer Contact SU",4469 - Other Non - Legal Professional Services,01/02/2014,7800138-0,4,2105795 - Companies House,CHD Subscription Advance Feb
Tendring DC,http://statistics.data.gov.uk/id/local-authority-district/22UN,Corporate Services,6620 - Corporate Management - General,5190 - Bank Commission Charges,03/02/2014,7800134-1,2,2100304 - CO-OP Bank,Card Fee RB Jan 14
Tendring DC,http://statistics.data.gov.uk/id/local-authority-district/22UN,Corporate Services,5240 - HRA - Managing Tenancies,4312 - Tenancy Stationery,03/02/2014,7800135-1,23.34,2100304 - CO-OP Bank,Credit Card Jan 14 PP
Tendring DC,http://statistics.data.gov.uk/id/local-authority-district/22UN,Corporate Services,6160 - Princes Theatre,4300 - Printing & Stationery,03/02/2014,7800135-3,10.44,2100304 - CO-OP Bank,Credit Card Jan 14 PP
Tendring DC,http://statistics.data.gov.uk/id/local-authority-district/22UN,Corporate Services,5360 - HRA - Sheltered Units,4300 - Printing & Stationery,03/02/2014,7800135-5,25.5,2100304 - CO-OP Bank,Credit Card Jan 14 PP
Tendring DC,http://statistics.data.gov.uk/id/local-authority-district/22UN,Corporate Services,6160 - Princes Theatre,4300 - Printing & Stationery,03/02/2014,7800135-6,30.6,2100304 - CO-OP Bank,Credit Card Jan 14 PP
Tendring DC,http://statistics.data.gov.uk/id/local-authority-district/22UN,Corporate Services,6620 - Corporate Management - General,5190 - Bank Commission Charges,03/02/2014,7800135-7,2,2100304 - CO-OP Bank,Credit Card Jan 14 PP
Tendring DC,http://statistics.data.gov.uk/id/local-authority-district/22UN,Corporate Services,5260 - HRA - Rent Collection And Accounting,4461 - Court Fees,03/02/2014,7800135-9,1120,2100304 - CO-OP Bank,Credit Card Jan 14 PP
Tendring DC,http://statistics.data.gov.uk/id/local-authority-district/22UN,Corporate Services,"1580 - Benefits, Revenues and Customer Contact SU",4461 - Court Fees,03/02/2014,7800136-1,3359,2100304 - CO-OP Bank,"HM Court, Staples, Travel Jan 14 JB"
Tendring DC,http://statistics.data.gov.uk/id/local-authority-district/22UN,Corporate Services,1880 - Office Accommodation Expenses,2100 - Building Repairs,03/02/2014,7800136-3,20.83,2100304 - CO-OP Bank,"HM Court, Staples, Travel Jan 14 JB"
Tendring DC,http://statistics.data.gov.uk/id/local-authority-district/22UN,Corporate Services,"1580 - Benefits, Revenues and Customer Contact SU",3300 - Public Transport - Officers,03/02/2014,7800136-5,114.6,2100304 - CO-OP Bank,"HM Court, Staples, Travel Jan 14 JB"
Tendring DC,http://statistics.data.gov.uk/id/local-authority-district/22UN,Corporate Services,7100 - Community Health/Safety,4900 - Grants,18/02/2014,2113324-1,175,2103062 - Dods Parliamentary Communications Ltd,westminster briefing
Tendring DC,http://statistics.data.gov.uk/id/local-authority-district/22UN,Corporate Services,7300 - Licencing,5500 - Miscellaneous Expenses,18/02/2014,2113324-2,175,2103062 - Dods Parliamentary Communications Ltd,westminster briefing
Tendring DC,http://statistics.data.gov.uk/id/local-authority-district/22UN,Corporate Services,7100 - Community Health/Safety,1700 - Training - Courses,25/02/2014,7011819-1,100,2100404 - Easy Tigernet,WEBSITE TRAINING
Tendring DC,http://statistics.data.gov.uk/id/local-authority-district/22UN,Corporate Services,1432 - TDC Website,4500 - Consultancy Fees,25/02/2014,1057514-1,5594.11,2110956 - Ebase Technology Ltd,EBASE
Tendring DC,http://statistics.data.gov.uk/id/local-authority-district/22UN,Corporate Services,6620 - Corporate Management - General,5180 - External Audit Fees,18/02/2014,2113272-1,24119,2112514 - Ernst & Young,instalment 3
Tendring DC,http://statistics.data.gov.uk/id/local-authority-district/22UN,Corporate Services,8660 - Fit for Purpose,5500 - Miscellaneous Expenses,04/02/2014,2112987-1,8234.78,REDACTED PERSONAL DATA,REDACTED PERSONAL DATA
Tendring DC,http://statistics.data.gov.uk/id/local-authority-district/22UN,Corporate Services,8971 - MIRS - Contributions Payable to the Pension Scheme,1816 - Superannuation Deficiency Contribution,04/02/2014,7011346-3,137750,2100419 - Essex County Council,Pension 00013
Tendring DC,http://statistics.data.gov.uk/id/local-authority-district/22UN,Corporate Services,8971 - MIRS - Contributions Payable to the Pension Scheme,1810 - Superannuation - Financial Strain/Added Years,04/02/2014,7011346-4,17199.04,2100419 - Essex County Council,Pension 00013
Tendring DC,http://statistics.data.gov.uk/id/local-authority-district/22UN,Corporate Services,8971 - MIRS - Contributions Payable to the Pension Scheme,1822 - Superannuation - Port Health Pensions etc.,04/02/2014,7011347-2,800.05,2100419 - Essex County Council,Port Health Authority
Tendring DC,http://statistics.data.gov.uk/id/local-authority-district/22UN,Corporate Services,9880 - Collection Fund - Council Tax,R100 - Precept - ECC,17/02/2014,7800155-1,4616466,2100409 - Essex County Council,Essex CC Precept 17/02/2014
Tendring DC,http://statistics.data.gov.uk/id/local-authority-district/22UN,Corporate Services,9880 - Collection Fund - Council Tax,R110 - Council Tax Balance - ECC,17/02/2014,7800155-3,92582,2100409 - Essex County Council,Essex CC Precept 17/02/2014
Tendring DC,http://statistics.data.gov.uk/id/local-authority-district/22UN,Corporate Services,9890 - Collection Fund - NNDR,R127 - NNDR - Essex County Retention,17/02/2014,7800155-5,217762,2100409 - Essex County Council,Essex CC Precept 17/02/2014
Tendring DC,http://statistics.data.gov.uk/id/local-authority-district/22UN,Corporate Services,6683 - Technical Discount Scheme,8109 - Technical  Discount Scheme - ECC Contribution,17/02/2014,7800155-7,-37767,2100409 - Essex County Council,Essex CC Precept 17/02/2014
Tendring DC,http://statistics.data.gov.uk/id/local-authority-district/22UN,Corporate Services,9880 - Collection Fund - Council Tax,R101 - Precept - Essex Fire,17/02/2014,7800153-1,282145,2100469 - Essex Fire Authority,Essex Fire Precept 17/02/2014
Tendring DC,http://statistics.data.gov.uk/id/local-authority-district/22UN,Corporate Services,9880 - Collection Fund - Council Tax,R111 - Council Tax Balance - Essex Fire,17/02/2014,7800153-3,5658,2100469 - Essex Fire Authority,Essex Fire Precept 17/02/2014
Tendring DC,http://statistics.data.gov.uk/id/local-authority-district/22UN,Corporate Services,9890 - Collection Fund - NNDR,R128 - NNDR - Fire Retention,17/02/2014,7800153-5,24198,2100469 - Essex Fire Authority,Essex Fire Precept 17/02/2014
Tendring DC,http://statistics.data.gov.uk/id/local-authority-district/22UN,Corporate Services,6683 - Technical Discount Scheme,8109 - Technical  Discount Scheme - ECC Contribution,17/02/2014,7800153-7,-2108,2100469 - Essex Fire Authority,Essex Fire Precept 17/02/2014
Tendring DC,http://statistics.data.gov.uk/id/local-authority-district/22UN,Corporate Services,9880 - Collection Fund - Council Tax,R102 - Precept - Essex Police,17/02/2014,7800154-0,601005,2100500 - Essex Police Authority,Essex Police Precept 17/02/2014
Tendring DC,http://statistics.data.gov.uk/id/local-authority-district/22UN,Corporate Services,9880 - Collection Fund - Council Tax,R112 - Council Tax Balance - Essex Police,17/02/2014,7800154-2,11647,2100500 - Essex Police Authority,Essex Police Precept 17/02/2014
Tendring DC,http://statistics.data.gov.uk/id/local-authority-district/22UN,Corporate Services,6683 - Technical Discount Scheme,8109 - Technical  Discount Scheme - ECC Contribution,17/02/2014,7800154-4,-4489,2100500 - Essex Police Authority,Essex Police Precept 17/02/2014
Tendring DC,http://statistics.data.gov.uk/id/local-authority-district/22UN,Corporate Services,1660 - Other Apportionable Overheads,4609 - Child Care Vouchers Management Fee,04/02/2014,1056999-2,-5.5,REDACTED PERSONAL DATA,REDACTED PERSONAL DATA
Tendring DC,http://statistics.data.gov.uk/id/local-authority-district/22UN,Corporate Services,1660 - Other Apportionable Overheads,4609 - Child Care Vouchers Management Fee,04/02/2014,2112982-2,46.88,REDACTED PERSONAL DATA,REDACTED PERSONAL DATA
Tendring DC,http://statistics.data.gov.uk/id/local-authority-district/22UN,Corporate Services,7025 - CDRP Support,4900 - Grants,11/02/2014,7011437-1,8164.25,2113626 - Gaynor Mears Consultancy,TCSP - DHR REVIEW
Tendring DC,http://statistics.data.gov.uk/id/local-authority-district/22UN,Corporate Services,1100 - Corporate Director (Corporate Services) and Admin Service Unit,1710 - Training - Central Department Budget,11/02/2014,7011368-1,179,2101694 - GovNet Communications,FRAUD & ERROR
Tendring DC,http://statistics.data.gov.uk/id/local-authority-district/22UN,Corporate Services,1300 - Legal Services Service Unit,4461 - Court Fees,04/02/2014,1057370-1,40,2100636 - HM Land Registry,FEES FOR REGISTRATION OF LEASE
Tendring DC,http://statistics.data.gov.uk/id/local-authority-district/22UN,Corporate Services,5220 - HRA - Policy & Management,5930 - Business Planning Expenses,18/02/2014,1057420-1,40,2108233 - HM Land Registry,LAND REGISTRY FEES-REGISTRATION OF DEED OF VARIATION
Tendring DC,http://statistics.data.gov.uk/id/local-authority-district/22UN,Corporate Services,9900 - General Fund Balance Sheet,B150 - Car Loans - Principal - Casual/HMRC Users,04/02/2014,2112990-1,4300,REDACTED PERSONAL DATA,REDACTED PERSONAL DATA
Tendring DC,http://statistics.data.gov.uk/id/local-authority-district/22UN,Corporate Services,6640 - Treasury Management,5192 - Brokerage,24/02/2014,7800144-2,23.07,2107040 - King & Shaxson Limited,TB thru K&S 1 month
Tendring DC,http://statistics.data.gov.uk/id/local-authority-district/22UN,Corporate Services,8915 - Interest & Investment Income,9600 - External Investment Interest Receivable,24/02/2014,7800144-4,-253.15,2107040 - King & Shaxson Limited,TB thru K&S 1 month
Tendring DC,http://statistics.data.gov.uk/id/local-authority-district/22UN,Corporate Services,6640 - Treasury Management,5192 - Brokerage,17/02/2014,7800152-2,34.59,2107040 - King & Shaxson Limited,Treasury Bill @ 0.28% 17/02/2014
Tendring DC,http://statistics.data.gov.uk/id/local-authority-district/22UN,Corporate Services,8915 - Interest & Investment Income,9600 - External Investment Interest Receivable,17/02/2014,7800152-4,-356.71,2107040 - King & Shaxson Limited,Treasury Bill @ 0.28% 17/02/2014
Tendring DC,http://statistics.data.gov.uk/id/local-authority-district/22UN,Corporate Services,1320 - Print Unit Service Unit,4080 - Materials & Consumables,18/02/2014,2113311-1,181.9,2100864 - Leston Stationery Ltd,paper
Tendring DC,http://statistics.data.gov.uk/id/local-authority-district/22UN,Corporate Services,1320 - Print Unit Service Unit,4080 - Materials & Consumables,18/02/2014,2113312-1,59.8,2100864 - Leston Stationery Ltd,paper
Tendring DC,http://statistics.data.gov.uk/id/local-authority-district/22UN,Corporate Services,1320 - Print Unit Service Unit,4080 - Materials & Consumables,18/02/2014,2113313-1,14.95,2100864 - Leston Stationery Ltd,paper
Tendring DC,http://statistics.data.gov.uk/id/local-authority-district/22UN,Corporate Services,1320 - Print Unit Service Unit,4080 - Materials & Consumables,11/02/2014,7011365-1,23.85,2100864 - Leston Stationery Ltd,STAMP
Tendring DC,http://statistics.data.gov.uk/id/local-authority-district/22UN,Corporate Services,1760 - IT Direct Service Costs,6320 - IT Services Agreements Payment,04/02/2014,2112988-1,51622.01,REDACTED PERSONAL DATA,REDACTED PERSONAL DATA
Tendring DC,http://statistics.data.gov.uk/id/local-authority-district/22UN,Corporate Services,1760 - IT Direct Service Costs,6325 - Additional Services,11/02/2014,7011441-1,1555.8,2108077 - Liberata Financial Services Ltd,VARIOUS
Tendring DC,http://statistics.data.gov.uk/id/local-authority-district/22UN,Corporate Services,1242 - Corporate Director (Life Opportunities),1710 - Training - Central Department Budget,11/02/2014,7011441-2,30,2108077 - Liberata Financial Services Ltd,VARIOUS
Tendring DC,http://statistics.data.gov.uk/id/local-authority-district/22UN,Corporate Services,1200 - Payroll & Payments,5500 - Miscellaneous Expenses,11/02/2014,7011441-3,60,2108077 - Liberata Financial Services Ltd,VARIOUS
Tendring DC,http://statistics.data.gov.uk/id/local-authority-district/22UN,Corporate Services,1760 - IT Direct Service Costs,6325 - Additional Services,11/02/2014,7011441-4,77.79,2108077 - Liberata Financial Services Ltd,VARIOUS
Tendring DC,http://statistics.data.gov.uk/id/local-authority-district/22UN,Corporate Services,6640 - Treasury Management,4753 - Computer - Application Software,18/02/2014,2113271-1,1000,2102373 - Logotech Systems,dctm annual maintenance
Tendring DC,http://statistics.data.gov.uk/id/local-authority-district/22UN,Corporate Services,1815 - Personnel and Human Resources Issues,1709 - Training - Management Development Courses,04/02/2014,1057327-1,833.17,2113514 - Marlborough Training and Consultancy Ltd,MANAGEMENT DEVELOPMENT PROGRAMME
Tendring DC,http://statistics.data.gov.uk/id/local-authority-district/22UN,Corporate Services,1300 - Legal Services Service Unit,4503 - Counsels Fees,11/02/2014,2113111-1,2537.5,REDACTED PERSONAL DATA,REDACTED PERSONAL DATA
Tendring DC,http://statistics.data.gov.uk/id/local-authority-district/22UN,Corporate Services,1300 - Legal Services Service Unit,4503 - Counsels Fees,11/02/2014,7011436-1,1990,REDACTED PERSONAL DATA,REDACTED PERSONAL DATA
Tendring DC,http://statistics.data.gov.uk/id/local-authority-district/22UN,Corporate Services,6460 - Career Track,4688 - Career Track Exam Fees,18/02/2014,1057017-1,-80.9,REDACTED PERSONAL DATA,REDACTED PERSONAL DATA
Tendring DC,http://statistics.data.gov.uk/id/local-authority-district/22UN,Corporate Services,6460 - Career Track,4688 - Career Track Exam Fees,18/02/2014,1057018-1,-80.9,REDACTED PERSONAL DATA,REDACTED PERSONAL DATA
Tendring DC,http://statistics.data.gov.uk/id/local-authority-district/22UN,Corporate Services,6460 - Career Track,4688 - Career Track Exam Fees,18/02/2014,1057328-1,67.42,REDACTED PERSONAL DATA,REDACTED PERSONAL DATA
Tendring DC,http://statistics.data.gov.uk/id/local-authority-district/22UN,Corporate Services,6460 - Career Track,4688 - Career Track Exam Fees,18/02/2014,2113308-1,80.9,REDACTED PERSONAL DATA,REDACTED PERSONAL DATA
Tendring DC,http://statistics.data.gov.uk/id/local-authority-district/22UN,Corporate Services,1320 - Print Unit Service Unit,4080 - Materials & Consumables,04/02/2014,7011283-1,10,2111844 - Optimumprint,JOB 590
Tendring DC,http://statistics.data.gov.uk/id/local-authority-district/22UN,Corporate Services,1320 - Print Unit Service Unit,4302 - External Print Unit Expenses,04/02/2014,7011284-1,165,2111844 - Optimumprint,605
Tendring DC,http://statistics.data.gov.uk/id/local-authority-district/22UN,Corporate Services,1320 - Print Unit Service Unit,4302 - External Print Unit Expenses,11/02/2014,7011366-1,100,2111844 - Optimumprint,JOB 604/602
Tendring DC,http://statistics.data.gov.uk/id/local-authority-district/22UN,Corporate Services,1320 - Print Unit Service Unit,4080 - Materials & Consumables,11/02/2014,7011367-1,10,2111844 - Optimumprint,MAP
Tendring DC,http://statistics.data.gov.uk/id/local-authority-district/22UN,Corporate Services,1300 - Legal Services Service Unit,4355 - Books & Periodicals,25/02/2014,7011750-1,275,2109369 - PDP Training,F OF I EXAM
Tendring DC,http://statistics.data.gov.uk/id/local-authority-district/22UN,Corporate Services,6460 - Career Track,4688 - Career Track Exam Fees,18/02/2014,2113251-1,43.5,2100425 - Pearson,edi - f skills multi
Tendring DC,http://statistics.data.gov.uk/id/local-authority-district/22UN,Corporate Services,6460 - Career Track,4688 - Career Track Exam Fees,18/02/2014,2113328-1,14.5,REDACTED PERSONAL DATA,REDACTED PERSONAL DATA
Tendring DC,http://statistics.data.gov.uk/id/local-authority-district/22UN,Corporate Services,6480 - Emergency Planning,4040 - Equipment & Tools,04/02/2014,1057362-1,120,2113674 - Peter Charman,REST CENTRE DUVETS
Tendring DC,http://statistics.data.gov.uk/id/local-authority-district/22UN,Corporate Services,1760 - IT Direct Service Costs,4753 - Computer - Application Software,11/02/2014,7011438-1,39353.75,2101038 - Phoenix Software Limited,MICROSOFT TRUE UP
Tendring DC,http://statistics.data.gov.uk/id/local-authority-district/22UN,Corporate Services,1661 - Other Apportionable Overheads - Corporate Support,4700 - Postage,11/02/2014,7011472-1,5050,2104077 - Pitney Bowes Ltd,RE CREDIT FRANKING MACHINE CLACTON PBP 10113561
Tendring DC,http://statistics.data.gov.uk/id/local-authority-district/22UN,Corporate Services,1930 - Asset Management Service Unit,4469 - Other Non - Legal Professional Services,18/02/2014,1057444-1,240,2105829 - Prettys Solicitors,PRETTYS-HAPPY VALLEY
Tendring DC,http://statistics.data.gov.uk/id/local-authority-district/22UN,Corporate Services,1930 - Asset Management Service Unit,4469 - Other Non - Legal Professional Services,18/02/2014,1057444-2,11,2105829 - Prettys Solicitors,PRETTYS-HAPPY VALLEY
Tendring DC,http://statistics.data.gov.uk/id/local-authority-district/22UN,Corporate Services,7220 - Election Expenses,4486 - Election Expenses,18/02/2014,1057436-1,974.64,2103246 - Print.uk.com,ST JOHNS BY ELECTION
Tendring DC,http://statistics.data.gov.uk/id/local-authority-district/22UN,Corporate Services,7220 - Election Expenses,4486 - Election Expenses,18/02/2014,1057437-1,1204.86,2103246 - Print.uk.com,ST JOHNS BY ELECTION
Tendring DC,http://statistics.data.gov.uk/id/local-authority-district/22UN,Corporate Services,7220 - Election Expenses,4486 - Election Expenses,18/02/2014,1057438-1,843.6,2103246 - Print.uk.com,PETER BRUFF BY ELECTION
Tendring DC,http://statistics.data.gov.uk/id/local-authority-district/22UN,Corporate Services,7220 - Election Expenses,4486 - Election Expenses,18/02/2014,1057439-1,1150.85,2103246 - Print.uk.com,PETER BRUFF BY ELECTION
Tendring DC,http://statistics.data.gov.uk/id/local-authority-district/22UN,Corporate Services,7240 - Electoral Registration Expenses,4300 - Printing & Stationery,04/02/2014,2112977-1,1212.51,2103246 - Print.uk.com,canvass fulfilment
Tendring DC,http://statistics.data.gov.uk/id/local-authority-district/22UN,Corporate Services,"1580 - Benefits, Revenues and Customer Contact SU",4718 - Fixed Communication Lines,18/02/2014,2113253-1,2.46,2106860 - ProcessFlows UK Ltd,tms text nov 13
Tendring DC,http://statistics.data.gov.uk/id/local-authority-district/22UN,Corporate Services,"1580 - Benefits, Revenues and Customer Contact SU",4718 - Fixed Communication Lines,18/02/2014,2113254-1,12.54,2106860 - ProcessFlows UK Ltd,tms dec 13
Tendring DC,http://statistics.data.gov.uk/id/local-authority-district/22UN,Corporate Services,"1580 - Benefits, Revenues and Customer Contact SU",4718 - Fixed Communication Lines,18/02/2014,2113255-1,15.9,2106860 - ProcessFlows UK Ltd,tms text jan 14
Tendring DC,http://statistics.data.gov.uk/id/local-authority-district/22UN,Corporate Services,9930 - Loans Fund Balance Sheet,B551 - Loans Maturing Within One Year - HRA,24/02/2014,7800143-2,275000,2101162 - Public Works Loan Board,"PWLB HRA 500798, 500799"
Tendring DC,http://statistics.data.gov.uk/id/local-authority-district/22UN,Corporate Services,5760 - HRA - Capital & Interest Charges,9831 - HRA Interest (formerly Item 8),24/02/2014,7800143-4,17593.75,2101162 - Public Works Loan Board,"PWLB HRA 500798, 500799"
Tendring DC,http://statistics.data.gov.uk/id/local-authority-district/22UN,Corporate Services,5760 - HRA - Capital & Interest Charges,9831 - HRA Interest (formerly Item 8),17/02/2014,7800151-2,207500,2101162 - Public Works Loan Board,PWLB Loans HRA 492330-334
Tendring DC,http://statistics.data.gov.uk/id/local-authority-district/22UN,Corporate Services,1100 - Corporate Director (Corporate Services) and Admin Service Unit,4300 - Printing & Stationery,11/02/2014,7011433-1,45,2113149 - Quality Office Supplies Ltd,QUALITY OFFICE SUPPLIES
Tendring DC,http://statistics.data.gov.uk/id/local-authority-district/22UN,Corporate Services,1100 - Corporate Director (Corporate Services) and Admin Service Unit,4300 - Printing & Stationery,25/02/2014,1057582-1,177.23,2101090 - Ricoh UK Ltd,PHOTOCOPIER RENTAL
Tendring DC,http://statistics.data.gov.uk/id/local-authority-district/22UN,Corporate Services,1100 - Corporate Director (Corporate Services) and Admin Service Unit,4300 - Printing & Stationery,18/02/2014,2113270-1,125.47,2101090 - Ricoh UK Ltd,photocopier 1/11/13 to 31/1/14
Tendring DC,http://statistics.data.gov.uk/id/local-authority-district/22UN,Corporate Services,5480 - HRA - Repair & Maintenance,2079 - External Decoration,18/02/2014,1057395-1,-695,2101187 - Roalco Limited,EXTERNAL PAINTING
Tendring DC,http://statistics.data.gov.uk/id/local-authority-district/22UN,Corporate Services,5480 - HRA - Repair & Maintenance,2079 - External Decoration,18/02/2014,1057395-2,-695,2101187 - Roalco Limited,EXTERNAL PAINTING
Tendring DC,http://statistics.data.gov.uk/id/local-authority-district/22UN,Corporate Services,7240 - Electoral Registration Expenses,4700 - Postage,18/02/2014,1057445-1,717.38,2101139 - Royal Mail,ELECTORAL POSTAGE
Tendring DC,http://statistics.data.gov.uk/id/local-authority-district/22UN,Corporate Services,7240 - Electoral Registration Expenses,4700 - Postage,04/02/2014,2112975-1,3.87,2108306 - Royal Mail Group Ltd,electoral postage
Tendring DC,http://statistics.data.gov.uk/id/local-authority-district/22UN,Corporate Services,1815 - Personnel and Human Resources Issues,1500 - Advertising - Recruitment,25/02/2014,7011717-1,795,2105423 - SHL Group Ltd,ONLINE SYSTEMS LICENCE
Tendring DC,http://statistics.data.gov.uk/id/local-authority-district/22UN,Corporate Services,1432 - TDC Website,4753 - Computer - Application Software,18/02/2014,2113318-1,2162.75,2112822 - Siteimprove Ltd,site improve
Tendring DC,http://statistics.data.gov.uk/id/local-authority-district/22UN,Corporate Services,1432 - TDC Website,4753 - Computer - Application Software,18/02/2014,2113319-1,1785.96,2112822 - Siteimprove Ltd,site improve
Tendring DC,http://statistics.data.gov.uk/id/local-authority-district/22UN,Corporate Services,1620 - Corporate Performance - IT Section Service Unit,4880 - Subscriptions Paid,25/02/2014,7011715-1,140,2101296 - SOCITM Limited,SOC ITM MEM JAN-DEC 14
Tendring DC,http://statistics.data.gov.uk/id/local-authority-district/22UN,Corporate Services,1930 - Asset Management Service Unit,4753 - Computer - Application Software,18/02/2014,7011619-1,649,2113618 - Systemwide,AUTO CAD LT 2012 SINGLE USER LICENCE
Tendring DC,http://statistics.data.gov.uk/id/local-authority-district/22UN,Corporate Services,1661 - Other Apportionable Overheads - Corporate Support,4700 - Postage,18/02/2014,1057426-1,1.5,2106628 - Tendring District Council,PETTY CASH CORPORATE
Tendring DC,http://statistics.data.gov.uk/id/local-authority-district/22UN,Corporate Services,7220 - Election Expenses,4486 - Election Expenses,18/02/2014,1057426-10,16.72,2106628 - Tendring District Council,PETTY CASH CORPORATE
Tendring DC,http://statistics.data.gov.uk/id/local-authority-district/22UN,Corporate Services,7220 - Election Expenses,4486 - Election Expenses,18/02/2014,1057426-11,8.58,2106628 - Tendring District Council,PETTY CASH CORPORATE
Tendring DC,http://statistics.data.gov.uk/id/local-authority-district/22UN,Corporate Services,6560 - Other Democratic Costs,4110 - General Provisions,18/02/2014,1057426-12,4.49,2106628 - Tendring District Council,PETTY CASH CORPORATE
Tendring DC,http://statistics.data.gov.uk/id/local-authority-district/22UN,Corporate Services,1661 - Other Apportionable Overheads - Corporate Support,4700 - Postage,18/02/2014,1057426-13,1.5,2106628 - Tendring District Council,PETTY CASH CORPORATE
Tendring DC,http://statistics.data.gov.uk/id/local-authority-district/22UN,Corporate Services,6560 - Other Democratic Costs,4110 - General Provisions,18/02/2014,1057426-14,2.49,2106628 - Tendring District Council,PETTY CASH CORPORATE
Tendring DC,http://statistics.data.gov.uk/id/local-authority-district/22UN,Corporate Services,1100 - Corporate Director (Corporate Services) and Admin Service Unit,1700 - Training - Courses,18/02/2014,1057426-15,20.83,2106628 - Tendring District Council,PETTY CASH CORPORATE
Tendring DC,http://statistics.data.gov.uk/id/local-authority-district/22UN,Corporate Services,1100 - Corporate Director (Corporate Services) and Admin Service Unit,5500 - Miscellaneous Expenses,18/02/2014,1057426-16,8.77,2106628 - Tendring District Council,PETTY CASH CORPORATE
Tendring DC,http://statistics.data.gov.uk/id/local-authority-district/22UN,Corporate Services,6560 - Other Democratic Costs,4110 - General Provisions,18/02/2014,1057426-17,2.83,2106628 - Tendring District Council,PETTY CASH CORPORATE
Tendring DC,http://statistics.data.gov.uk/id/local-authority-district/22UN,Corporate Services,6560 - Other Democratic Costs,4110 - General Provisions,18/02/2014,1057426-18,3.49,2106628 - Tendring District Council,PETTY CASH CORPORATE
Tendring DC,http://statistics.data.gov.uk/id/local-authority-district/22UN,Corporate Services,6560 - Other Democratic Costs,4110 - General Provisions,18/02/2014,1057426-19,4,2106628 - Tendring District Council,PETTY CASH CORPORATE
Tendring DC,http://statistics.data.gov.uk/id/local-authority-district/22UN,Corporate Services,1100 - Corporate Director (Corporate Services) and Admin Service Unit,3000 - Vehicle Purchases,18/02/2014,1057426-2,6.7,2106628 - Tendring District Council,PETTY CASH CORPORATE
Tendring DC,http://statistics.data.gov.uk/id/local-authority-district/22UN,Corporate Services,6560 - Other Democratic Costs,4110 - General Provisions,18/02/2014,1057426-20,19.98,2106628 - Tendring District Council,PETTY CASH CORPORATE
Tendring DC,http://statistics.data.gov.uk/id/local-authority-district/22UN,Corporate Services,1661 - Other Apportionable Overheads - Corporate Support,4700 - Postage,18/02/2014,1057426-21,2.1,2106628 - Tendring District Council,PETTY CASH CORPORATE
Tendring DC,http://statistics.data.gov.uk/id/local-authority-district/22UN,Corporate Services,1100 - Corporate Director (Corporate Services) and Admin Service Unit,3300 - Public Transport - Officers,18/02/2014,1057426-22,47,2106628 - Tendring District Council,PETTY CASH CORPORATE
Tendring DC,http://statistics.data.gov.uk/id/local-authority-district/22UN,Corporate Services,1661 - Other Apportionable Overheads - Corporate Support,4700 - Postage,18/02/2014,1057426-23,1.5,2106628 - Tendring District Council,PETTY CASH CORPORATE
Tendring DC,http://statistics.data.gov.uk/id/local-authority-district/22UN,Corporate Services,6560 - Other Democratic Costs,4110 - General Provisions,18/02/2014,1057426-24,9,2106628 - Tendring District Council,PETTY CASH CORPORATE
Tendring DC,http://statistics.data.gov.uk/id/local-authority-district/22UN,Corporate Services,1661 - Other Apportionable Overheads - Corporate Support,4700 - Postage,18/02/2014,1057426-25,1.5,2106628 - Tendring District Council,PETTY CASH CORPORATE
Tendring DC,http://statistics.data.gov.uk/id/local-authority-district/22UN,Corporate Services,1100 - Corporate Director (Corporate Services) and Admin Service Unit,1700 - Training - Courses,18/02/2014,1057426-26,27.58,2106628 - Tendring District Council,PETTY CASH CORPORATE
Tendring DC,http://statistics.data.gov.uk/id/local-authority-district/22UN,Corporate Services,1661 - Other Apportionable Overheads - Corporate Support,4700 - Postage,18/02/2014,1057426-3,1.5,2106628 - Tendring District Council,PETTY CASH CORPORATE
Tendring DC,http://statistics.data.gov.uk/id/local-authority-district/22UN,Corporate Services,1661 - Other Apportionable Overheads - Corporate Support,4700 - Postage,18/02/2014,1057426-4,1.5,2106628 - Tendring District Council,PETTY CASH CORPORATE
Tendring DC,http://statistics.data.gov.uk/id/local-authority-district/22UN,Corporate Services,7220 - Election Expenses,4486 - Election Expenses,18/02/2014,1057426-5,9.67,2106628 - Tendring District Council,PETTY CASH CORPORATE
Tendring DC,http://statistics.data.gov.uk/id/local-authority-district/22UN,Corporate Services,7220 - Election Expenses,4486 - Election Expenses,18/02/2014,1057426-6,2.5,2106628 - Tendring District Council,PETTY CASH CORPORATE
Tendring DC,http://statistics.data.gov.uk/id/local-authority-district/22UN,Corporate Services,7220 - Election Expenses,4486 - Election Expenses,18/02/2014,1057426-7,8.34,2106628 - Tendring District Council,PETTY CASH CORPORATE
Tendring DC,http://statistics.data.gov.uk/id/local-authority-district/22UN,Corporate Services,7220 - Election Expenses,4486 - Election Expenses,18/02/2014,1057426-8,48.33,2106628 - Tendring District Council,PETTY CASH CORPORATE
Tendring DC,http://statistics.data.gov.uk/id/local-authority-district/22UN,Corporate Services,7220 - Election Expenses,4486 - Election Expenses,18/02/2014,1057426-9,1.5,2106628 - Tendring District Council,PETTY CASH CORPORATE
Tendring DC,http://statistics.data.gov.uk/id/local-authority-district/22UN,Corporate Services,7100 - Community Health/Safety,4670 - Hire of Premises,18/02/2014,2113325-1,1280,2113099 - The Resource Bank,tendring crucial crew books
Tendring DC,http://statistics.data.gov.uk/id/local-authority-district/22UN,Corporate Services,7100 - Community Health/Safety,4674 - Hired Facilities,18/02/2014,2113325-2,130,2113099 - The Resource Bank,tendring crucial crew books
Tendring DC,http://statistics.data.gov.uk/id/local-authority-district/22UN,Corporate Services,7025 - CDRP Support,4900 - Grants,18/02/2014,2113325-3,1147,2113099 - The Resource Bank,tendring crucial crew books
Tendring DC,http://statistics.data.gov.uk/id/local-authority-district/22UN,Corporate Services,1300 - Legal Services Service Unit,4355 - Books & Periodicals,11/02/2014,2113112-1,860,2111580 - Thomson Reuters,westlaw
Tendring DC,http://statistics.data.gov.uk/id/local-authority-district/22UN,Corporate Services,1100 - Corporate Director (Corporate Services) and Admin Service Unit,4355 - Books & Periodicals,04/02/2014,7011345-1,145,2111580 - Thomson Reuters,SCHOFIELDS ELECTION R15
Tendring DC,http://statistics.data.gov.uk/id/local-authority-district/22UN,Corporate Services,1100 - Corporate Director (Corporate Services) and Admin Service Unit,4355 - Books & Periodicals,04/02/2014,7011345-2,145,2111580 - Thomson Reuters,SCHOFIELDS ELECTION R15
Tendring DC,http://statistics.data.gov.uk/id/local-authority-district/22UN,Corporate Services,5240 - HRA - Managing Tenancies,5248 - Estate Management Expenses,01/02/2014,7800137-0,13.32,2112813 - Three,Dongles x 2 Feb 14
Tendring DC,http://statistics.data.gov.uk/id/local-authority-district/22UN,Corporate Services,5240 - HRA - Managing Tenancies,5242 - Tenant Relations,01/02/2014,7800137-2,13.32,2112813 - Three,Dongles x 2 Feb 14
Tendring DC,http://statistics.data.gov.uk/id/local-authority-district/22UN,Corporate Services,1760 - IT Direct Service Costs,4715 - Data Communication Charge,01/02/2014,7800137-4,13.33,2112813 - Three,Dongles x 2 Feb 14
Tendring DC,http://statistics.data.gov.uk/id/local-authority-district/22UN,Corporate Services,4520 - Land Charges,5220 - Provision for Insurance Excesses/Legal Claims,18/02/2014,7800148-0,64183.38,2113526 - Tinkler Solicitors Client Account,Settlement of Legal Claim
Tendring DC,http://statistics.data.gov.uk/id/local-authority-district/22UN,Corporate Services,5920 - Open Spaces,2820 - Premises - Insurance Excesses,18/02/2014,1057448-1,5000,REDACTED PERSONAL DATA,REDACTED PERSONAL DATA
Tendring DC,http://statistics.data.gov.uk/id/local-authority-district/22UN,Corporate Services,1120 - Accountancy Service Unit,4753 - Computer - Application Software,11/02/2014,7011362-1,300,2100093 - Unit 4 Business Software Ltd,AGRESSO USER GROUP 2014
Tendring DC,http://statistics.data.gov.uk/id/local-authority-district/22UN,Corporate Services,1100 - Corporate Director (Corporate Services) and Admin Service Unit,1700 - Training - Courses,18/02/2014,2113320-1,50,2105300 - Vanguard Consulting,vanguard
Tendring DC,http://statistics.data.gov.uk/id/local-authority-district/22UN,Corporate Services,1100 - Corporate Director (Corporate Services) and Admin Service Unit,1710 - Training - Central Department Budget,25/02/2014,1057552-1,150,2112451 - VineHR Ltd,EMPLOYMENT LAW CONFERENCE
Tendring DC,http://statistics.data.gov.uk/id/local-authority-district/22UN,Corporate Services,1320 - Print Unit Service Unit,4350 - Photocopier Hire,25/02/2014,1057583-1,1869.9,2101527 - Xerox Finance Ltd,4127 RENTAL
Tendring DC,http://statistics.data.gov.uk/id/local-authority-district/22UN,Corporate Services,1760 - IT Direct Service Costs,4350 - Photocopier Hire,18/02/2014,2113217-1,801.33,2101527 - Xerox Finance Ltd,xerox feb 14 to apr14
Tendring DC,http://statistics.data.gov.uk/id/local-authority-district/22UN,Corporate Services,1760 - IT Direct Service Costs,4350 - Photocopier Hire,18/02/2014,2113218-1,317.08,2101527 - Xerox Finance Ltd,copier feb - apr14
Tendring DC,http://statistics.data.gov.uk/id/local-authority-district/22UN,Corporate Services,1320 - Print Unit Service Unit,4350 - Photocopier Hire,18/02/2014,2113316-1,1964.1,2101527 - Xerox Finance Ltd,252 rental
Tendring DC,http://statistics.data.gov.uk/id/local-authority-district/22UN,Corporate Services,1760 - IT Direct Service Costs,4350 - Photocopier Hire,25/02/2014,7011714-1,158.53,2101527 - Xerox Finance Ltd,CREM FEB - APRIL 14
Tendring DC,http://statistics.data.gov.uk/id/local-authority-district/22UN,Corporate Services,1100 - Corporate Director (Corporate Services) and Admin Service Unit,4300 - Printing & Stationery,04/02/2014,1057231-1,148.4,2107546 - XMA Limited,ELECTORAL TONER
Tendring DC,http://statistics.data.gov.uk/id/local-authority-district/22UN,Corporate Services,5480 - HRA - Repair & Maintenance,6625 - Tenants Compensation Scheme,04/02/2014,2112981-1,30,REDACTED PERSONAL DATA,REDACTED PERSONAL DATA
Tendring DC,http://statistics.data.gov.uk/id/local-authority-district/22UN,Life Opportunities,1880 - Office Accommodation Expenses,2100 - Building Repairs,04/02/2014,1057183-1,750,2100061 - A R & J Pardoe,REDECORATION RMS 9 & 11 TOWN HALL
Tendring DC,http://statistics.data.gov.uk/id/local-authority-district/22UN,Life Opportunities,1880 - Office Accommodation Expenses,2100 - Building Repairs,04/02/2014,1057183-2,230,2100061 - A R & J Pardoe,REDECORATION RMS 9 & 11 TOWN HALL
Tendring DC,http://statistics.data.gov.uk/id/local-authority-district/22UN,Life Opportunities,6160 - Princes Theatre,4597 - Hired Services - Payments to Contractors,11/02/2014,2113057-1,50,2100091 - A Warrender,piano tuning
Tendring DC,http://statistics.data.gov.uk/id/local-authority-district/22UN,Life Opportunities,6160 - Princes Theatre,4597 - Hired Services - Payments to Contractors,25/02/2014,7011674-1,50,2100091 - A Warrender,PIANO TUNING FEB 14
Tendring DC,http://statistics.data.gov.uk/id/local-authority-district/22UN,Life Opportunities,6740 - Careline,3300 - Public Transport - Officers,11/02/2014,2113058-1,30,2100768 - A2B Taxis,a2b taxis - jan 14
Tendring DC,http://statistics.data.gov.uk/id/local-authority-district/22UN,Life Opportunities,H860 - Disabled Adaptations,C200 - Main Contractor,04/02/2014,1057281-1,1895,REDACTED PERSONAL DATA,REDACTED PERSONAL DATA
Tendring DC,http://statistics.data.gov.uk/id/local-authority-district/22UN,Life Opportunities,8510 - Dovercourt Swimming Pool & All Weather Facilities,2100 - Building Repairs,18/02/2014,2113205-1,179.45,2108452 - Access Automation Ltd,dovercourt pool - repair
Tendring DC,http://statistics.data.gov.uk/id/local-authority-district/22UN,Life Opportunities,H860 - Disabled Adaptations,C200 - Main Contractor,25/02/2014,7011780-1,1425,REDACTED PERSONAL DATA,REDACTED PERSONAL DATA
Tendring DC,http://statistics.data.gov.uk/id/local-authority-district/22UN,Life Opportunities,1880 - Office Accommodation Expenses,2100 - Building Repairs,04/02/2014,1057267-1,228,2101609 - Adcock Refrigeration & Air Conditioning Ltd,EXTRA WORKS TO FIX A/C IN COMMS ROOM
Tendring DC,http://statistics.data.gov.uk/id/local-authority-district/22UN,Life Opportunities,1880 - Office Accommodation Expenses,2100 - Building Repairs,04/02/2014,1057268-1,62,2101609 - Adcock Refrigeration & Air Conditioning Ltd,WEELEY
Tendring DC,http://statistics.data.gov.uk/id/local-authority-district/22UN,Life Opportunities,1880 - Office Accommodation Expenses,2100 - Building Repairs,04/02/2014,1057269-1,96,2101609 - Adcock Refrigeration & Air Conditioning Ltd,88-90 PIER AVE
Tendring DC,http://statistics.data.gov.uk/id/local-authority-district/22UN,Life Opportunities,1860 - Depots General,2500 - Water Services - Metered,04/02/2014,1057270-1,13.38,REDACTED PERSONAL DATA,REDACTED PERSONAL DATA
Tendring DC,http://statistics.data.gov.uk/id/local-authority-district/22UN,Life Opportunities,1860 - Depots General,2520 - Sewerage & Environmental Charges,04/02/2014,1057270-2,71.5,REDACTED PERSONAL DATA,REDACTED PERSONAL DATA
Tendring DC,http://statistics.data.gov.uk/id/local-authority-district/22UN,Life Opportunities,1880 - Office Accommodation Expenses,2500 - Water Services - Metered,25/02/2014,1057522-1,321.88,2112518 - Affinity Water Ltd (East Region),AFFINITY WATER WESTLEIGH
Tendring DC,http://statistics.data.gov.uk/id/local-authority-district/22UN,Life Opportunities,1880 - Office Accommodation Expenses,2500 - Water Services - Metered,25/02/2014,1057522-2,249.85,2112518 - Affinity Water Ltd (East Region),AFFINITY WATER WESTLEIGH
Tendring DC,http://statistics.data.gov.uk/id/local-authority-district/22UN,Life Opportunities,8510 - Dovercourt Swimming Pool & All Weather Facilities,2510 - Water Services - Unmetered,18/02/2014,7011672-1,467.14,2112518 - Affinity Water Ltd (East Region),JAN WATER DCRT POOL
Tendring DC,http://statistics.data.gov.uk/id/local-authority-district/22UN,Life Opportunities,8540 - Leisure Centre Clacton,2510 - Water Services - Unmetered,18/02/2014,7011673-1,1228.79,2112518 - Affinity Water Ltd (East Region),JANUARY
Tendring DC,http://statistics.data.gov.uk/id/local-authority-district/22UN,Life Opportunities,5860 - Manningtree Sports Centre,4400 - Maintenance Under Service Agreements,18/02/2014,7011601-1,319.99,2109999 - Air Conditioning Solutions (UK) Ltd,AIR CONDITIONING SERVICE CONTRACT
Tendring DC,http://statistics.data.gov.uk/id/local-authority-district/22UN,Life Opportunities,H715 - Measures To Combat Condensation,C200 - Main Contractor,04/02/2014,1057283-1,295.5,REDACTED PERSONAL DATA,REDACTED PERSONAL DATA
Tendring DC,http://statistics.data.gov.uk/id/local-authority-district/22UN,Life Opportunities,H715 - Measures To Combat Condensation,C200 - Main Contractor,04/02/2014,1057284-1,665.5,REDACTED PERSONAL DATA,REDACTED PERSONAL DATA
Tendring DC,http://statistics.data.gov.uk/id/local-authority-district/22UN,Life Opportunities,5480 - HRA - Repair & Maintenance,2017 - Mechanical Equipment /Extract Fans,04/02/2014,1057285-1,275.5,REDACTED PERSONAL DATA,REDACTED PERSONAL DATA
Tendring DC,http://statistics.data.gov.uk/id/local-authority-district/22UN,Life Opportunities,5480 - HRA - Repair & Maintenance,2017 - Mechanical Equipment /Extract Fans,25/02/2014,1057515-1,1015.5,REDACTED PERSONAL DATA,REDACTED PERSONAL DATA
Tendring DC,http://statistics.data.gov.uk/id/local-authority-district/22UN,Life Opportunities,5480 - HRA - Repair & Maintenance,2017 - Mechanical Equipment /Extract Fans,25/02/2014,1057584-1,275.5,REDACTED PERSONAL DATA,REDACTED PERSONAL DATA
Tendring DC,http://statistics.data.gov.uk/id/local-authority-district/22UN,Life Opportunities,5480 - HRA - Repair & Maintenance,2017 - Mechanical Equipment /Extract Fans,25/02/2014,1057585-1,754.5,REDACTED PERSONAL DATA,REDACTED PERSONAL DATA
Tendring DC,http://statistics.data.gov.uk/id/local-authority-district/22UN,Life Opportunities,5480 - HRA - Repair & Maintenance,2017 - Mechanical Equipment /Extract Fans,11/02/2014,2113020-1,625.5,REDACTED PERSONAL DATA,REDACTED PERSONAL DATA
Tendring DC,http://statistics.data.gov.uk/id/local-authority-district/22UN,Life Opportunities,5480 - HRA - Repair & Maintenance,2017 - Mechanical Equipment /Extract Fans,11/02/2014,2113022-1,765.7,REDACTED PERSONAL DATA,REDACTED PERSONAL DATA
Tendring DC,http://statistics.data.gov.uk/id/local-authority-district/22UN,Life Opportunities,5480 - HRA - Repair & Maintenance,2017 - Mechanical Equipment /Extract Fans,11/02/2014,2113029-1,774.5,REDACTED PERSONAL DATA,REDACTED PERSONAL DATA
Tendring DC,http://statistics.data.gov.uk/id/local-authority-district/22UN,Life Opportunities,5480 - HRA - Repair & Maintenance,2017 - Mechanical Equipment /Extract Fans,18/02/2014,2113257-1,453.4,REDACTED PERSONAL DATA,REDACTED PERSONAL DATA
Tendring DC,http://statistics.data.gov.uk/id/local-authority-district/22UN,Life Opportunities,5480 - HRA - Repair & Maintenance,2017 - Mechanical Equipment /Extract Fans,18/02/2014,2113258-1,703.4,REDACTED PERSONAL DATA,REDACTED PERSONAL DATA
Tendring DC,http://statistics.data.gov.uk/id/local-authority-district/22UN,Life Opportunities,5480 - HRA - Repair & Maintenance,2017 - Mechanical Equipment /Extract Fans,18/02/2014,2113329-1,625,REDACTED PERSONAL DATA,REDACTED PERSONAL DATA
Tendring DC,http://statistics.data.gov.uk/id/local-authority-district/22UN,Life Opportunities,5480 - HRA - Repair & Maintenance,2017 - Mechanical Equipment /Extract Fans,18/02/2014,2113330-1,230.9,REDACTED PERSONAL DATA,REDACTED PERSONAL DATA
Tendring DC,http://statistics.data.gov.uk/id/local-authority-district/22UN,Life Opportunities,H715 - Measures To Combat Condensation,C200 - Main Contractor,11/02/2014,7011405-1,665.5,REDACTED PERSONAL DATA,REDACTED PERSONAL DATA
Tendring DC,http://statistics.data.gov.uk/id/local-authority-district/22UN,Life Opportunities,H715 - Measures To Combat Condensation,C200 - Main Contractor,11/02/2014,7011406-1,713.8,REDACTED PERSONAL DATA,REDACTED PERSONAL DATA
Tendring DC,http://statistics.data.gov.uk/id/local-authority-district/22UN,Life Opportunities,H715 - Measures To Combat Condensation,C200 - Main Contractor,11/02/2014,7011407-1,275.5,REDACTED PERSONAL DATA,REDACTED PERSONAL DATA
Tendring DC,http://statistics.data.gov.uk/id/local-authority-district/22UN,Life Opportunities,H715 - Measures To Combat Condensation,C200 - Main Contractor,11/02/2014,7011414-1,625.5,REDACTED PERSONAL DATA,REDACTED PERSONAL DATA
Tendring DC,http://statistics.data.gov.uk/id/local-authority-district/22UN,Life Opportunities,H820 - Asbestos Management,C200 - Main Contractor,11/02/2014,7011418-1,295.5,REDACTED PERSONAL DATA,REDACTED PERSONAL DATA
Tendring DC,http://statistics.data.gov.uk/id/local-authority-district/22UN,Life Opportunities,8540 - Leisure Centre Clacton,2100 - Building Repairs,18/02/2014,7011671-1,18,2110677 - Alders TV,TREADMILL FLYLEAD
Tendring DC,http://statistics.data.gov.uk/id/local-authority-district/22UN,Life Opportunities,C021 - Cremator replacement,C200 - Main Contractor,25/02/2014,1057518-1,7017.78,2113215 - Allman Woodcock Limited,WEELEY CREM INTERIM 8
Tendring DC,http://statistics.data.gov.uk/id/local-authority-district/22UN,Life Opportunities,5140 - Homelessness,4683 - Other Homelessness Expenses,25/02/2014,1057507-1,200,REDACTED PERSONAL DATA,REDACTED PERSONAL DATA
Tendring DC,http://statistics.data.gov.uk/id/local-authority-district/22UN,Life Opportunities,8540 - Leisure Centre Clacton,4880 - Subscriptions Paid,11/02/2014,1057382-1,66,2107102 - Angela Henesy,
Tendring DC,http://statistics.data.gov.uk/id/local-authority-district/22UN,Life Opportunities,"1580 - Benefits, Revenues and Customer Contact SU",4701 - External Courier Services,25/02/2014,7011722-1,23.6,2111631 - Anglia Courier Express (East Anglia) Ltd,COURT (COLCHESTER)
Tendring DC,http://statistics.data.gov.uk/id/local-authority-district/22UN,Life Opportunities,5860 - Manningtree Sports Centre,4597 - Hired Services - Payments to Contractors,18/02/2014,2113197-1,240,2113500 - Anglia Sports Management Limited,football coaching january 14
Tendring DC,http://statistics.data.gov.uk/id/local-authority-district/22UN,Life Opportunities,5240 - HRA - Managing Tenancies,5242 - Tenant Relations,25/02/2014,1057495-1,20,REDACTED PERSONAL DATA,REDACTED PERSONAL DATA
Tendring DC,http://statistics.data.gov.uk/id/local-authority-district/22UN,Life Opportunities,5240 - HRA - Managing Tenancies,6625 - Tenants Compensation Scheme,18/02/2014,7011622-1,150,2100057 - Applebys (Removals) Ltd,RETURN OF PARTIAL DECANT 31.01.14
Tendring DC,http://statistics.data.gov.uk/id/local-authority-district/22UN,Life Opportunities,5860 - Manningtree Sports Centre,4040 - Equipment & Tools,18/02/2014,7011528-1,38.41,2100048 - Argos Business Solutions,3 X CLOCKS FOR SPORTS HALL
Tendring DC,http://statistics.data.gov.uk/id/local-authority-district/22UN,Life Opportunities,8540 - Leisure Centre Clacton,4000 - Furniture,18/02/2014,7011529-1,91.95,2100048 - Argos Business Solutions,HENRY  VACUUM CLEANER
Tendring DC,http://statistics.data.gov.uk/id/local-authority-district/22UN,Life Opportunities,5240 - HRA - Managing Tenancies,5248 - Estate Management Expenses,25/02/2014,7011691-1,4.79,2100048 - Argos Business Solutions,SANDISK 2GB CARD
Tendring DC,http://statistics.data.gov.uk/id/local-authority-district/22UN,Life Opportunities,H860 - Disabled Adaptations,C200 - Main Contractor,04/02/2014,1057182-1,1100,REDACTED PERSONAL DATA,REDACTED PERSONAL DATA
Tendring DC,http://statistics.data.gov.uk/id/local-authority-district/22UN,Life Opportunities,H860 - Disabled Adaptations,C200 - Main Contractor,04/02/2014,1057182-2,4025,REDACTED PERSONAL DATA,REDACTED PERSONAL DATA
Tendring DC,http://statistics.data.gov.uk/id/local-authority-district/22UN,Life Opportunities,H860 - Disabled Adaptations,C200 - Main Contractor,18/02/2014,1057393-1,1250,REDACTED PERSONAL DATA,REDACTED PERSONAL DATA
Tendring DC,http://statistics.data.gov.uk/id/local-authority-district/22UN,Life Opportunities,H860 - Disabled Adaptations,C200 - Main Contractor,18/02/2014,1057393-2,4605,REDACTED PERSONAL DATA,REDACTED PERSONAL DATA
Tendring DC,http://statistics.data.gov.uk/id/local-authority-district/22UN,Life Opportunities,H860 - Disabled Adaptations,C200 - Main Contractor,25/02/2014,1057454-1,1200,REDACTED PERSONAL DATA,REDACTED PERSONAL DATA
Tendring DC,http://statistics.data.gov.uk/id/local-authority-district/22UN,Life Opportunities,H860 - Disabled Adaptations,C200 - Main Contractor,25/02/2014,1057454-2,4457,REDACTED PERSONAL DATA,REDACTED PERSONAL DATA
Tendring DC,http://statistics.data.gov.uk/id/local-authority-district/22UN,Life Opportunities,8540 - Leisure Centre Clacton,5300 - Resaleable Items,04/02/2014,7011318-1,230.1,2100088 - ASA Merchandising Ltd,SWIM AWARDS
Tendring DC,http://statistics.data.gov.uk/id/local-authority-district/22UN,Life Opportunities,8520 - Frinton & Walton Swimming Pool,5300 - Resaleable Items,18/02/2014,7011664-1,230.1,2100088 - ASA Merchandising Ltd,FWSP ASA AWARDS
Tendring DC,http://statistics.data.gov.uk/id/local-authority-district/22UN,Life Opportunities,8520 - Frinton & Walton Swimming Pool,4400 - Maintenance Under Service Agreements,04/02/2014,7011311-1,81.07,2112129 - Autobar Vending Services Ltd,FWSP - AUTOBAR
Tendring DC,http://statistics.data.gov.uk/id/local-authority-district/22UN,Life Opportunities,1880 - Office Accommodation Expenses,4080 - Materials & Consumables,04/02/2014,1057275-1,4.39,2100099 - B & Q Trade Account,B&Q CLEANING PRODUCTS
Tendring DC,http://statistics.data.gov.uk/id/local-authority-district/22UN,Life Opportunities,1880 - Office Accommodation Expenses,4080 - Materials & Consumables,04/02/2014,1057276-1,23.39,2100099 - B & Q Trade Account,EXTERIOR PLYWOOD B&Q
Tendring DC,http://statistics.data.gov.uk/id/local-authority-district/22UN,Life Opportunities,5140 - Homelessness,4683 - Other Homelessness Expenses,04/02/2014,2112978-1,407.93,REDACTED PERSONAL DATA,REDACTED PERSONAL DATA
Tendring DC,http://statistics.data.gov.uk/id/local-authority-district/22UN,Life Opportunities,1880 - Office Accommodation Expenses,2100 - Building Repairs,18/02/2014,2113231-1,27.45,2109063 - B&Q,b&Q shovels
Tendring DC,http://statistics.data.gov.uk/id/local-authority-district/22UN,Life Opportunities,1880 - Office Accommodation Expenses,2100 - Building Repairs,18/02/2014,2113232-1,1.48,2109063 - B&Q,b&Q tape hooks
Tendring DC,http://statistics.data.gov.uk/id/local-authority-district/22UN,Life Opportunities,8540 - Leisure Centre Clacton,5500 - Miscellaneous Expenses,18/02/2014,7011668-1,52.53,2106358 - Baker Ross Ltd,ART MATERIALS
Tendring DC,http://statistics.data.gov.uk/id/local-authority-district/22UN,Life Opportunities,5820 - Harwich Sports Centre,4200 - Clothing & Uniforms,25/02/2014,1057565-1,52.4,2109068 - Ballantyne Edwards Ltd,UNIFORM
Tendring DC,http://statistics.data.gov.uk/id/local-authority-district/22UN,Life Opportunities,5860 - Manningtree Sports Centre,4040 - Equipment & Tools,11/02/2014,2113104-1,50.83,2111686 - Banana Fingers Ltd,8xcarabiners for climbing
Tendring DC,http://statistics.data.gov.uk/id/local-authority-district/22UN,Life Opportunities,7620 - Air Show,4300 - Printing & Stationery,04/02/2014,1057237-1,5.96,2100111 - Banner Business Supplies Ltd,DORMY RUBBER STAMP R19
Tendring DC,http://statistics.data.gov.uk/id/local-authority-district/22UN,Life Opportunities,5240 - HRA - Managing Tenancies,5242 - Tenant Relations,04/02/2014,1057238-1,17.12,2100111 - Banner Business Supplies Ltd,STAMPS TENANT RELATIONS
Tendring DC,http://statistics.data.gov.uk/id/local-authority-district/22UN,Life Opportunities,"1580 - Benefits, Revenues and Customer Contact SU",4300 - Printing & Stationery,04/02/2014,1057239-1,24.06,2100111 - Banner Business Supplies Ltd,CUSTOMERY COPY STAMP
Tendring DC,http://statistics.data.gov.uk/id/local-authority-district/22UN,Life Opportunities,1240 - Commercial Management,4300 - Printing & Stationery,04/02/2014,1057240-1,72.61,2100111 - Banner Business Supplies Ltd,ENVELOPES/PAPER PUNCH PCKT
Tendring DC,http://statistics.data.gov.uk/id/local-authority-district/22UN,Life Opportunities,5360 - HRA - Sheltered Units,4300 - Printing & Stationery,04/02/2014,1057240-2,3.6,2100111 - Banner Business Supplies Ltd,ENVELOPES/PAPER PUNCH PCKT
Tendring DC,http://statistics.data.gov.uk/id/local-authority-district/22UN,Life Opportunities,6160 - Princes Theatre,4300 - Printing & Stationery,04/02/2014,1057241-1,10.68,2100111 - Banner Business Supplies Ltd,KRAFT PAPER ROLL
Tendring DC,http://statistics.data.gov.uk/id/local-authority-district/22UN,Life Opportunities,8540 - Leisure Centre Clacton,4300 - Printing & Stationery,18/02/2014,7011520-1,32.6,2100111 - Banner Business Supplies Ltd,STATIONERY
Tendring DC,http://statistics.data.gov.uk/id/local-authority-district/22UN,Life Opportunities,"1580 - Benefits, Revenues and Customer Contact SU",4300 - Printing & Stationery,18/02/2014,7011521-1,4.41,2100111 - Banner Business Supplies Ltd,VARIOUS STATIONERY + PIER AVE
Tendring DC,http://statistics.data.gov.uk/id/local-authority-district/22UN,Life Opportunities,1240 - Commercial Management,4300 - Printing & Stationery,18/02/2014,7011521-2,156.67,2100111 - Banner Business Supplies Ltd,VARIOUS STATIONERY + PIER AVE
Tendring DC,http://statistics.data.gov.uk/id/local-authority-district/22UN,Life Opportunities,1565 - Careline / CCTV Service Unit,4300 - Printing & Stationery,18/02/2014,7011526-1,74.02,2100111 - Banner Business Supplies Ltd,BANNER - FEBRUARY 14
Tendring DC,http://statistics.data.gov.uk/id/local-authority-district/22UN,Life Opportunities,1210 - Facilities Management Service Unit,4300 - Printing & Stationery,25/02/2014,7011680-1,31.95,2100111 - Banner Business Supplies Ltd,FACILITIES STATIONERY
Tendring DC,http://statistics.data.gov.uk/id/local-authority-district/22UN,Life Opportunities,"1580 - Benefits, Revenues and Customer Contact SU",4300 - Printing & Stationery,25/02/2014,7011682-1,139.62,2100111 - Banner Business Supplies Ltd,STATIONERY RBS 07.02.14
Tendring DC,http://statistics.data.gov.uk/id/local-authority-district/22UN,Life Opportunities,1240 - Commercial Management,4300 - Printing & Stationery,25/02/2014,7011683-1,94.84,2100111 - Banner Business Supplies Ltd,STATIONERY ORDER 7.02.14
Tendring DC,http://statistics.data.gov.uk/id/local-authority-district/22UN,Life Opportunities,8520 - Frinton & Walton Swimming Pool,4300 - Printing & Stationery,25/02/2014,7011826-1,52.48,2100111 - Banner Business Supplies Ltd,FWSP - BANNER
Tendring DC,http://statistics.data.gov.uk/id/local-authority-district/22UN,Life Opportunities,8520 - Frinton & Walton Swimming Pool,4300 - Printing & Stationery,25/02/2014,7011827-1,4.99,2100111 - Banner Business Supplies Ltd,FWSP - BANNER
Tendring DC,http://statistics.data.gov.uk/id/local-authority-district/22UN,Life Opportunities,8540 - Leisure Centre Clacton,4300 - Printing & Stationery,25/02/2014,7011828-1,4.03,2100111 - Banner Business Supplies Ltd,STATIONERY
Tendring DC,http://statistics.data.gov.uk/id/local-authority-district/22UN,Life Opportunities,5820 - Harwich Sports Centre,4597 - Hired Services - Payments to Contractors,18/02/2014,7011604-1,39,2105048 - Berendsen UK Ltd,ROLLER TOWEL RENTAL
Tendring DC,http://statistics.data.gov.uk/id/local-authority-district/22UN,Life Opportunities,1880 - Office Accommodation Expenses,2300 - Energy Costs - Fuel Oil,04/02/2014,1057300-1,1099.39,2112681 - BIRLEM Ltd,OIL WEELEY OFFICES
Tendring DC,http://statistics.data.gov.uk/id/local-authority-district/22UN,Life Opportunities,8540 - Leisure Centre Clacton,2300 - Energy Costs - Fuel Oil,04/02/2014,7011323-1,1702.5,2112681 - BIRLEM Ltd,2500 LT
Tendring DC,http://statistics.data.gov.uk/id/local-authority-district/22UN,Life Opportunities,8540 - Leisure Centre Clacton,2300 - Energy Costs - Fuel Oil,18/02/2014,7011598-1,1469.6,2112681 - BIRLEM Ltd,2200 LT
Tendring DC,http://statistics.data.gov.uk/id/local-authority-district/22UN,Life Opportunities,8540 - Leisure Centre Clacton,2300 - Energy Costs - Fuel Oil,25/02/2014,7011816-1,1947,2112681 - BIRLEM Ltd,3000 LT
Tendring DC,http://statistics.data.gov.uk/id/local-authority-district/22UN,Life Opportunities,H920 - Disabled Facilities Grants,C400 - Grant payments,04/02/2014,1057351-1,2880,REDACTED PERSONAL DATA,REDACTED PERSONAL DATA
Tendring DC,http://statistics.data.gov.uk/id/local-authority-district/22UN,Life Opportunities,H805 - Major Refurbishment of Heating,C200 - Main Contractor,11/02/2014,1057371-1,64456.5,2100155 - Blue Flame (Colchester) Ltd,HEATING REFURBISHMENT & UPGRADE CONTRACT
Tendring DC,http://statistics.data.gov.uk/id/local-authority-district/22UN,Life Opportunities,H810 - Electrical Re-wiring,C200 - Main Contractor,25/02/2014,1057471-1,-91,2100155 - Blue Flame (Colchester) Ltd,CREDIT RE INV NO 2131769
Tendring DC,http://statistics.data.gov.uk/id/local-authority-district/22UN,Life Opportunities,5480 - HRA - Repair & Maintenance,2071 - Electric Installation Testing,25/02/2014,1057472-1,-150,2100155 - Blue Flame (Colchester) Ltd,CREDIT RE INV NO 2131768
Tendring DC,http://statistics.data.gov.uk/id/local-authority-district/22UN,Life Opportunities,5480 - HRA - Repair & Maintenance,2072 - Planned Partial Refurbishment To Electrical Instal,25/02/2014,1057473-1,-357.52,2100155 - Blue Flame (Colchester) Ltd,CREDIT RE INV NO 2131767
Tendring DC,http://statistics.data.gov.uk/id/local-authority-district/22UN,Life Opportunities,H810 - Electrical Re-wiring,C200 - Main Contractor,25/02/2014,1057527-1,350,2100155 - Blue Flame (Colchester) Ltd,GROOM HSE-DED SUPPLY
Tendring DC,http://statistics.data.gov.uk/id/local-authority-district/22UN,Life Opportunities,5480 - HRA - Repair & Maintenance,2071 - Electric Installation Testing,25/02/2014,1057528-1,900,2100155 - Blue Flame (Colchester) Ltd,MEAD HOUSE - DIST BOARDS
Tendring DC,http://statistics.data.gov.uk/id/local-authority-district/22UN,Life Opportunities,5480 - HRA - Repair & Maintenance,2072 - Planned Partial Refurbishment To Electrical Instal,25/02/2014,1057529-1,2400,2100155 - Blue Flame (Colchester) Ltd,MEAD HOUSE - DIST BOARDS
Tendring DC,http://statistics.data.gov.uk/id/local-authority-district/22UN,Life Opportunities,5480 - HRA - Repair & Maintenance,2088 - Disabled Adaptations,18/02/2014,7011574-1,242.28,REDACTED PERSONAL DATA,REDACTED PERSONAL DATA
Tendring DC,http://statistics.data.gov.uk/id/local-authority-district/22UN,Life Opportunities,5480 - HRA - Repair & Maintenance,2088 - Disabled Adaptations,18/02/2014,7011575-1,305.46,REDACTED PERSONAL DATA,REDACTED PERSONAL DATA
Tendring DC,http://statistics.data.gov.uk/id/local-authority-district/22UN,Life Opportunities,5480 - HRA - Repair & Maintenance,2072 - Planned Partial Refurbishment To Electrical Instal,25/02/2014,7011778-1,865,2100155 - Blue Flame (Colchester) Ltd,INSTALLATION OF ELECTRIC BOILER
Tendring DC,http://statistics.data.gov.uk/id/local-authority-district/22UN,Life Opportunities,8540 - Leisure Centre Clacton,2700 - Cleaning Materials,18/02/2014,2113212-1,600,2102036 - Bonasystems Europe Ltd,bonaclean
Tendring DC,http://statistics.data.gov.uk/id/local-authority-district/22UN,Life Opportunities,"1580 - Benefits, Revenues and Customer Contact SU",4753 - Computer - Application Software,18/02/2014,7011655-1,1100,2100116 - Bottomline Technologies,CONSULTANCY 14-1-14
Tendring DC,http://statistics.data.gov.uk/id/local-authority-district/22UN,Life Opportunities,5480 - HRA - Repair & Maintenance,2008 - Responsive Maintenance - Floor Wall And Ceiling Fi,04/02/2014,7011299-1,665,2100117 - Brian Birt Carpets Ltd,GROOM HOUSE
Tendring DC,http://statistics.data.gov.uk/id/local-authority-district/22UN,Life Opportunities,5480 - HRA - Repair & Maintenance,2008 - Responsive Maintenance - Floor Wall And Ceiling Fi,11/02/2014,7011384-1,65,REDACTED PERSONAL DATA,REDACTED PERSONAL DATA
Tendring DC,http://statistics.data.gov.uk/id/local-authority-district/22UN,Life Opportunities,5480 - HRA - Repair & Maintenance,2008 - Responsive Maintenance - Floor Wall And Ceiling Fi,11/02/2014,7011417-1,391,REDACTED PERSONAL DATA,REDACTED PERSONAL DATA
Tendring DC,http://statistics.data.gov.uk/id/local-authority-district/22UN,Life Opportunities,5480 - HRA - Repair & Maintenance,2008 - Responsive Maintenance - Floor Wall And Ceiling Fi,25/02/2014,7011699-1,335,REDACTED PERSONAL DATA,REDACTED PERSONAL DATA
Tendring DC,http://statistics.data.gov.uk/id/local-authority-district/22UN,Life Opportunities,5360 - HRA - Sheltered Units,2304 - Energy Costs - Electricity,11/02/2014,2113095-1,34.71,2100118 - British Gas Business,honeycroft warden final
Tendring DC,http://statistics.data.gov.uk/id/local-authority-district/22UN,Life Opportunities,H805 - Major Refurbishment of Heating,C200 - Main Contractor,04/02/2014,1057263-1,622.33,REDACTED PERSONAL DATA,REDACTED PERSONAL DATA
Tendring DC,http://statistics.data.gov.uk/id/local-authority-district/22UN,Life Opportunities,H880 - New Build Initiatives and Acquisitions,C200 - Main Contractor,18/02/2014,1057432-1,4590.82,2100138 - British Gas Trading Ltd,GAS HASTINGS PLACE
Tendring DC,http://statistics.data.gov.uk/id/local-authority-district/22UN,Life Opportunities,1880 - Office Accommodation Expenses,2304 - Energy Costs - Electricity,11/02/2014,2113067-1,959.94,2100197 - British Gas Trading Ltd,british gas dec 13
Tendring DC,http://statistics.data.gov.uk/id/local-authority-district/22UN,Life Opportunities,1880 - Office Accommodation Expenses,2304 - Energy Costs - Electricity,11/02/2014,2113067-10,315.63,2100197 - British Gas Trading Ltd,british gas dec 13
Tendring DC,http://statistics.data.gov.uk/id/local-authority-district/22UN,Life Opportunities,1880 - Office Accommodation Expenses,2304 - Energy Costs - Electricity,11/02/2014,2113067-11,-831.92,2100197 - British Gas Trading Ltd,british gas dec 13
Tendring DC,http://statistics.data.gov.uk/id/local-authority-district/22UN,Life Opportunities,1880 - Office Accommodation Expenses,2304 - Energy Costs - Electricity,11/02/2014,2113067-2,173.91,2100197 - British Gas Trading Ltd,british gas dec 13
Tendring DC,http://statistics.data.gov.uk/id/local-authority-district/22UN,Life Opportunities,1860 - Depots General,2304 - Energy Costs - Electricity,11/02/2014,2113067-3,587.5,2100197 - British Gas Trading Ltd,british gas dec 13
Tendring DC,http://statistics.data.gov.uk/id/local-authority-district/22UN,Life Opportunities,1860 - Depots General,2304 - Energy Costs - Electricity,11/02/2014,2113067-4,71.22,2100197 - British Gas Trading Ltd,british gas dec 13
Tendring DC,http://statistics.data.gov.uk/id/local-authority-district/22UN,Life Opportunities,1880 - Office Accommodation Expenses,2304 - Energy Costs - Electricity,11/02/2014,2113067-5,92.59,2100197 - British Gas Trading Ltd,british gas dec 13
Tendring DC,http://statistics.data.gov.uk/id/local-authority-district/22UN,Life Opportunities,1880 - Office Accommodation Expenses,2304 - Energy Costs - Electricity,11/02/2014,2113067-6,285.23,2100197 - British Gas Trading Ltd,british gas dec 13
Tendring DC,http://statistics.data.gov.uk/id/local-authority-district/22UN,Life Opportunities,1880 - Office Accommodation Expenses,2304 - Energy Costs - Electricity,11/02/2014,2113067-7,1049.8,2100197 - British Gas Trading Ltd,british gas dec 13
Tendring DC,http://statistics.data.gov.uk/id/local-authority-district/22UN,Life Opportunities,1880 - Office Accommodation Expenses,2304 - Energy Costs - Electricity,11/02/2014,2113067-8,461.7,2100197 - British Gas Trading Ltd,british gas dec 13
Tendring DC,http://statistics.data.gov.uk/id/local-authority-district/22UN,Life Opportunities,1880 - Office Accommodation Expenses,2304 - Energy Costs - Electricity,11/02/2014,2113067-9,1806.45,2100197 - British Gas Trading Ltd,british gas dec 13
Tendring DC,http://statistics.data.gov.uk/id/local-authority-district/22UN,Life Opportunities,5360 - HRA - Sheltered Units,2304 - Energy Costs - Electricity,11/02/2014,7011409-1,126.89,2100197 - British Gas Trading Ltd,30 VYNTONER HOUSE -FINAL
Tendring DC,http://statistics.data.gov.uk/id/local-authority-district/22UN,Life Opportunities,5340 - HRA - Communal Central Heating,2304 - Energy Costs - Electricity,18/02/2014,7011513-1,2064.08,2100197 - British Gas Trading Ltd,COMMUNAL ELECTRICITY JAN 14
Tendring DC,http://statistics.data.gov.uk/id/local-authority-district/22UN,Life Opportunities,5440 - HRA - Communal Electricity,2304 - Energy Costs - Electricity,18/02/2014,7011513-10,-478.59,2100197 - British Gas Trading Ltd,COMMUNAL ELECTRICITY JAN 14
Tendring DC,http://statistics.data.gov.uk/id/local-authority-district/22UN,Life Opportunities,5360 - HRA - Sheltered Units,2304 - Energy Costs - Electricity,18/02/2014,7011513-2,584.19,2100197 - British Gas Trading Ltd,COMMUNAL ELECTRICITY JAN 14
Tendring DC,http://statistics.data.gov.uk/id/local-authority-district/22UN,Life Opportunities,5440 - HRA - Communal Electricity,2304 - Energy Costs - Electricity,18/02/2014,7011513-3,11190.51,2100197 - British Gas Trading Ltd,COMMUNAL ELECTRICITY JAN 14
Tendring DC,http://statistics.data.gov.uk/id/local-authority-district/22UN,Life Opportunities,7600 - Tourist Information Centres,2304 - Energy Costs - Electricity,18/02/2014,7011513-4,12.06,2100197 - British Gas Trading Ltd,COMMUNAL ELECTRICITY JAN 14
Tendring DC,http://statistics.data.gov.uk/id/local-authority-district/22UN,Life Opportunities,5440 - HRA - Communal Electricity,2304 - Energy Costs - Electricity,18/02/2014,7011513-5,-2398.27,2100197 - British Gas Trading Ltd,COMMUNAL ELECTRICITY JAN 14
Tendring DC,http://statistics.data.gov.uk/id/local-authority-district/22UN,Life Opportunities,5360 - HRA - Sheltered Units,2304 - Energy Costs - Electricity,18/02/2014,7011513-6,-1436.49,2100197 - British Gas Trading Ltd,COMMUNAL ELECTRICITY JAN 14
Tendring DC,http://statistics.data.gov.uk/id/local-authority-district/22UN,Life Opportunities,5440 - HRA - Communal Electricity,2304 - Energy Costs - Electricity,18/02/2014,7011513-7,1061.24,2100197 - British Gas Trading Ltd,COMMUNAL ELECTRICITY JAN 14
Tendring DC,http://statistics.data.gov.uk/id/local-authority-district/22UN,Life Opportunities,5820 - Harwich Sports Centre,2304 - Energy Costs - Electricity,18/02/2014,7011513-8,572.29,2100197 - British Gas Trading Ltd,COMMUNAL ELECTRICITY JAN 14
Tendring DC,http://statistics.data.gov.uk/id/local-authority-district/22UN,Life Opportunities,5860 - Manningtree Sports Centre,2304 - Energy Costs - Electricity,18/02/2014,7011513-9,722.55,2100197 - British Gas Trading Ltd,COMMUNAL ELECTRICITY JAN 14
Tendring DC,http://statistics.data.gov.uk/id/local-authority-district/22UN,Life Opportunities,5440 - HRA - Communal Electricity,2304 - Energy Costs - Electricity,18/02/2014,7011613-1,20.04,2100197 - British Gas Trading Ltd,125-131 CR
Tendring DC,http://statistics.data.gov.uk/id/local-authority-district/22UN,Life Opportunities,8520 - Frinton & Walton Swimming Pool,2304 - Energy Costs - Electricity,25/02/2014,7011688-1,225.75,2100197 - British Gas Trading Ltd,FWSP - BRITISH GAS
Tendring DC,http://statistics.data.gov.uk/id/local-authority-district/22UN,Life Opportunities,6740 - Careline,4718 - Fixed Communication Lines,11/02/2014,7011421-1,145.71,2100168 - British Telecommunications plc,BT BILL - SERVER ROOM
Tendring DC,http://statistics.data.gov.uk/id/local-authority-district/22UN,Life Opportunities,8150 - Office Cleaning,4080 - Materials & Consumables,04/02/2014,1057296-1,200.4,2101624 - Bunzl,CLEANING ORDER WEELEY
Tendring DC,http://statistics.data.gov.uk/id/local-authority-district/22UN,Life Opportunities,8150 - Office Cleaning,4080 - Materials & Consumables,11/02/2014,2113091-1,702.98,2101624 - Bunzl,cleaning order 6/jan
Tendring DC,http://statistics.data.gov.uk/id/local-authority-district/22UN,Life Opportunities,8510 - Dovercourt Swimming Pool & All Weather Facilities,2700 - Cleaning Materials,18/02/2014,2113208-1,32.56,2101624 - Bunzl,dovercourt pool - cleaning
Tendring DC,http://statistics.data.gov.uk/id/local-authority-district/22UN,Life Opportunities,5360 - HRA - Sheltered Units,4040 - Equipment & Tools,18/02/2014,2113230-1,20.56,2101624 - Bunzl,dispensers
Tendring DC,http://statistics.data.gov.uk/id/local-authority-district/22UN,Life Opportunities,8510 - Dovercourt Swimming Pool & All Weather Facilities,2700 - Cleaning Materials,04/02/2014,7011303-1,383.05,2101624 - Bunzl,DOVERCOURT POOL - CLEANING
Tendring DC,http://statistics.data.gov.uk/id/local-authority-district/22UN,Life Opportunities,5820 - Harwich Sports Centre,2700 - Cleaning Materials,04/02/2014,7011313-1,33.46,2101624 - Bunzl,LIMESCALE REMOVER
Tendring DC,http://statistics.data.gov.uk/id/local-authority-district/22UN,Life Opportunities,8520 - Frinton & Walton Swimming Pool,2700 - Cleaning Materials,04/02/2014,7011314-1,76.53,2101624 - Bunzl,FWSP - BUNZL
Tendring DC,http://statistics.data.gov.uk/id/local-authority-district/22UN,Life Opportunities,8540 - Leisure Centre Clacton,2700 - Cleaning Materials,04/02/2014,7011319-1,344.01,2101624 - Bunzl,CLEANING MATERIALS
Tendring DC,http://statistics.data.gov.uk/id/local-authority-district/22UN,Life Opportunities,8540 - Leisure Centre Clacton,2100 - Building Repairs,25/02/2014,7011813-1,44.7,2101624 - Bunzl,OVER SHOES
Tendring DC,http://statistics.data.gov.uk/id/local-authority-district/22UN,Life Opportunities,8540 - Leisure Centre Clacton,2700 - Cleaning Materials,25/02/2014,7011814-1,331.68,2101624 - Bunzl,CLEANING MATERIALS
Tendring DC,http://statistics.data.gov.uk/id/local-authority-district/22UN,Life Opportunities,8540 - Leisure Centre Clacton,4000 - Furniture,18/02/2014,1057430-1,34.95,2113506 - Business Machines Ltd,FORGED NOTE DETECTOR
Tendring DC,http://statistics.data.gov.uk/id/local-authority-district/22UN,Life Opportunities,8540 - Leisure Centre Clacton,2100 - Building Repairs,18/02/2014,7011594-1,119.65,2100280 - C H Lindsey & Son Ltd,COLD SHOWERS LIFESTYLES
Tendring DC,http://statistics.data.gov.uk/id/local-authority-district/22UN,Life Opportunities,8540 - Leisure Centre Clacton,2100 - Building Repairs,18/02/2014,7011595-1,204.12,2100280 - C H Lindsey & Son Ltd,LEAK SPA SHOWER AREA
Tendring DC,http://statistics.data.gov.uk/id/local-authority-district/22UN,Life Opportunities,8510 - Dovercourt Swimming Pool & All Weather Facilities,2100 - Building Repairs,25/02/2014,7011796-1,374,2100280 - C H Lindsey & Son Ltd,DOVERCOURT POOL - BOILER FAN
Tendring DC,http://statistics.data.gov.uk/id/local-authority-district/22UN,Life Opportunities,1650 - Building Services Service Unit,4400 - Maintenance Under Service Agreements,11/02/2014,7011370-1,48.6,2100291 - Canon (UK) Ltd,SERVICE - MARCH 14
Tendring DC,http://statistics.data.gov.uk/id/local-authority-district/22UN,Life Opportunities,5360 - HRA - Sheltered Units,1700 - Training - Courses,11/02/2014,7011443-1,350,2100202 - Capita Business Services Ltd,SHELTERED HOUSING CONFERENCE
Tendring DC,http://statistics.data.gov.uk/id/local-authority-district/22UN,Life Opportunities,"1580 - Benefits, Revenues and Customer Contact SU",3312 - Car Allowances - Car Hire,18/02/2014,7011533-1,25,2104746 - CC Hire,CAR HIRE FOR COURT 24.01.14
Tendring DC,http://statistics.data.gov.uk/id/local-authority-district/22UN,Life Opportunities,"1580 - Benefits, Revenues and Customer Contact SU",3062 - Running Costs - Petrol,18/02/2014,7011533-2,5,2104746 - CC Hire,CAR HIRE FOR COURT 24.01.14
Tendring DC,http://statistics.data.gov.uk/id/local-authority-district/22UN,Life Opportunities,1860 - Depots General,2100 - Building Repairs,04/02/2014,1057297-1,88,2100858 - Chelmer Electrical Ltd,NORTHBOURNE CALLOUT
Tendring DC,http://statistics.data.gov.uk/id/local-authority-district/22UN,Life Opportunities,1880 - Office Accommodation Expenses,2100 - Building Repairs,18/02/2014,2113225-1,66.68,2100858 - Chelmer Electrical Ltd,repair hydroboil in town hall
Tendring DC,http://statistics.data.gov.uk/id/local-authority-district/22UN,Life Opportunities,1880 - Office Accommodation Expenses,2100 - Building Repairs,18/02/2014,2113116-1,18.95,2100205 - Chelmsford Safety Supplies Ltd,metro backback
Tendring DC,http://statistics.data.gov.uk/id/local-authority-district/22UN,Life Opportunities,5220 - HRA - Policy & Management,5253 - HRA Health & Safety Expenses,11/02/2014,7011372-1,50,2100205 - Chelmsford Safety Supplies Ltd,SHOES & HI VIS JACKET - AH
Tendring DC,http://statistics.data.gov.uk/id/local-authority-district/22UN,Life Opportunities,8540 - Leisure Centre Clacton,4000 - Furniture,18/02/2014,7011599-1,119,2100205 - Chelmsford Safety Supplies Ltd,HETTY HOOVER
Tendring DC,http://statistics.data.gov.uk/id/local-authority-district/22UN,Life Opportunities,5220 - HRA - Policy & Management,5253 - HRA Health & Safety Expenses,25/02/2014,7011729-1,15.9,2100205 - Chelmsford Safety Supplies Ltd,BLACK MEDIUM FLEECE JACKET
Tendring DC,http://statistics.data.gov.uk/id/local-authority-district/22UN,Life Opportunities,5140 - Homelessness,4880 - Subscriptions Paid,18/02/2014,2113317-1,70,REDACTED PERSONAL DATA,REDACTED PERSONAL DATA
Tendring DC,http://statistics.data.gov.uk/id/local-authority-district/22UN,Life Opportunities,5140 - Homelessness,4680 - Bed & Breakfast Accommodation,18/02/2014,7011605-1,350,REDACTED PERSONAL DATA,REDACTED PERSONAL DATA
Tendring DC,http://statistics.data.gov.uk/id/local-authority-district/22UN,Life Opportunities,5140 - Homelessness,4680 - Bed & Breakfast Accommodation,18/02/2014,7011606-1,200,REDACTED PERSONAL DATA,REDACTED PERSONAL DATA
Tendring DC,http://statistics.data.gov.uk/id/local-authority-district/22UN,Life Opportunities,5140 - Homelessness,4680 - Bed & Breakfast Accommodation,18/02/2014,7011607-1,250,REDACTED PERSONAL DATA,REDACTED PERSONAL DATA
Tendring DC,http://statistics.data.gov.uk/id/local-authority-district/22UN,Life Opportunities,5140 - Homelessness,4680 - Bed & Breakfast Accommodation,18/02/2014,7011608-1,70,REDACTED PERSONAL DATA,REDACTED PERSONAL DATA
Tendring DC,http://statistics.data.gov.uk/id/local-authority-district/22UN,Life Opportunities,5140 - Homelessness,4680 - Bed & Breakfast Accommodation,18/02/2014,7011609-1,105,REDACTED PERSONAL DATA,REDACTED PERSONAL DATA
Tendring DC,http://statistics.data.gov.uk/id/local-authority-district/22UN,Life Opportunities,1500 - Planning Development Manager,3300 - Public Transport - Officers,04/02/2014,2112983-1,26,REDACTED PERSONAL DATA,REDACTED PERSONAL DATA
Tendring DC,http://statistics.data.gov.uk/id/local-authority-district/22UN,Life Opportunities,5480 - HRA - Repair & Maintenance,2083 - CCTV servicing,25/02/2014,7011751-1,15900,2113346 - Chroma Vision Ltd,SHU CCTV REPLACEMENT
Tendring DC,http://statistics.data.gov.uk/id/local-authority-district/22UN,Life Opportunities,5880 - Management Of Sport & Leisure Facilities,5166 - Marketing and Promotion,25/02/2014,7011817-1,195,2100246 - Chronicle Publishing Services,B & V GAZETTE FEB
Tendring DC,http://statistics.data.gov.uk/id/local-authority-district/22UN,Life Opportunities,5480 - HRA - Repair & Maintenance,2073 - Smoke Alarm Service/Testing,11/02/2014,2113030-1,170,2100237 - Cirrus Communication Systems Ltd,mead house
Tendring DC,http://statistics.data.gov.uk/id/local-authority-district/22UN,Life Opportunities,5360 - HRA - Sheltered Units,4040 - Equipment & Tools,11/02/2014,7011371-1,806.66,2100237 - Cirrus Communication Systems Ltd,ST MARYS CT
Tendring DC,http://statistics.data.gov.uk/id/local-authority-district/22UN,Life Opportunities,1880 - Office Accommodation Expenses,4080 - Materials & Consumables,11/02/2014,2113028-1,340.08,2100267 - City Electrical Factors Ltd Anglia Division,tubes and recycling oa01
Tendring DC,http://statistics.data.gov.uk/id/local-authority-district/22UN,Life Opportunities,5800 - Brightlingsea Sports Centre,2100 - Building Repairs,25/02/2014,7011815-1,50,2100218 - Clacton Electronics Ltd,CLACTON ELEC LTD
Tendring DC,http://statistics.data.gov.uk/id/local-authority-district/22UN,Life Opportunities,6160 - Princes Theatre,5308 - Ice Cream,25/02/2014,7011698-1,122.88,2113508 - Clacton Ice Cream Ltd,ICE CREAM FOR THEATRE
Tendring DC,http://statistics.data.gov.uk/id/local-authority-district/22UN,Life Opportunities,6160 - Princes Theatre,5308 - Ice Cream,25/02/2014,7011725-1,80.54,2113508 - Clacton Ice Cream Ltd,ICE CREAM FOR THEATRE
Tendring DC,http://statistics.data.gov.uk/id/local-authority-district/22UN,Life Opportunities,1880 - Office Accommodation Expenses,2100 - Building Repairs,25/02/2014,7011776-1,79.13,2100258 - Clacton Tile Centre Ltd,FACILITIES ORDER X 5 TOILET SEATS / CRESTALUX TRV X 1
Tendring DC,http://statistics.data.gov.uk/id/local-authority-district/22UN,Life Opportunities,5140 - Homelessness,4681 - Homelessness Grants,11/02/2014,2113092-1,20518,2102603 - Colchester & Tendring Women's Refuge,ctwr 2014/15
Tendring DC,http://statistics.data.gov.uk/id/local-authority-district/22UN,Life Opportunities,5140 - Homelessness,4683 - Other Homelessness Expenses,11/02/2014,2113092-2,4988,2102603 - Colchester & Tendring Women's Refuge,ctwr 2014/15
Tendring DC,http://statistics.data.gov.uk/id/local-authority-district/22UN,Life Opportunities,5860 - Manningtree Sports Centre,4597 - Hired Services - Payments to Contractors,25/02/2014,7011775-1,630,2112840 - Colchester School of Gymnastics,GYMNASTICS COACHING X 42 HRS
Tendring DC,http://statistics.data.gov.uk/id/local-authority-district/22UN,Life Opportunities,8540 - Leisure Centre Clacton,4597 - Hired Services - Payments to Contractors,25/02/2014,7011807-1,480,2111358 - Colchester United FC Ltd Youth,FRI 10.01.14 - 4.4.14
Tendring DC,http://statistics.data.gov.uk/id/local-authority-district/22UN,Life Opportunities,H860 - Disabled Adaptations,C200 - Main Contractor,25/02/2014,7011818-1,7845,REDACTED PERSONAL DATA,REDACTED PERSONAL DATA
Tendring DC,http://statistics.data.gov.uk/id/local-authority-district/22UN,Life Opportunities,"1580 - Benefits, Revenues and Customer Contact SU",4462 - Bailiffs and Tracing Agent Fees re debt recovery,04/02/2014,1057292-1,796.5,2100381 - Collect Services Ltd,VAT ON FEES COLLECTED NNDR
Tendring DC,http://statistics.data.gov.uk/id/local-authority-district/22UN,Life Opportunities,"1580 - Benefits, Revenues and Customer Contact SU",4462 - Bailiffs and Tracing Agent Fees re debt recovery,04/02/2014,1057292-2,-796.5,2100381 - Collect Services Ltd,VAT ON FEES COLLECTED NNDR
Tendring DC,http://statistics.data.gov.uk/id/local-authority-district/22UN,Life Opportunities,"1580 - Benefits, Revenues and Customer Contact SU",4462 - Bailiffs and Tracing Agent Fees re debt recovery,04/02/2014,1057293-1,2980.74,2100381 - Collect Services Ltd,VAT ON FEES COLLECTED CT
Tendring DC,http://statistics.data.gov.uk/id/local-authority-district/22UN,Life Opportunities,"1580 - Benefits, Revenues and Customer Contact SU",4462 - Bailiffs and Tracing Agent Fees re debt recovery,04/02/2014,1057293-2,-2980.74,2100381 - Collect Services Ltd,VAT ON FEES COLLECTED CT
Tendring DC,http://statistics.data.gov.uk/id/local-authority-district/22UN,Life Opportunities,"1580 - Benefits, Revenues and Customer Contact SU",4462 - Bailiffs and Tracing Agent Fees re debt recovery,04/02/2014,1057293-3,5,2100381 - Collect Services Ltd,VAT ON FEES COLLECTED CT
Tendring DC,http://statistics.data.gov.uk/id/local-authority-district/22UN,Life Opportunities,"1580 - Benefits, Revenues and Customer Contact SU",4462 - Bailiffs and Tracing Agent Fees re debt recovery,04/02/2014,1057293-4,-5,2100381 - Collect Services Ltd,VAT ON FEES COLLECTED CT
Tendring DC,http://statistics.data.gov.uk/id/local-authority-district/22UN,Life Opportunities,"1580 - Benefits, Revenues and Customer Contact SU",4462 - Bailiffs and Tracing Agent Fees re debt recovery,18/02/2014,2113119-1,2258.51,2100381 - Collect Services Ltd,vat on fees collected ct
Tendring DC,http://statistics.data.gov.uk/id/local-authority-district/22UN,Life Opportunities,"1580 - Benefits, Revenues and Customer Contact SU",4462 - Bailiffs and Tracing Agent Fees re debt recovery,18/02/2014,2113119-2,-2258.51,2100381 - Collect Services Ltd,vat on fees collected ct
Tendring DC,http://statistics.data.gov.uk/id/local-authority-district/22UN,Life Opportunities,"1580 - Benefits, Revenues and Customer Contact SU",4462 - Bailiffs and Tracing Agent Fees re debt recovery,18/02/2014,2113120-1,102.5,2100381 - Collect Services Ltd,vat on fees collected nndr
Tendring DC,http://statistics.data.gov.uk/id/local-authority-district/22UN,Life Opportunities,"1580 - Benefits, Revenues and Customer Contact SU",4462 - Bailiffs and Tracing Agent Fees re debt recovery,18/02/2014,2113120-2,-102.5,2100381 - Collect Services Ltd,vat on fees collected nndr
Tendring DC,http://statistics.data.gov.uk/id/local-authority-district/22UN,Life Opportunities,"1580 - Benefits, Revenues and Customer Contact SU",4462 - Bailiffs and Tracing Agent Fees re debt recovery,18/02/2014,2113276-1,42.5,2100381 - Collect Services Ltd,vat on fees collected nndr
Tendring DC,http://statistics.data.gov.uk/id/local-authority-district/22UN,Life Opportunities,"1580 - Benefits, Revenues and Customer Contact SU",4462 - Bailiffs and Tracing Agent Fees re debt recovery,18/02/2014,2113276-2,-42.5,2100381 - Collect Services Ltd,vat on fees collected nndr
Tendring DC,http://statistics.data.gov.uk/id/local-authority-district/22UN,Life Opportunities,"1580 - Benefits, Revenues and Customer Contact SU",5189 - External Debt Recovery Commission,18/02/2014,2113277-1,338.48,2100381 - Collect Services Ltd,15% commission recovered
Tendring DC,http://statistics.data.gov.uk/id/local-authority-district/22UN,Life Opportunities,"1580 - Benefits, Revenues and Customer Contact SU",4462 - Bailiffs and Tracing Agent Fees re debt recovery,18/02/2014,2113278-1,5,2100381 - Collect Services Ltd,vat on fees collected
Tendring DC,http://statistics.data.gov.uk/id/local-authority-district/22UN,Life Opportunities,"1580 - Benefits, Revenues and Customer Contact SU",4462 - Bailiffs and Tracing Agent Fees re debt recovery,18/02/2014,2113278-2,-5,2100381 - Collect Services Ltd,vat on fees collected
Tendring DC,http://statistics.data.gov.uk/id/local-authority-district/22UN,Life Opportunities,"1580 - Benefits, Revenues and Customer Contact SU",4462 - Bailiffs and Tracing Agent Fees re debt recovery,18/02/2014,2113278-3,3293.51,2100381 - Collect Services Ltd,vat on fees collected
Tendring DC,http://statistics.data.gov.uk/id/local-authority-district/22UN,Life Opportunities,"1580 - Benefits, Revenues and Customer Contact SU",4462 - Bailiffs and Tracing Agent Fees re debt recovery,18/02/2014,2113278-4,-3293.51,2100381 - Collect Services Ltd,vat on fees collected
Tendring DC,http://statistics.data.gov.uk/id/local-authority-district/22UN,Life Opportunities,9900 - General Fund Balance Sheet,B863 - Bailiff Payments Holding Account,11/02/2014,1057379-1,2439.65,REDACTED COMMERCIAL CONFIDENTIALITY,REDACTED COMMERCIAL CONFIDENTIALITY
Tendring DC,http://statistics.data.gov.uk/id/local-authority-district/22UN,Life Opportunities,9920 - HRA Balance Sheet,B860 - Housing Rents - Cash,18/02/2014,1057446-1,2668.5,REDACTED COMMERCIAL CONFIDENTIALITY,REDACTED COMMERCIAL CONFIDENTIALITY
Tendring DC,http://statistics.data.gov.uk/id/local-authority-district/22UN,Life Opportunities,9900 - General Fund Balance Sheet,B863 - Bailiff Payments Holding Account,25/02/2014,1057617-1,1665,REDACTED COMMERCIAL CONFIDENTIALITY,REDACTED COMMERCIAL CONFIDENTIALITY
Tendring DC,http://statistics.data.gov.uk/id/local-authority-district/22UN,Life Opportunities,9900 - General Fund Balance Sheet,B863 - Bailiff Payments Holding Account,04/02/2014,2112991-1,2016,REDACTED COMMERCIAL CONFIDENTIALITY,REDACTED COMMERCIAL CONFIDENTIALITY
Tendring DC,http://statistics.data.gov.uk/id/local-authority-district/22UN,Life Opportunities,6920 - Youth Initiatives,5164 - Project Expenses,04/02/2014,7011325-1,1000,2112221 - Colne Yacht Club,GRANT FOR 2 X DINGHIES
Tendring DC,http://statistics.data.gov.uk/id/local-authority-district/22UN,Life Opportunities,8520 - Frinton & Walton Swimming Pool,4400 - Maintenance Under Service Agreements,18/02/2014,7011665-1,489,2110353 - Contract Fire Security,FWSP
Tendring DC,http://statistics.data.gov.uk/id/local-authority-district/22UN,Life Opportunities,5480 - HRA - Repair & Maintenance,2006 - Responsive Maintenance - Plumbing,04/02/2014,1057192-1,58.63,REDACTED PERSONAL DATA,REDACTED PERSONAL DATA
Tendring DC,http://statistics.data.gov.uk/id/local-authority-district/22UN,Life Opportunities,H920 - Disabled Facilities Grants,C400 - Grant payments,25/02/2014,1057481-1,7541.77,REDACTED PERSONAL DATA,REDACTED PERSONAL DATA
Tendring DC,http://statistics.data.gov.uk/id/local-authority-district/22UN,Life Opportunities,8540 - Leisure Centre Clacton,2308 - Energy Costs - Gas (Including LPG),25/02/2014,1057475-1,-2280.59,2104620 - Corona Energy Retail 4 Limited,NOVEMBER CREDIT
Tendring DC,http://statistics.data.gov.uk/id/local-authority-district/22UN,Life Opportunities,8540 - Leisure Centre Clacton,2308 - Energy Costs - Gas (Including LPG),25/02/2014,1057476-1,-3549.96,2104620 - Corona Energy Retail 4 Limited,DECEMBER CREDIT
Tendring DC,http://statistics.data.gov.uk/id/local-authority-district/22UN,Life Opportunities,5340 - HRA - Communal Central Heating,2308 - Energy Costs - Gas (Including LPG),18/02/2014,7011531-1,9181.63,2104620 - Corona Energy Retail 4 Limited,GAS JAN 14 SHU
Tendring DC,http://statistics.data.gov.uk/id/local-authority-district/22UN,Life Opportunities,1860 - Depots General,2308 - Energy Costs - Gas (Including LPG),18/02/2014,7011532-1,300.73,2104620 - Corona Energy Retail 4 Limited,CORONA ENERGY DEC 13
Tendring DC,http://statistics.data.gov.uk/id/local-authority-district/22UN,Life Opportunities,1880 - Office Accommodation Expenses,2308 - Energy Costs - Gas (Including LPG),18/02/2014,7011532-2,67.87,2104620 - Corona Energy Retail 4 Limited,CORONA ENERGY DEC 13
Tendring DC,http://statistics.data.gov.uk/id/local-authority-district/22UN,Life Opportunities,1880 - Office Accommodation Expenses,2308 - Energy Costs - Gas (Including LPG),18/02/2014,7011532-3,195.36,2104620 - Corona Energy Retail 4 Limited,CORONA ENERGY DEC 13
Tendring DC,http://statistics.data.gov.uk/id/local-authority-district/22UN,Life Opportunities,1880 - Office Accommodation Expenses,2308 - Energy Costs - Gas (Including LPG),18/02/2014,7011532-4,44.18,2104620 - Corona Energy Retail 4 Limited,CORONA ENERGY DEC 13
Tendring DC,http://statistics.data.gov.uk/id/local-authority-district/22UN,Life Opportunities,1880 - Office Accommodation Expenses,2308 - Energy Costs - Gas (Including LPG),18/02/2014,7011532-5,1871.06,2104620 - Corona Energy Retail 4 Limited,CORONA ENERGY DEC 13
Tendring DC,http://statistics.data.gov.uk/id/local-authority-district/22UN,Life Opportunities,6160 - Princes Theatre,2308 - Energy Costs - Gas (Including LPG),18/02/2014,7011532-6,207.9,2104620 - Corona Energy Retail 4 Limited,CORONA ENERGY DEC 13
Tendring DC,http://statistics.data.gov.uk/id/local-authority-district/22UN,Life Opportunities,8540 - Leisure Centre Clacton,2308 - Energy Costs - Gas (Including LPG),25/02/2014,7011782-1,2919.26,2104620 - Corona Energy Retail 4 Limited,JANUARY
Tendring DC,http://statistics.data.gov.uk/id/local-authority-district/22UN,Life Opportunities,8540 - Leisure Centre Clacton,2308 - Energy Costs - Gas (Including LPG),25/02/2014,7011783-1,2973.68,2104620 - Corona Energy Retail 4 Limited,DECEMBER CORRECTED
Tendring DC,http://statistics.data.gov.uk/id/local-authority-district/22UN,Life Opportunities,8540 - Leisure Centre Clacton,2308 - Energy Costs - Gas (Including LPG),25/02/2014,7011784-1,2058.16,2104620 - Corona Energy Retail 4 Limited,NOVEMBER CORRECTED
Tendring DC,http://statistics.data.gov.uk/id/local-authority-district/22UN,Life Opportunities,8510 - Dovercourt Swimming Pool & All Weather Facilities,2308 - Energy Costs - Gas (Including LPG),25/02/2014,7011798-1,7952.57,2104620 - Corona Energy Retail 4 Limited,DOVERCOURT POOL - GAS
Tendring DC,http://statistics.data.gov.uk/id/local-authority-district/22UN,Life Opportunities,5240 - HRA - Managing Tenancies,5242 - Tenant Relations,04/02/2014,1057357-1,0.4,2104177 - Corporate Document Services Ltd,RE INVOICE NUMBER 144042
Tendring DC,http://statistics.data.gov.uk/id/local-authority-district/22UN,Life Opportunities,5140 - Homelessness,4683 - Other Homelessness Expenses,25/02/2014,1057487-1,450,REDACTED PERSONAL DATA,REDACTED PERSONAL DATA
Tendring DC,http://statistics.data.gov.uk/id/local-authority-district/22UN,Life Opportunities,5880 - Management Of Sport & Leisure Facilities,2100 - Building Repairs,04/02/2014,7011317-1,550,2100183 - CR Services,CR SERVICES
Tendring DC,http://statistics.data.gov.uk/id/local-authority-district/22UN,Life Opportunities,5240 - HRA - Managing Tenancies,5242 - Tenant Relations,11/02/2014,7011377-1,43.13,2102038 - Crispins Sandwich Bar Ltd,SANDWICH PLATTERS WEELEY
Tendring DC,http://statistics.data.gov.uk/id/local-authority-district/22UN,Life Opportunities,5480 - HRA - Repair & Maintenance,2004 - Responsive Maintenance - Roofing,18/02/2014,1057394-1,1500,REDACTED PERSONAL DATA,REDACTED PERSONAL DATA
Tendring DC,http://statistics.data.gov.uk/id/local-authority-district/22UN,Life Opportunities,5480 - HRA - Repair & Maintenance,2088 - Disabled Adaptations,18/02/2014,1057391-1,80,REDACTED PERSONAL DATA,REDACTED PERSONAL DATA
Tendring DC,http://statistics.data.gov.uk/id/local-authority-district/22UN,Life Opportunities,5480 - HRA - Repair & Maintenance,2088 - Disabled Adaptations,18/02/2014,1057391-2,30,REDACTED PERSONAL DATA,REDACTED PERSONAL DATA
Tendring DC,http://statistics.data.gov.uk/id/local-authority-district/22UN,Life Opportunities,6160 - Princes Theatre,4597 - Hired Services - Payments to Contractors,11/02/2014,7011379-1,2.76,2100397 - Danes of Colchester Ltd,TABLECLOTH 6.1.14
Tendring DC,http://statistics.data.gov.uk/id/local-authority-district/22UN,Life Opportunities,6160 - Princes Theatre,4597 - Hired Services - Payments to Contractors,11/02/2014,7011380-1,5.33,2100397 - Danes of Colchester Ltd,TOWEL 10.01.14
Tendring DC,http://statistics.data.gov.uk/id/local-authority-district/22UN,Life Opportunities,6160 - Princes Theatre,4597 - Hired Services - Payments to Contractors,11/02/2014,7011381-1,4.14,2100397 - Danes of Colchester Ltd,TABLECLOTH 14.1.14
Tendring DC,http://statistics.data.gov.uk/id/local-authority-district/22UN,Life Opportunities,6160 - Princes Theatre,4597 - Hired Services - Payments to Contractors,11/02/2014,7011382-1,11.54,2100397 - Danes of Colchester Ltd,TABLECLOTH 17.01.14
Tendring DC,http://statistics.data.gov.uk/id/local-authority-district/22UN,Life Opportunities,6420 - Cost Of Council Tax Collection,4597 - Hired Services - Payments to Contractors,18/02/2014,2113279-1,1311,2110767 - Datatank Ltd,spd reviews january
Tendring DC,http://statistics.data.gov.uk/id/local-authority-district/22UN,Life Opportunities,5140 - Homelessness,4683 - Other Homelessness Expenses,25/02/2014,1057488-1,435,REDACTED PERSONAL DATA,REDACTED PERSONAL DATA
Tendring DC,http://statistics.data.gov.uk/id/local-authority-district/22UN,Life Opportunities,5480 - HRA - Repair & Maintenance,2071 - Electric Installation Testing,18/02/2014,1057451-1,643.6,2113648 - David Stagg and Associates Ltd,TEST INSPECT UPGRADE 5 PROPERTIES
Tendring DC,http://statistics.data.gov.uk/id/local-authority-district/22UN,Life Opportunities,5480 - HRA - Repair & Maintenance,2072 - Planned Partial Refurbishment To Electrical Instal,18/02/2014,1057451-2,2591.11,2113648 - David Stagg and Associates Ltd,TEST INSPECT UPGRADE 5 PROPERTIES
Tendring DC,http://statistics.data.gov.uk/id/local-authority-district/22UN,Life Opportunities,8510 - Dovercourt Swimming Pool & All Weather Facilities,2100 - Building Repairs,04/02/2014,7011302-1,68,2100359 - Derek Taylor Engineering,DOVERCOURT POOL - REPAIR
Tendring DC,http://statistics.data.gov.uk/id/local-authority-district/22UN,Life Opportunities,1880 - Office Accommodation Expenses,2100 - Building Repairs,04/02/2014,1057277-1,247.74,2100490 - DORMA UK Ltd - Service Division,MAINTENANCE AGREEMENT WEELEY
Tendring DC,http://statistics.data.gov.uk/id/local-authority-district/22UN,Life Opportunities,1880 - Office Accommodation Expenses,2100 - Building Repairs,25/02/2014,1057513-1,316.64,2100490 - DORMA UK Ltd - Service Division,ROLLER BLIND WEELEY
Tendring DC,http://statistics.data.gov.uk/id/local-authority-district/22UN,Life Opportunities,5480 - HRA - Repair & Maintenance,2068 - Other Minor Equipment Repairs,04/02/2014,7011305-1,340.25,2100490 - DORMA UK Ltd - Service Division,VYNTONER HOUSE
Tendring DC,http://statistics.data.gov.uk/id/local-authority-district/22UN,Life Opportunities,5860 - Manningtree Sports Centre,4597 - Hired Services - Payments to Contractors,18/02/2014,2113196-1,75,2112824 - Dynamic Stability,pilates
Tendring DC,http://statistics.data.gov.uk/id/local-authority-district/22UN,Life Opportunities,5820 - Harwich Sports Centre,4597 - Hired Services - Payments to Contractors,18/02/2014,2113202-1,75,2112824 - Dynamic Stability,pilates classes
Tendring DC,http://statistics.data.gov.uk/id/local-authority-district/22UN,Life Opportunities,5440 - HRA - Communal Electricity,2304 - Energy Costs - Electricity,04/02/2014,1057272-1,72.64,2107521 - E.On,VICTORIA CT TO 24/12/13
Tendring DC,http://statistics.data.gov.uk/id/local-authority-district/22UN,Life Opportunities,5480 - HRA - Repair & Maintenance,2304 - Energy Costs - Electricity,11/02/2014,2113096-1,9.85,REDACTED PERSONAL DATA,REDACTED PERSONAL DATA
Tendring DC,http://statistics.data.gov.uk/id/local-authority-district/22UN,Life Opportunities,5440 - HRA - Communal Electricity,2304 - Energy Costs - Electricity,18/02/2014,2113262-1,47.31,REDACTED PERSONAL DATA,REDACTED PERSONAL DATA
Tendring DC,http://statistics.data.gov.uk/id/local-authority-district/22UN,Life Opportunities,5440 - HRA - Communal Electricity,2304 - Energy Costs - Electricity,18/02/2014,2113263-1,25.25,REDACTED PERSONAL DATA,REDACTED PERSONAL DATA
Tendring DC,http://statistics.data.gov.uk/id/local-authority-district/22UN,Life Opportunities,5440 - HRA - Communal Electricity,2304 - Energy Costs - Electricity,18/02/2014,2113264-1,25.25,REDACTED PERSONAL DATA,REDACTED PERSONAL DATA
Tendring DC,http://statistics.data.gov.uk/id/local-authority-district/22UN,Life Opportunities,5440 - HRA - Communal Electricity,2304 - Energy Costs - Electricity,18/02/2014,2113265-1,25.25,REDACTED PERSONAL DATA,REDACTED PERSONAL DATA
Tendring DC,http://statistics.data.gov.uk/id/local-authority-district/22UN,Life Opportunities,5440 - HRA - Communal Electricity,2304 - Energy Costs - Electricity,18/02/2014,2113266-1,25.25,REDACTED PERSONAL DATA,REDACTED PERSONAL DATA
Tendring DC,http://statistics.data.gov.uk/id/local-authority-district/22UN,Life Opportunities,5440 - HRA - Communal Electricity,2304 - Energy Costs - Electricity,18/02/2014,2113267-1,25.25,REDACTED PERSONAL DATA,REDACTED PERSONAL DATA
Tendring DC,http://statistics.data.gov.uk/id/local-authority-district/22UN,Life Opportunities,5440 - HRA - Communal Electricity,2304 - Energy Costs - Electricity,18/02/2014,2113268-1,25.25,REDACTED PERSONAL DATA,REDACTED PERSONAL DATA
Tendring DC,http://statistics.data.gov.uk/id/local-authority-district/22UN,Life Opportunities,5480 - HRA - Repair & Maintenance,2304 - Energy Costs - Electricity,25/02/2014,7011727-1,35.16,REDACTED PERSONAL DATA,REDACTED PERSONAL DATA
Tendring DC,http://statistics.data.gov.uk/id/local-authority-district/22UN,Life Opportunities,5480 - HRA - Repair & Maintenance,2304 - Energy Costs - Electricity,25/02/2014,7011730-1,25.97,REDACTED PERSONAL DATA,REDACTED PERSONAL DATA
Tendring DC,http://statistics.data.gov.uk/id/local-authority-district/22UN,Life Opportunities,H810 - Electrical Re-wiring,C200 - Main Contractor,11/02/2014,7011375-1,3513.91,2110229 - East Coast Electrical Contractors Ltd,UPGRADE OF LANDLORDS LIGHTING  AT THORPE
Tendring DC,http://statistics.data.gov.uk/id/local-authority-district/22UN,Life Opportunities,H810 - Electrical Re-wiring,C200 - Main Contractor,11/02/2014,7011376-1,5830.69,2110229 - East Coast Electrical Contractors Ltd,LANDLORDS INSTALLATION WALTON
Tendring DC,http://statistics.data.gov.uk/id/local-authority-district/22UN,Life Opportunities,8540 - Leisure Centre Clacton,2304 - Energy Costs - Electricity,18/02/2014,7011616-1,7655.55,2105146 - EDF Energy 1 Ltd,JANUARY
Tendring DC,http://statistics.data.gov.uk/id/local-authority-district/22UN,Life Opportunities,1880 - Office Accommodation Expenses,2304 - Energy Costs - Electricity,18/02/2014,7011629-1,5016.08,2105146 - EDF Energy 1 Ltd,EDF TOWN HALL & THEATRE JAN 14
Tendring DC,http://statistics.data.gov.uk/id/local-authority-district/22UN,Life Opportunities,6160 - Princes Theatre,2304 - Energy Costs - Electricity,18/02/2014,7011629-2,557.34,2105146 - EDF Energy 1 Ltd,EDF TOWN HALL & THEATRE JAN 14
Tendring DC,http://statistics.data.gov.uk/id/local-authority-district/22UN,Life Opportunities,8510 - Dovercourt Swimming Pool & All Weather Facilities,2304 - Energy Costs - Electricity,18/02/2014,7011662-1,3272.05,2105146 - EDF Energy 1 Ltd,JAN DOVERCOURT POOL
Tendring DC,http://statistics.data.gov.uk/id/local-authority-district/22UN,Life Opportunities,H920 - Disabled Facilities Grants,C400 - Grant payments,25/02/2014,1057510-1,4290,REDACTED PERSONAL DATA,REDACTED PERSONAL DATA
Tendring DC,http://statistics.data.gov.uk/id/local-authority-district/22UN,Life Opportunities,5480 - HRA - Repair & Maintenance,2017 - Mechanical Equipment /Extract Fans,04/02/2014,1057262-1,78.05,REDACTED PERSONAL DATA,REDACTED PERSONAL DATA
Tendring DC,http://statistics.data.gov.uk/id/local-authority-district/22UN,Life Opportunities,5140 - Homelessness,4680 - Bed & Breakfast Accommodation,18/02/2014,7011610-1,715,REDACTED PERSONAL DATA,REDACTED PERSONAL DATA
Tendring DC,http://statistics.data.gov.uk/id/local-authority-district/22UN,Life Opportunities,5140 - Homelessness,4680 - Bed & Breakfast Accommodation,18/02/2014,7011628-1,180,REDACTED PERSONAL DATA,REDACTED PERSONAL DATA
Tendring DC,http://statistics.data.gov.uk/id/local-authority-district/22UN,Life Opportunities,8540 - Leisure Centre Clacton,4400 - Maintenance Under Service Agreements,25/02/2014,7011806-1,272,2111548 - Essex Lift Services Ltd,LIFT SERVICE FEB - JULY 14
Tendring DC,http://statistics.data.gov.uk/id/local-authority-district/22UN,Life Opportunities,8540 - Leisure Centre Clacton,4400 - Maintenance Under Service Agreements,04/02/2014,7011287-1,200.05,2100531 - Euro-Fire Ltd,SERVICE FIRE EXTINGUISHERS
Tendring DC,http://statistics.data.gov.uk/id/local-authority-district/22UN,Life Opportunities,7520 - Tourism Publicity Marketing Promotion,5160 - Advertising,11/02/2014,2113093-1,350,2109598 - Expo Management,2014 ad entry for odc yearbook
Tendring DC,http://statistics.data.gov.uk/id/local-authority-district/22UN,Life Opportunities,5480 - HRA - Repair & Maintenance,2058 - Fire Alarms Repairs,18/02/2014,2113193-1,50,2108583 - Firesite,honeycroft
Tendring DC,http://statistics.data.gov.uk/id/local-authority-district/22UN,Life Opportunities,5480 - HRA - Repair & Maintenance,2058 - Fire Alarms Repairs,04/02/2014,7011300-1,50,2108583 - Firesite,VYNTONER HOUSE
Tendring DC,http://statistics.data.gov.uk/id/local-authority-district/22UN,Life Opportunities,5480 - HRA - Repair & Maintenance,2058 - Fire Alarms Repairs,04/02/2014,7011301-1,50,2108583 - Firesite,KATE DANIELS HOUSE
Tendring DC,http://statistics.data.gov.uk/id/local-authority-district/22UN,Life Opportunities,5480 - HRA - Repair & Maintenance,2058 - Fire Alarms Repairs,11/02/2014,7011408-1,50,2108583 - Firesite,KATE DANIELS HOUSE
Tendring DC,http://statistics.data.gov.uk/id/local-authority-district/22UN,Life Opportunities,7600 - Tourist Information Centres,9356 - Commission Sales,04/02/2014,2112984-1,2265,2103743 - First Essex Buses Ltd,First Essex Buses January 14
Tendring DC,http://statistics.data.gov.uk/id/local-authority-district/22UN,Life Opportunities,7600 - Tourist Information Centres,9356 - Commission Sales,04/02/2014,2112984-2,-226.5,2103743 - First Essex Buses Ltd,First Essex Buses January 14
Tendring DC,http://statistics.data.gov.uk/id/local-authority-district/22UN,Life Opportunities,5480 - HRA - Repair & Maintenance,2089 - Sewer Repairs,18/02/2014,2113289-1,460,REDACTED PERSONAL DATA,REDACTED PERSONAL DATA
Tendring DC,http://statistics.data.gov.uk/id/local-authority-district/22UN,Life Opportunities,5480 - HRA - Repair & Maintenance,2089 - Sewer Repairs,18/02/2014,2113290-1,460,REDACTED PERSONAL DATA,REDACTED PERSONAL DATA
Tendring DC,http://statistics.data.gov.uk/id/local-authority-district/22UN,Life Opportunities,5480 - HRA - Repair & Maintenance,2089 - Sewer Repairs,18/02/2014,2113291-1,460,REDACTED PERSONAL DATA,REDACTED PERSONAL DATA
Tendring DC,http://statistics.data.gov.uk/id/local-authority-district/22UN,Life Opportunities,H920 - Disabled Facilities Grants,C400 - Grant payments,18/02/2014,1057403-1,972,REDACTED PERSONAL DATA,REDACTED PERSONAL DATA
Tendring DC,http://statistics.data.gov.uk/id/local-authority-district/22UN,Life Opportunities,H920 - Disabled Facilities Grants,C400 - Grant payments,18/02/2014,1057404-1,1585.07,REDACTED PERSONAL DATA,REDACTED PERSONAL DATA
Tendring DC,http://statistics.data.gov.uk/id/local-authority-district/22UN,Life Opportunities,H920 - Disabled Facilities Grants,C400 - Grant payments,25/02/2014,1057505-1,2735.6,REDACTED PERSONAL DATA,REDACTED PERSONAL DATA
Tendring DC,http://statistics.data.gov.uk/id/local-authority-district/22UN,Life Opportunities,1880 - Office Accommodation Expenses,4632 - Security,11/02/2014,2113094-1,83,2100546 - GCS Alarms,town hall call out
Tendring DC,http://statistics.data.gov.uk/id/local-authority-district/22UN,Life Opportunities,1860 - Depots General,4632 - Security,18/02/2014,2113117-1,114,2100546 - GCS Alarms,replace dt11 northbourne
Tendring DC,http://statistics.data.gov.uk/id/local-authority-district/22UN,Life Opportunities,8520 - Frinton & Walton Swimming Pool,4400 - Maintenance Under Service Agreements,18/02/2014,7011666-1,80,2100546 - GCS Alarms,FWSP
Tendring DC,http://statistics.data.gov.uk/id/local-authority-district/22UN,Life Opportunities,8540 - Leisure Centre Clacton,2100 - Building Repairs,18/02/2014,7011667-1,125,2100546 - GCS Alarms,CALL OUT 1ST AID ROOM
Tendring DC,http://statistics.data.gov.uk/id/local-authority-district/22UN,Life Opportunities,5820 - Harwich Sports Centre,4400 - Maintenance Under Service Agreements,25/02/2014,7011792-1,359,2100546 - GCS Alarms,ANNUAL MAINT CONTRACT FOR ALARM
Tendring DC,http://statistics.data.gov.uk/id/local-authority-district/22UN,Life Opportunities,5820 - Harwich Sports Centre,4040 - Equipment & Tools,25/02/2014,7011793-1,7.95,2100546 - GCS Alarms,NEW FOB
Tendring DC,http://statistics.data.gov.uk/id/local-authority-district/22UN,Life Opportunities,5480 - HRA - Repair & Maintenance,2018 - Other Responsive Repairs,04/02/2014,1057264-1,26.5,REDACTED PERSONAL DATA,REDACTED PERSONAL DATA
Tendring DC,http://statistics.data.gov.uk/id/local-authority-district/22UN,Life Opportunities,5480 - HRA - Repair & Maintenance,2018 - Other Responsive Repairs,11/02/2014,2113021-1,180,REDACTED PERSONAL DATA,REDACTED PERSONAL DATA
Tendring DC,http://statistics.data.gov.uk/id/local-authority-district/22UN,Life Opportunities,1100 - Corporate Director (Corporate Services) and Admin Service Unit,3300 - Public Transport - Officers,04/02/2014,2112985-1,17,2113680 - Georgia Dodd,Career Track Travel
Tendring DC,http://statistics.data.gov.uk/id/local-authority-district/22UN,Life Opportunities,7610 - TDC Events - Council Owned Land,4094 - Other Equipment Hire/Leasing,11/02/2014,7011374-1,1995,2113616 - Get Cycling CiC,BIKE TRY OUT 09.05.14
Tendring DC,http://statistics.data.gov.uk/id/local-authority-district/22UN,Life Opportunities,7610 - TDC Events - Council Owned Land,4094 - Other Equipment Hire/Leasing,11/02/2014,7011411-1,2000,2108039 - Grand Theatre Of Lemmings,WOMENS CYCLE & CENTENARY EVENTS
Tendring DC,http://statistics.data.gov.uk/id/local-authority-district/22UN,Life Opportunities,6160 - Princes Theatre,4040 - Equipment & Tools,25/02/2014,7011777-1,38.25,2113730 - Green Magic Co Uk Ltd,"A3, A4 SNAP FRAMES"
Tendring DC,http://statistics.data.gov.uk/id/local-authority-district/22UN,Life Opportunities,5240 - HRA - Managing Tenancies,5248 - Estate Management Expenses,25/02/2014,7011777-2,34,2113730 - Green Magic Co Uk Ltd,"A3, A4 SNAP FRAMES"
Tendring DC,http://statistics.data.gov.uk/id/local-authority-district/22UN,Life Opportunities,1880 - Office Accommodation Expenses,2100 - Building Repairs,11/02/2014,2113097-1,95,2106272 - Greenleaf Pest Control Services,flea treatment pier avenue
Tendring DC,http://statistics.data.gov.uk/id/local-authority-district/22UN,Life Opportunities,"1580 - Benefits, Revenues and Customer Contact SU",4355 - Books & Periodicals,18/02/2014,2113280-1,149,2106992 - GTS Media Ltd,12 month subscription ccr
Tendring DC,http://statistics.data.gov.uk/id/local-authority-district/22UN,Life Opportunities,8540 - Leisure Centre Clacton,4300 - Printing & Stationery,25/02/2014,7011809-1,12.5,2100641 - Gymnastic Enterprises Ltd,GYMNASTICS POSTERS
Tendring DC,http://statistics.data.gov.uk/id/local-authority-district/22UN,Life Opportunities,H860 - Disabled Adaptations,C200 - Main Contractor,25/02/2014,1057610-1,5066,REDACTED PERSONAL DATA,REDACTED PERSONAL DATA
Tendring DC,http://statistics.data.gov.uk/id/local-authority-district/22UN,Life Opportunities,5820 - Harwich Sports Centre,2100 - Building Repairs,25/02/2014,7011790-1,176.4,2100653 - Harwich Glass & Window Co Ltd,NEW GLAZED SEALED UNITS
Tendring DC,http://statistics.data.gov.uk/id/local-authority-district/22UN,Life Opportunities,8510 - Dovercourt Swimming Pool & All Weather Facilities,2100 - Building Repairs,25/02/2014,7011797-1,266.6,2100653 - Harwich Glass & Window Co Ltd,DOVERCOURT POOL - FIT GLASS
Tendring DC,http://statistics.data.gov.uk/id/local-authority-district/22UN,Life Opportunities,5240 - HRA - Managing Tenancies,5242 - Tenant Relations,11/02/2014,7011449-1,55,2100604 - Harwich Taxis,BELMANS COURT TO WALTON & RETURN
Tendring DC,http://statistics.data.gov.uk/id/local-authority-district/22UN,Life Opportunities,8540 - Leisure Centre Clacton,2100 - Building Repairs,18/02/2014,7011670-1,14.95,2100615 - Healey Tool Hire & Sales Limited,HOOVER LEAD
Tendring DC,http://statistics.data.gov.uk/id/local-authority-district/22UN,Life Opportunities,1880 - Office Accommodation Expenses,2100 - Building Repairs,04/02/2014,1057236-1,896.8,2112468 - Henry Ashe Projects Ltd,TOWN HALL-CHIEF EXECUTIVES OFFICE
Tendring DC,http://statistics.data.gov.uk/id/local-authority-district/22UN,Life Opportunities,6160 - Princes Theatre,2100 - Building Repairs,04/02/2014,1057298-1,110,2112468 - Henry Ashe Projects Ltd,NEW TOILET REFURB CARPET
Tendring DC,http://statistics.data.gov.uk/id/local-authority-district/22UN,Life Opportunities,5820 - Harwich Sports Centre,2100 - Building Repairs,04/02/2014,7011304-1,185,2111080 - Homecraft Contracts Electrical Ltd,NEW OFFICE LIGHT FITTING
Tendring DC,http://statistics.data.gov.uk/id/local-authority-district/22UN,Life Opportunities,8540 - Leisure Centre Clacton,2100 - Building Repairs,25/02/2014,7011785-1,145,2111080 - Homecraft Contracts Electrical Ltd,LIGHTING ISSUES
Tendring DC,http://statistics.data.gov.uk/id/local-authority-district/22UN,Life Opportunities,H920 - Disabled Facilities Grants,C400 - Grant payments,04/02/2014,1057354-1,9606,REDACTED PERSONAL DATA,REDACTED PERSONAL DATA
Tendring DC,http://statistics.data.gov.uk/id/local-authority-district/22UN,Life Opportunities,8510 - Dovercourt Swimming Pool & All Weather Facilities,2100 - Building Repairs,18/02/2014,2113207-1,65,2101848 - Homecraft Contracts Ltd,dovercourt pool - repair
Tendring DC,http://statistics.data.gov.uk/id/local-authority-district/22UN,Life Opportunities,H920 - Disabled Facilities Grants,C400 - Grant payments,11/02/2014,7011479-1,2307.92,REDACTED PERSONAL DATA,REDACTED PERSONAL DATA
Tendring DC,http://statistics.data.gov.uk/id/local-authority-district/22UN,Life Opportunities,6160 - Princes Theatre,4300 - Printing & Stationery,18/02/2014,2113273-1,958.5,2110569 - Hound Envelopes Ltd,theatre envelopes self seal
Tendring DC,http://statistics.data.gov.uk/id/local-authority-district/22UN,Life Opportunities,"1580 - Benefits, Revenues and Customer Contact SU",4300 - Printing & Stationery,18/02/2014,2113274-1,117,2110569 - Hound Envelopes Ltd,response plus envelopes
Tendring DC,http://statistics.data.gov.uk/id/local-authority-district/22UN,Life Opportunities,5240 - HRA - Managing Tenancies,4460 - Legal & Professional Expenses,04/02/2014,1057233-1,22,2111338 - Housing Partners Limited,IAH PROPERTIES ADVERTISED OCT-DEC 13
Tendring DC,http://statistics.data.gov.uk/id/local-authority-district/22UN,Life Opportunities,5480 - HRA - Repair & Maintenance,2014 - Decoration Allowances,18/02/2014,7011631-1,145.6,REDACTED PERSONAL DATA,REDACTED PERSONAL DATA
Tendring DC,http://statistics.data.gov.uk/id/local-authority-district/22UN,Life Opportunities,6160 - Princes Theatre,4040 - Equipment & Tools,18/02/2014,2113256-1,134.11,2113683 - Illuminate Design,martin mac 250 spare parts
Tendring DC,http://statistics.data.gov.uk/id/local-authority-district/22UN,Life Opportunities,6160 - Princes Theatre,2100 - Building Repairs,11/02/2014,7011453-1,41,2113683 - Illuminate Design,PAINT FOR THEATRE
Tendring DC,http://statistics.data.gov.uk/id/local-authority-district/22UN,Life Opportunities,5880 - Management Of Sport & Leisure Facilities,4597 - Hired Services - Payments to Contractors,04/02/2014,7011309-1,495,2108761 - Ingleton Wood,DOVERCOURT POOL EXTENSION 42236
Tendring DC,http://statistics.data.gov.uk/id/local-authority-district/22UN,Life Opportunities,5820 - Harwich Sports Centre,4597 - Hired Services - Payments to Contractors,18/02/2014,2113204-1,75,2113083 - Initial Facilities - Water Services,remedial water work
Tendring DC,http://statistics.data.gov.uk/id/local-authority-district/22UN,Life Opportunities,5860 - Manningtree Sports Centre,4400 - Maintenance Under Service Agreements,25/02/2014,7011804-1,87.5,2113083 - Initial Facilities - Water Services,WATER SAFE QUARTERLY CONTRACT
Tendring DC,http://statistics.data.gov.uk/id/local-authority-district/22UN,Life Opportunities,1880 - Office Accommodation Expenses,4666 - Hygiene Services,04/02/2014,7011326-1,15,2104976 - Initial Washroom Solutions,28/01/14 - 27/2/14 INITIAL
Tendring DC,http://statistics.data.gov.uk/id/local-authority-district/22UN,Life Opportunities,1860 - Depots General,4666 - Hygiene Services,04/02/2014,7011326-2,7.5,2104976 - Initial Washroom Solutions,28/01/14 - 27/2/14 INITIAL
Tendring DC,http://statistics.data.gov.uk/id/local-authority-district/22UN,Life Opportunities,1880 - Office Accommodation Expenses,4666 - Hygiene Services,04/02/2014,7011326-3,15,2104976 - Initial Washroom Solutions,28/01/14 - 27/2/14 INITIAL
Tendring DC,http://statistics.data.gov.uk/id/local-authority-district/22UN,Life Opportunities,1880 - Office Accommodation Expenses,4666 - Hygiene Services,04/02/2014,7011326-4,84,2104976 - Initial Washroom Solutions,28/01/14 - 27/2/14 INITIAL
Tendring DC,http://statistics.data.gov.uk/id/local-authority-district/22UN,Life Opportunities,1880 - Office Accommodation Expenses,4666 - Hygiene Services,04/02/2014,7011326-5,7.5,2104976 - Initial Washroom Solutions,28/01/14 - 27/2/14 INITIAL
Tendring DC,http://statistics.data.gov.uk/id/local-authority-district/22UN,Life Opportunities,4820 - Public Conveniences,4080 - Materials & Consumables,04/02/2014,7011326-6,103.5,2104976 - Initial Washroom Solutions,28/01/14 - 27/2/14 INITIAL
Tendring DC,http://statistics.data.gov.uk/id/local-authority-district/22UN,Life Opportunities,5880 - Management Of Sport & Leisure Facilities,5166 - Marketing and Promotion,18/02/2014,7011615-1,90,2113575 - Intelligent Texting,FEB INTXT LIC FEE
Tendring DC,http://statistics.data.gov.uk/id/local-authority-district/22UN,Life Opportunities,5880 - Management Of Sport & Leisure Facilities,5166 - Marketing and Promotion,25/02/2014,7011787-1,340,2113575 - Intelligent Texting,INTXT CAMPAIGN SMS PROVISION
Tendring DC,http://statistics.data.gov.uk/id/local-authority-district/22UN,Life Opportunities,1880 - Office Accommodation Expenses,4448 - Confidential Waste,18/02/2014,2113118-1,150.4,2110936 - IPPlus (UK) Ltd,confidential waste 13/1 and 27/1/14
Tendring DC,http://statistics.data.gov.uk/id/local-authority-district/22UN,Life Opportunities,1880 - Office Accommodation Expenses,4448 - Confidential Waste,18/02/2014,2113118-2,61.1,2110936 - IPPlus (UK) Ltd,confidential waste 13/1 and 27/1/14
Tendring DC,http://statistics.data.gov.uk/id/local-authority-district/22UN,Life Opportunities,1880 - Office Accommodation Expenses,4448 - Confidential Waste,18/02/2014,2113275-1,79.9,2110936 - IPPlus (UK) Ltd,waste collection pier avenue 34 sacks
Tendring DC,http://statistics.data.gov.uk/id/local-authority-district/22UN,Life Opportunities,8510 - Dovercourt Swimming Pool & All Weather Facilities,5300 - Resaleable Items,25/02/2014,1057554-1,60.6,2100755 - J P Lennard Ltd,DOVERCOURT POOL-NOSE CLIPS
Tendring DC,http://statistics.data.gov.uk/id/local-authority-district/22UN,Life Opportunities,8510 - Dovercourt Swimming Pool & All Weather Facilities,4081 - Chemicals,25/02/2014,1057555-1,63.5,2100755 - J P Lennard Ltd,DOVERCOURT POOL-TEST TUBES
Tendring DC,http://statistics.data.gov.uk/id/local-authority-district/22UN,Life Opportunities,8520 - Frinton & Walton Swimming Pool,5300 - Resaleable Items,11/02/2014,2113102-1,52.55,2100755 - J P Lennard Ltd,fwsp - jpl
Tendring DC,http://statistics.data.gov.uk/id/local-authority-district/22UN,Life Opportunities,6355 - Community Activity Network,4597 - Hired Services - Payments to Contractors,18/02/2014,7011596-1,323.4,2100755 - J P Lennard Ltd,SWIM LESSON EQUIPMENT
Tendring DC,http://statistics.data.gov.uk/id/local-authority-district/22UN,Life Opportunities,6355 - Community Activity Network,4597 - Hired Services - Payments to Contractors,18/02/2014,7011597-1,74.69,2100755 - J P Lennard Ltd,NETBALLS
Tendring DC,http://statistics.data.gov.uk/id/local-authority-district/22UN,Life Opportunities,5800 - Brightlingsea Sports Centre,2100 - Building Repairs,18/02/2014,7011656-1,192.8,2100755 - J P Lennard Ltd,J P LENNARD
Tendring DC,http://statistics.data.gov.uk/id/local-authority-district/22UN,Life Opportunities,5800 - Brightlingsea Sports Centre,4000 - Furniture,18/02/2014,7011657-1,36,2100755 - J P Lennard Ltd,J P LENNARD
Tendring DC,http://statistics.data.gov.uk/id/local-authority-district/22UN,Life Opportunities,5800 - Brightlingsea Sports Centre,4000 - Furniture,18/02/2014,7011658-1,72.4,2100755 - J P Lennard Ltd,JP LENNRD
Tendring DC,http://statistics.data.gov.uk/id/local-authority-district/22UN,Life Opportunities,8540 - Leisure Centre Clacton,4000 - Furniture,25/02/2014,7011811-1,37.03,2100755 - J P Lennard Ltd,SPORTS EQUIPMENT
Tendring DC,http://statistics.data.gov.uk/id/local-authority-district/22UN,Life Opportunities,5480 - HRA - Repair & Maintenance,2018 - Other Responsive Repairs,18/02/2014,1057429-1,195,REDACTED PERSONAL DATA,REDACTED PERSONAL DATA
Tendring DC,http://statistics.data.gov.uk/id/local-authority-district/22UN,Life Opportunities,5240 - HRA - Managing Tenancies,5242 - Tenant Relations,25/02/2014,1057500-1,10,REDACTED PERSONAL DATA,REDACTED PERSONAL DATA
Tendring DC,http://statistics.data.gov.uk/id/local-authority-district/22UN,Life Opportunities,6160 - Princes Theatre,5160 - Advertising,04/02/2014,1057286-1,25,2110209 - Johnny Mans Productions,ANNUAL SUBSCRITION TO ENCORE
Tendring DC,http://statistics.data.gov.uk/id/local-authority-district/22UN,Life Opportunities,H860 - Disabled Adaptations,C200 - Main Contractor,25/02/2014,1057458-1,2050,REDACTED PERSONAL DATA,REDACTED PERSONAL DATA
Tendring DC,http://statistics.data.gov.uk/id/local-authority-district/22UN,Life Opportunities,H860 - Disabled Adaptations,C200 - Main Contractor,25/02/2014,1057458-2,3175,REDACTED PERSONAL DATA,REDACTED PERSONAL DATA
Tendring DC,http://statistics.data.gov.uk/id/local-authority-district/22UN,Life Opportunities,1880 - Office Accommodation Expenses,2100 - Building Repairs,11/02/2014,2113071-1,70,2111266 - JW Plumbing and Heating,Town Hall Basin Taps
Tendring DC,http://statistics.data.gov.uk/id/local-authority-district/22UN,Life Opportunities,1880 - Office Accommodation Expenses,2100 - Building Repairs,11/02/2014,2113071-2,112,2111266 - JW Plumbing and Heating,Town Hall Basin Taps
Tendring DC,http://statistics.data.gov.uk/id/local-authority-district/22UN,Life Opportunities,1880 - Office Accommodation Expenses,2100 - Building Repairs,11/02/2014,2113072-1,75,2111266 - JW Plumbing and Heating,Weeley - Basin Leak
Tendring DC,http://statistics.data.gov.uk/id/local-authority-district/22UN,Life Opportunities,1880 - Office Accommodation Expenses,2100 - Building Repairs,11/02/2014,2113072-2,22,2111266 - JW Plumbing and Heating,Weeley - Basin Leak
Tendring DC,http://statistics.data.gov.uk/id/local-authority-district/22UN,Life Opportunities,H860 - Disabled Adaptations,C200 - Main Contractor,11/02/2014,2113075-1,2212,REDACTED PERSONAL DATA,REDACTED PERSONAL DATA
Tendring DC,http://statistics.data.gov.uk/id/local-authority-district/22UN,Life Opportunities,H860 - Disabled Adaptations,C200 - Main Contractor,11/02/2014,2113075-2,3531,REDACTED PERSONAL DATA,REDACTED PERSONAL DATA
Tendring DC,http://statistics.data.gov.uk/id/local-authority-district/22UN,Life Opportunities,H920 - Disabled Facilities Grants,C400 - Grant payments,04/02/2014,1057365-1,4524,REDACTED PERSONAL DATA,REDACTED PERSONAL DATA
Tendring DC,http://statistics.data.gov.uk/id/local-authority-district/22UN,Life Opportunities,6160 - Princes Theatre,5160 - Advertising,11/02/2014,7011369-1,180,2100850 - KidAround Ltd,KIDAROUND MARCH - MAY 14
Tendring DC,http://statistics.data.gov.uk/id/local-authority-district/22UN,Life Opportunities,5860 - Manningtree Sports Centre,4040 - Equipment & Tools,18/02/2014,2113198-1,77.2,2100870 - Kingswood Leisure Services Ltd,6 x footballs
Tendring DC,http://statistics.data.gov.uk/id/local-authority-district/22UN,Life Opportunities,5820 - Harwich Sports Centre,5300 - Resaleable Items,25/02/2014,7011712-1,197.9,2100870 - Kingswood Leisure Services Ltd,RESALEABLE SPORTS EQUIPMENT
Tendring DC,http://statistics.data.gov.uk/id/local-authority-district/22UN,Life Opportunities,1880 - Office Accommodation Expenses,2100 - Building Repairs,11/02/2014,2113060-1,40,2100890 - Kirby Locks Ltd,gain entry and remove night latch kitchen
Tendring DC,http://statistics.data.gov.uk/id/local-authority-district/22UN,Life Opportunities,5360 - HRA - Sheltered Units,4601 - Hired services - Cleaning,04/02/2014,1057265-1,323,2100851 - KO-SHEEN Contract Cleaning Ltd,CLEANING 13/01-17/01/14
Tendring DC,http://statistics.data.gov.uk/id/local-authority-district/22UN,Life Opportunities,5360 - HRA - Sheltered Units,4601 - Hired services - Cleaning,04/02/2014,1057266-1,187,2100851 - KO-SHEEN Contract Cleaning Ltd,CLEANING 6/1-10/1/14
Tendring DC,http://statistics.data.gov.uk/id/local-authority-district/22UN,Life Opportunities,5860 - Manningtree Sports Centre,4601 - Hired services - Cleaning,25/02/2014,1057556-1,63.75,2100851 - KO-SHEEN Contract Cleaning Ltd,CLEANING 27TH-31ST JAN 2014
Tendring DC,http://statistics.data.gov.uk/id/local-authority-district/22UN,Life Opportunities,5860 - Manningtree Sports Centre,4601 - Hired services - Cleaning,18/02/2014,2113194-1,89.25,2100851 - KO-SHEEN Contract Cleaning Ltd,contract cleaning 20-24 jan
Tendring DC,http://statistics.data.gov.uk/id/local-authority-district/22UN,Life Opportunities,5860 - Manningtree Sports Centre,4601 - Hired services - Cleaning,18/02/2014,2113199-1,110.5,2100851 - KO-SHEEN Contract Cleaning Ltd,msc contract cleaning 6-10jan
Tendring DC,http://statistics.data.gov.uk/id/local-authority-district/22UN,Life Opportunities,5860 - Manningtree Sports Centre,4601 - Hired services - Cleaning,18/02/2014,2113200-1,102,2100851 - KO-SHEEN Contract Cleaning Ltd,msc contract cleaning 134-17 jan
Tendring DC,http://statistics.data.gov.uk/id/local-authority-district/22UN,Life Opportunities,8540 - Leisure Centre Clacton,4597 - Hired Services - Payments to Contractors,18/02/2014,2113209-1,50,2100851 - KO-SHEEN Contract Cleaning Ltd,17/1/14 4 hour
Tendring DC,http://statistics.data.gov.uk/id/local-authority-district/22UN,Life Opportunities,8540 - Leisure Centre Clacton,4597 - Hired Services - Payments to Contractors,18/02/2014,7011600-1,200,2100851 - KO-SHEEN Contract Cleaning Ltd,16HR W/E 25.14.14
Tendring DC,http://statistics.data.gov.uk/id/local-authority-district/22UN,Life Opportunities,5360 - HRA - Sheltered Units,4601 - Hired services - Cleaning,18/02/2014,7011611-1,153,2100851 - KO-SHEEN Contract Cleaning Ltd,CLEANING 27.01.14 - 31.01.14
Tendring DC,http://statistics.data.gov.uk/id/local-authority-district/22UN,Life Opportunities,5360 - HRA - Sheltered Units,4601 - Hired services - Cleaning,18/02/2014,7011612-1,588.88,2100851 - KO-SHEEN Contract Cleaning Ltd,CLEANING BELMANS COURT JAN 14
Tendring DC,http://statistics.data.gov.uk/id/local-authority-district/22UN,Life Opportunities,8540 - Leisure Centre Clacton,4597 - Hired Services - Payments to Contractors,18/02/2014,7011669-1,50,2100851 - KO-SHEEN Contract Cleaning Ltd,26/1/14 4 HR
Tendring DC,http://statistics.data.gov.uk/id/local-authority-district/22UN,Life Opportunities,5360 - HRA - Sheltered Units,4601 - Hired services - Cleaning,25/02/2014,7011779-1,187,2100851 - KO-SHEEN Contract Cleaning Ltd,3.2-7.2.14 CLEANING AT SHELTERED SCHEME
Tendring DC,http://statistics.data.gov.uk/id/local-authority-district/22UN,Life Opportunities,5860 - Manningtree Sports Centre,4601 - Hired services - Cleaning,25/02/2014,7011805-1,63.75,2100851 - KO-SHEEN Contract Cleaning Ltd,CLEANING 3RD-7TH FEB 2014
Tendring DC,http://statistics.data.gov.uk/id/local-authority-district/22UN,Life Opportunities,8540 - Leisure Centre Clacton,4597 - Hired Services - Payments to Contractors,25/02/2014,7011812-1,293.75,2100851 - KO-SHEEN Contract Cleaning Ltd,W/E 8.2.14
Tendring DC,http://statistics.data.gov.uk/id/local-authority-district/22UN,Life Opportunities,5800 - Brightlingsea Sports Centre,2100 - Building Repairs,25/02/2014,1057613-1,110,REDACTED PERSONAL DATA,REDACTED PERSONAL DATA
Tendring DC,http://statistics.data.gov.uk/id/local-authority-district/22UN,Life Opportunities,"1580 - Benefits, Revenues and Customer Contact SU",4466 - Land Registry Fees,25/02/2014,7011721-1,397.5,2113091 - Land Registry Commercial Services,TENDRING MONTH 17
Tendring DC,http://statistics.data.gov.uk/id/local-authority-district/22UN,Life Opportunities,"1580 - Benefits, Revenues and Customer Contact SU",4459 - External Legal Advice,04/02/2014,1057250-1,320,2111904 - Lester Aldridge LLP,LESTER LLP LEGAL CHARGES
Tendring DC,http://statistics.data.gov.uk/id/local-authority-district/22UN,Life Opportunities,"1580 - Benefits, Revenues and Customer Contact SU",4459 - External Legal Advice,04/02/2014,7011327-1,250,2111904 - Lester Aldridge LLP,CHARGES & DISBURSEMENTS
Tendring DC,http://statistics.data.gov.uk/id/local-authority-district/22UN,Life Opportunities,"1580 - Benefits, Revenues and Customer Contact SU",4459 - External Legal Advice,11/02/2014,7011444-1,836,2111904 - Lester Aldridge LLP,CHARGES & DISBURSEMENTS
Tendring DC,http://statistics.data.gov.uk/id/local-authority-district/22UN,Life Opportunities,"1580 - Benefits, Revenues and Customer Contact SU",4459 - External Legal Advice,11/02/2014,7011444-2,300,2111904 - Lester Aldridge LLP,CHARGES & DISBURSEMENTS
Tendring DC,http://statistics.data.gov.uk/id/local-authority-district/22UN,Life Opportunities,8540 - Leisure Centre Clacton,9245 - Room Hire - Main Hall,18/02/2014,1057421-1,156.94,2113677 - Liz Read,
Tendring DC,http://statistics.data.gov.uk/id/local-authority-district/22UN,Life Opportunities,8540 - Leisure Centre Clacton,5166 - Marketing and Promotion,25/02/2014,7011788-1,124,2107277 - Look 5 Ltd,HPC LOOK 2 MARCH 14
Tendring DC,http://statistics.data.gov.uk/id/local-authority-district/22UN,Life Opportunities,5880 - Management Of Sport & Leisure Facilities,9250 - Premium Option Card,25/02/2014,1057614-1,12.5,REDACTED PERSONAL DATA,REDACTED PERSONAL DATA
Tendring DC,http://statistics.data.gov.uk/id/local-authority-district/22UN,Life Opportunities,6740 - Careline,3300 - Public Transport - Officers,11/02/2014,7011475-1,46.8,2112785 - Luke Rosier,BUS TICKET CLAIM JANUARY 2014
Tendring DC,http://statistics.data.gov.uk/id/local-authority-district/22UN,Life Opportunities,1230 - Strategic Housing & Needs Management,3302 - Car Allowances - Officers,25/02/2014,1057616-1,19.8,2113693 - Luke Tappenden,
Tendring DC,http://statistics.data.gov.uk/id/local-authority-district/22UN,Life Opportunities,8540 - Leisure Centre Clacton,4400 - Maintenance Under Service Agreements,25/02/2014,7011810-1,90,2100837 - M A Williams,STOCK TAKE 7.2.14
Tendring DC,http://statistics.data.gov.uk/id/local-authority-district/22UN,Life Opportunities,1880 - Office Accommodation Expenses,2100 - Building Repairs,18/02/2014,7011618-1,89,2111940 - M Frost & Associates Ltd,3 X DEC CERTS
Tendring DC,http://statistics.data.gov.uk/id/local-authority-district/22UN,Life Opportunities,1880 - Office Accommodation Expenses,2100 - Building Repairs,18/02/2014,7011618-2,89,2111940 - M Frost & Associates Ltd,3 X DEC CERTS
Tendring DC,http://statistics.data.gov.uk/id/local-authority-district/22UN,Life Opportunities,1880 - Office Accommodation Expenses,2100 - Building Repairs,18/02/2014,7011618-3,89,2111940 - M Frost & Associates Ltd,3 X DEC CERTS
Tendring DC,http://statistics.data.gov.uk/id/local-authority-district/22UN,Life Opportunities,6355 - Community Activity Network,4597 - Hired Services - Payments to Contractors,04/02/2014,1057235-1,100,2113025 - M S Reeve,BALLOON MODEELING 11/05/14
Tendring DC,http://statistics.data.gov.uk/id/local-authority-district/22UN,Life Opportunities,6160 - Princes Theatre,4105 - Bar/Catering Expenses,04/02/2014,1057274-1,48.99,2105052 - Maddisons,THEATRE BULK BREW COFFEE
Tendring DC,http://statistics.data.gov.uk/id/local-authority-district/22UN,Life Opportunities,6160 - Princes Theatre,4105 - Bar/Catering Expenses,11/02/2014,2113099-1,115.09,2105052 - Maddisons,plastic tumblers
Tendring DC,http://statistics.data.gov.uk/id/local-authority-district/22UN,Life Opportunities,6355 - Community Activity Network,4597 - Hired Services - Payments to Contractors,25/02/2014,7011781-1,20.83,2102540 - Maldon District Council,ESD FUNDING WORKSHOP CH
Tendring DC,http://statistics.data.gov.uk/id/local-authority-district/22UN,Life Opportunities,5240 - HRA - Managing Tenancies,5242 - Tenant Relations,18/02/2014,7011621-1,40,2113137 - Manningtree Taxis,TRANSPORT ON 28.01.14
Tendring DC,http://statistics.data.gov.uk/id/local-authority-district/22UN,Life Opportunities,H815 - Re-roofing,C200 - Main Contractor,11/02/2014,2113078-1,80,REDACTED PERSONAL DATA,REDACTED PERSONAL DATA
Tendring DC,http://statistics.data.gov.uk/id/local-authority-district/22UN,Life Opportunities,H815 - Re-roofing,C200 - Main Contractor,11/02/2014,7011470-1,1020,REDACTED PERSONAL DATA,REDACTED PERSONAL DATA
Tendring DC,http://statistics.data.gov.uk/id/local-authority-district/22UN,Life Opportunities,5240 - HRA - Managing Tenancies,6620 - Under Occupation Incentive Scheme,25/02/2014,1057501-1,750,REDACTED PERSONAL DATA,REDACTED PERSONAL DATA
Tendring DC,http://statistics.data.gov.uk/id/local-authority-district/22UN,Life Opportunities,5480 - HRA - Repair & Maintenance,2088 - Disabled Adaptations,25/02/2014,1057455-1,165,REDACTED PERSONAL DATA,REDACTED PERSONAL DATA
Tendring DC,http://statistics.data.gov.uk/id/local-authority-district/22UN,Life Opportunities,5480 - HRA - Repair & Maintenance,2088 - Disabled Adaptations,25/02/2014,1057455-2,65,REDACTED PERSONAL DATA,REDACTED PERSONAL DATA
Tendring DC,http://statistics.data.gov.uk/id/local-authority-district/22UN,Life Opportunities,5480 - HRA - Repair & Maintenance,2088 - Disabled Adaptations,25/02/2014,1057456-1,225,REDACTED PERSONAL DATA,REDACTED PERSONAL DATA
Tendring DC,http://statistics.data.gov.uk/id/local-authority-district/22UN,Life Opportunities,5480 - HRA - Repair & Maintenance,2088 - Disabled Adaptations,25/02/2014,1057456-2,100,REDACTED PERSONAL DATA,REDACTED PERSONAL DATA
Tendring DC,http://statistics.data.gov.uk/id/local-authority-district/22UN,Life Opportunities,H860 - Disabled Adaptations,C200 - Main Contractor,25/02/2014,1057457-1,1265,REDACTED PERSONAL DATA,REDACTED PERSONAL DATA
Tendring DC,http://statistics.data.gov.uk/id/local-authority-district/22UN,Life Opportunities,H860 - Disabled Adaptations,C200 - Main Contractor,25/02/2014,1057457-2,560,REDACTED PERSONAL DATA,REDACTED PERSONAL DATA
Tendring DC,http://statistics.data.gov.uk/id/local-authority-district/22UN,Life Opportunities,H920 - Disabled Facilities Grants,C400 - Grant payments,25/02/2014,1057509-1,1042.01,REDACTED PERSONAL DATA,REDACTED PERSONAL DATA
Tendring DC,http://statistics.data.gov.uk/id/local-authority-district/22UN,Life Opportunities,5820 - Harwich Sports Centre,4040 - Equipment & Tools,11/02/2014,7011446-1,48.8,2101791 - Medlock Electrical,FLUORESCENT LIGHT TUBES
Tendring DC,http://statistics.data.gov.uk/id/local-authority-district/22UN,Life Opportunities,1242 - Corporate Director (Life Opportunities),1710 - Training - Central Department Budget,11/02/2014,2113100-1,370,2113627 - MEM Events UK Ltd,social media for business conference
Tendring DC,http://statistics.data.gov.uk/id/local-authority-district/22UN,Life Opportunities,5240 - HRA - Managing Tenancies,6625 - Tenants Compensation Scheme,25/02/2014,1057504-1,260,REDACTED PERSONAL DATA,REDACTED PERSONAL DATA
Tendring DC,http://statistics.data.gov.uk/id/local-authority-district/22UN,Life Opportunities,8510 - Dovercourt Swimming Pool & All Weather Facilities,9250 - Premium Option Card,04/02/2014,1057359-1,5.83,REDACTED PERSONAL DATA,REDACTED PERSONAL DATA
Tendring DC,http://statistics.data.gov.uk/id/local-authority-district/22UN,Life Opportunities,9920 - HRA Balance Sheet,B860 - Housing Rents - Cash,11/02/2014,7011501-1,332.34,REDACTED PERSONAL DATA,REDACTED PERSONAL DATA
Tendring DC,http://statistics.data.gov.uk/id/local-authority-district/22UN,Life Opportunities,8510 - Dovercourt Swimming Pool & All Weather Facilities,9250 - Premium Option Card,25/02/2014,1057615-1,8.89,REDACTED PERSONAL DATA,REDACTED PERSONAL DATA
Tendring DC,http://statistics.data.gov.uk/id/local-authority-district/22UN,Life Opportunities,5140 - Homelessness,4683 - Other Homelessness Expenses,25/02/2014,1057489-1,365,REDACTED PERSONAL DATA,REDACTED PERSONAL DATA
Tendring DC,http://statistics.data.gov.uk/id/local-authority-district/22UN,Life Opportunities,9920 - HRA Balance Sheet,B860 - Housing Rents - Cash,11/02/2014,7011497-1,163.68,REDACTED PERSONAL DATA,REDACTED PERSONAL DATA
Tendring DC,http://statistics.data.gov.uk/id/local-authority-district/22UN,Life Opportunities,8510 - Dovercourt Swimming Pool & All Weather Facilities,9228 - Swimming Lessons,18/02/2014,1057422-1,25.08,2113687 - Miss S Lungley,CHQ REQ
Tendring DC,http://statistics.data.gov.uk/id/local-authority-district/22UN,Life Opportunities,C021 - Cremator replacement,C200 - Main Contractor,25/02/2014,1057517-1,2700,2111984 - MLM Consulting Engineers Ltd,WEELEY CREM CONSULTANCY
Tendring DC,http://statistics.data.gov.uk/id/local-authority-district/22UN,Life Opportunities,8540 - Leisure Centre Clacton,4400 - Maintenance Under Service Agreements,04/02/2014,7011291-1,64.4,2104791 - Mobile Mini Uk Ltd,15.1.14 - 11.2.14
Tendring DC,http://statistics.data.gov.uk/id/local-authority-district/22UN,Life Opportunities,8540 - Leisure Centre Clacton,4200 - Clothing & Uniforms,25/02/2014,7011786-1,4.17,2109450 - Monster Merchandise Ltd,STAFF UNIFORM
Tendring DC,http://statistics.data.gov.uk/id/local-authority-district/22UN,Life Opportunities,5480 - HRA - Repair & Maintenance,2073 - Smoke Alarm Service/Testing,25/02/2014,1057618-1,848.04,2111370 - Morrison Facilities Services,GAS SERVICE & REPAIR-SOUTH AREA 13/14
Tendring DC,http://statistics.data.gov.uk/id/local-authority-district/22UN,Life Opportunities,5480 - HRA - Repair & Maintenance,2075 - Gas Service Contract Servicing/Testing (Domestic I,25/02/2014,1057618-2,2018.28,2111370 - Morrison Facilities Services,GAS SERVICE & REPAIR-SOUTH AREA 13/14
Tendring DC,http://statistics.data.gov.uk/id/local-authority-district/22UN,Life Opportunities,5480 - HRA - Repair & Maintenance,2076 - Gas Service Contract Other Refurbishment/Repairs (,25/02/2014,1057618-3,3992.54,2111370 - Morrison Facilities Services,GAS SERVICE & REPAIR-SOUTH AREA 13/14
Tendring DC,http://statistics.data.gov.uk/id/local-authority-district/22UN,Life Opportunities,5480 - HRA - Repair & Maintenance,2073 - Smoke Alarm Service/Testing,25/02/2014,1057619-1,1340.82,2111370 - Morrison Facilities Services,GAS SERVICE & REPAIR-SOUTH AREA 13/14
Tendring DC,http://statistics.data.gov.uk/id/local-authority-district/22UN,Life Opportunities,5480 - HRA - Repair & Maintenance,2075 - Gas Service Contract Servicing/Testing (Domestic I,25/02/2014,1057619-2,3245.34,2111370 - Morrison Facilities Services,GAS SERVICE & REPAIR-SOUTH AREA 13/14
Tendring DC,http://statistics.data.gov.uk/id/local-authority-district/22UN,Life Opportunities,5480 - HRA - Repair & Maintenance,2076 - Gas Service Contract Other Refurbishment/Repairs (,25/02/2014,1057619-3,5070.69,2111370 - Morrison Facilities Services,GAS SERVICE & REPAIR-SOUTH AREA 13/14
Tendring DC,http://statistics.data.gov.uk/id/local-authority-district/22UN,Life Opportunities,5240 - HRA - Managing Tenancies,5242 - Tenant Relations,25/02/2014,1057497-1,10,REDACTED PERSONAL DATA,REDACTED PERSONAL DATA
Tendring DC,http://statistics.data.gov.uk/id/local-authority-district/22UN,Life Opportunities,9920 - HRA Balance Sheet,B860 - Housing Rents - Cash,11/02/2014,7011505-1,207.6,REDACTED PERSONAL DATA,REDACTED PERSONAL DATA
Tendring DC,http://statistics.data.gov.uk/id/local-authority-district/22UN,Life Opportunities,5240 - HRA - Managing Tenancies,6625 - Tenants Compensation Scheme,11/02/2014,7011478-1,50,REDACTED PERSONAL DATA,REDACTED PERSONAL DATA
Tendring DC,http://statistics.data.gov.uk/id/local-authority-district/22UN,Life Opportunities,5240 - HRA - Managing Tenancies,6620 - Under Occupation Incentive Scheme,25/02/2014,1057502-1,122.34,REDACTED PERSONAL DATA,REDACTED PERSONAL DATA
Tendring DC,http://statistics.data.gov.uk/id/local-authority-district/22UN,Life Opportunities,9920 - HRA Balance Sheet,B860 - Housing Rents - Cash,04/02/2014,1057367-1,169.33,REDACTED PERSONAL DATA,REDACTED PERSONAL DATA
Tendring DC,http://statistics.data.gov.uk/id/local-authority-district/22UN,Life Opportunities,9920 - HRA Balance Sheet,B860 - Housing Rents - Cash,11/02/2014,7011499-1,385.08,REDACTED PERSONAL DATA,REDACTED PERSONAL DATA
Tendring DC,http://statistics.data.gov.uk/id/local-authority-district/22UN,Life Opportunities,9920 - HRA Balance Sheet,B860 - Housing Rents - Cash,11/02/2014,7011508-1,73.25,REDACTED PERSONAL DATA,REDACTED PERSONAL DATA
Tendring DC,http://statistics.data.gov.uk/id/local-authority-district/22UN,Life Opportunities,9920 - HRA Balance Sheet,B860 - Housing Rents - Cash,11/02/2014,7011504-1,256.38,REDACTED PERSONAL DATA,REDACTED PERSONAL DATA
Tendring DC,http://statistics.data.gov.uk/id/local-authority-district/22UN,Life Opportunities,9920 - HRA Balance Sheet,B860 - Housing Rents - Cash,11/02/2014,7011506-1,167.36,REDACTED PERSONAL DATA,REDACTED PERSONAL DATA
Tendring DC,http://statistics.data.gov.uk/id/local-authority-district/22UN,Life Opportunities,9920 - HRA Balance Sheet,B860 - Housing Rents - Cash,11/02/2014,7011503-1,242.04,REDACTED PERSONAL DATA,REDACTED PERSONAL DATA
Tendring DC,http://statistics.data.gov.uk/id/local-authority-district/22UN,Life Opportunities,5240 - HRA - Managing Tenancies,6625 - Tenants Compensation Scheme,25/02/2014,1057503-1,30,REDACTED PERSONAL DATA,REDACTED PERSONAL DATA
Tendring DC,http://statistics.data.gov.uk/id/local-authority-district/22UN,Life Opportunities,5240 - HRA - Managing Tenancies,5242 - Tenant Relations,25/02/2014,1057494-1,30,REDACTED PERSONAL DATA,REDACTED PERSONAL DATA
Tendring DC,http://statistics.data.gov.uk/id/local-authority-district/22UN,Life Opportunities,9920 - HRA Balance Sheet,B860 - Housing Rents - Cash,11/02/2014,7011500-1,295.29,REDACTED PERSONAL DATA,REDACTED PERSONAL DATA
Tendring DC,http://statistics.data.gov.uk/id/local-authority-district/22UN,Life Opportunities,8540 - Leisure Centre Clacton,4000 - Furniture,04/02/2014,2112968-1,199,REDACTED PERSONAL DATA,REDACTED PERSONAL DATA
Tendring DC,http://statistics.data.gov.uk/id/local-authority-district/22UN,Life Opportunities,6160 - Princes Theatre,4040 - Equipment & Tools,25/02/2014,1057581-1,136.8,2103915 - MRL Productions,HIRE OF SOUND EQUIPMENT
Tendring DC,http://statistics.data.gov.uk/id/local-authority-district/22UN,Life Opportunities,6160 - Princes Theatre,9352 - Opportunity Bookings,04/02/2014,2112980-1,6,REDACTED PERSONAL DATA,REDACTED PERSONAL DATA
Tendring DC,http://statistics.data.gov.uk/id/local-authority-district/22UN,Life Opportunities,6160 - Princes Theatre,9352 - Opportunity Bookings,18/02/2014,1057425-1,17.5,REDACTED PERSONAL DATA,REDACTED PERSONAL DATA
Tendring DC,http://statistics.data.gov.uk/id/local-authority-district/22UN,Life Opportunities,H920 - Disabled Facilities Grants,C400 - Grant payments,18/02/2014,1057447-1,1400,REDACTED PERSONAL DATA,REDACTED PERSONAL DATA
Tendring DC,http://statistics.data.gov.uk/id/local-authority-district/22UN,Life Opportunities,9920 - HRA Balance Sheet,B860 - Housing Rents - Cash,11/02/2014,7011510-1,148.3,REDACTED PERSONAL DATA,REDACTED PERSONAL DATA
Tendring DC,http://statistics.data.gov.uk/id/local-authority-district/22UN,Life Opportunities,9920 - HRA Balance Sheet,B860 - Housing Rents - Cash,11/02/2014,7011502-1,250.7,REDACTED PERSONAL DATA,REDACTED PERSONAL DATA
Tendring DC,http://statistics.data.gov.uk/id/local-authority-district/22UN,Life Opportunities,5240 - HRA - Managing Tenancies,6625 - Tenants Compensation Scheme,11/02/2014,7011477-1,19.99,REDACTED PERSONAL DATA,REDACTED PERSONAL DATA
Tendring DC,http://statistics.data.gov.uk/id/local-authority-district/22UN,Life Opportunities,9920 - HRA Balance Sheet,B860 - Housing Rents - Cash,11/02/2014,7011509-1,85.52,REDACTED PERSONAL DATA,REDACTED PERSONAL DATA
Tendring DC,http://statistics.data.gov.uk/id/local-authority-district/22UN,Life Opportunities,9920 - HRA Balance Sheet,B860 - Housing Rents - Cash,11/02/2014,7011498-1,385.08,REDACTED PERSONAL DATA,REDACTED PERSONAL DATA
Tendring DC,http://statistics.data.gov.uk/id/local-authority-district/22UN,Life Opportunities,5240 - HRA - Managing Tenancies,6620 - Under Occupation Incentive Scheme,04/02/2014,1057356-1,1000,REDACTED PERSONAL DATA,REDACTED PERSONAL DATA
Tendring DC,http://statistics.data.gov.uk/id/local-authority-district/22UN,Life Opportunities,9920 - HRA Balance Sheet,B860 - Housing Rents - Cash,25/02/2014,1057506-1,29.51,REDACTED PERSONAL DATA,REDACTED PERSONAL DATA
Tendring DC,http://statistics.data.gov.uk/id/local-authority-district/22UN,Life Opportunities,5240 - HRA - Managing Tenancies,5242 - Tenant Relations,25/02/2014,1057499-1,10,REDACTED PERSONAL DATA,REDACTED PERSONAL DATA
Tendring DC,http://statistics.data.gov.uk/id/local-authority-district/22UN,Life Opportunities,9920 - HRA Balance Sheet,B860 - Housing Rents - Cash,04/02/2014,1057366-1,600.11,REDACTED PERSONAL DATA,REDACTED PERSONAL DATA
Tendring DC,http://statistics.data.gov.uk/id/local-authority-district/22UN,Life Opportunities,9920 - HRA Balance Sheet,B860 - Housing Rents - Cash,11/02/2014,7011496-1,253.93,REDACTED PERSONAL DATA,REDACTED PERSONAL DATA
Tendring DC,http://statistics.data.gov.uk/id/local-authority-district/22UN,Life Opportunities,5820 - Harwich Sports Centre,4597 - Hired Services - Payments to Contractors,18/02/2014,2113203-1,80,2112299 - My Time Fitness Ltd,fitness classes
Tendring DC,http://statistics.data.gov.uk/id/local-authority-district/22UN,Life Opportunities,1880 - Office Accommodation Expenses,2100 - Building Repairs,18/02/2014,2113121-1,42,2100967 - N Rudelhoff,n r electrical
Tendring DC,http://statistics.data.gov.uk/id/local-authority-district/22UN,Life Opportunities,1880 - Office Accommodation Expenses,2100 - Building Repairs,18/02/2014,2113121-2,526,2100967 - N Rudelhoff,n r electrical
Tendring DC,http://statistics.data.gov.uk/id/local-authority-district/22UN,Life Opportunities,1880 - Office Accommodation Expenses,2100 - Building Repairs,18/02/2014,2113122-1,468,2100967 - N Rudelhoff,n r electrical
Tendring DC,http://statistics.data.gov.uk/id/local-authority-district/22UN,Life Opportunities,1880 - Office Accommodation Expenses,2100 - Building Repairs,18/02/2014,2113123-1,24,2100967 - N Rudelhoff,n r electrical
Tendring DC,http://statistics.data.gov.uk/id/local-authority-district/22UN,Life Opportunities,1880 - Office Accommodation Expenses,2100 - Building Repairs,18/02/2014,2113123-2,505,2100967 - N Rudelhoff,n r electrical
Tendring DC,http://statistics.data.gov.uk/id/local-authority-district/22UN,Life Opportunities,1880 - Office Accommodation Expenses,2100 - Building Repairs,18/02/2014,2113123-3,56,2100967 - N Rudelhoff,n r electrical
Tendring DC,http://statistics.data.gov.uk/id/local-authority-district/22UN,Life Opportunities,1880 - Office Accommodation Expenses,2100 - Building Repairs,18/02/2014,2113124-1,319,2100967 - N Rudelhoff,n r electrical
Tendring DC,http://statistics.data.gov.uk/id/local-authority-district/22UN,Life Opportunities,1880 - Office Accommodation Expenses,2100 - Building Repairs,18/02/2014,2113124-2,60,2100967 - N Rudelhoff,n r electrical
Tendring DC,http://statistics.data.gov.uk/id/local-authority-district/22UN,Life Opportunities,1880 - Office Accommodation Expenses,2100 - Building Repairs,18/02/2014,2113124-3,97,2100967 - N Rudelhoff,n r electrical
Tendring DC,http://statistics.data.gov.uk/id/local-authority-district/22UN,Life Opportunities,1880 - Office Accommodation Expenses,2100 - Building Repairs,18/02/2014,2113125-1,509,2100967 - N Rudelhoff,n r electrical
Tendring DC,http://statistics.data.gov.uk/id/local-authority-district/22UN,Life Opportunities,1880 - Office Accommodation Expenses,2100 - Building Repairs,18/02/2014,2113126-1,328,2100967 - N Rudelhoff,n r electrical
Tendring DC,http://statistics.data.gov.uk/id/local-authority-district/22UN,Life Opportunities,1880 - Office Accommodation Expenses,2100 - Building Repairs,18/02/2014,2113126-2,177,2100967 - N Rudelhoff,n r electrical
Tendring DC,http://statistics.data.gov.uk/id/local-authority-district/22UN,Life Opportunities,1880 - Office Accommodation Expenses,2100 - Building Repairs,18/02/2014,2113127-1,535,2100967 - N Rudelhoff,n r electrical
Tendring DC,http://statistics.data.gov.uk/id/local-authority-district/22UN,Life Opportunities,1860 - Depots General,2100 - Building Repairs,18/02/2014,2113128-1,302,2100967 - N Rudelhoff,n r electrical
Tendring DC,http://statistics.data.gov.uk/id/local-authority-district/22UN,Life Opportunities,1880 - Office Accommodation Expenses,2100 - Building Repairs,18/02/2014,2113128-2,254,2100967 - N Rudelhoff,n r electrical
Tendring DC,http://statistics.data.gov.uk/id/local-authority-district/22UN,Life Opportunities,1860 - Depots General,2100 - Building Repairs,18/02/2014,2113129-1,630,2100967 - N Rudelhoff,n r electrical
Tendring DC,http://statistics.data.gov.uk/id/local-authority-district/22UN,Life Opportunities,1880 - Office Accommodation Expenses,2100 - Building Repairs,18/02/2014,2113130-1,439,2100967 - N Rudelhoff,n r electrcial
Tendring DC,http://statistics.data.gov.uk/id/local-authority-district/22UN,Life Opportunities,1880 - Office Accommodation Expenses,2100 - Building Repairs,18/02/2014,2113130-2,156,2100967 - N Rudelhoff,n r electrcial
Tendring DC,http://statistics.data.gov.uk/id/local-authority-district/22UN,Life Opportunities,1880 - Office Accommodation Expenses,2100 - Building Repairs,18/02/2014,2113131-1,185,2100967 - N Rudelhoff,n r electrical
Tendring DC,http://statistics.data.gov.uk/id/local-authority-district/22UN,Life Opportunities,1880 - Office Accommodation Expenses,2100 - Building Repairs,18/02/2014,2113131-2,399,2100967 - N Rudelhoff,n r electrical
Tendring DC,http://statistics.data.gov.uk/id/local-authority-district/22UN,Life Opportunities,1860 - Depots General,2100 - Building Repairs,18/02/2014,2113131-3,125,2100967 - N Rudelhoff,n r electrical
Tendring DC,http://statistics.data.gov.uk/id/local-authority-district/22UN,Life Opportunities,1860 - Depots General,2100 - Building Repairs,18/02/2014,2113132-1,282,2100967 - N Rudelhoff,n r electrical
Tendring DC,http://statistics.data.gov.uk/id/local-authority-district/22UN,Life Opportunities,1860 - Depots General,2100 - Building Repairs,11/02/2014,2113027-1,246.32,2102791 - Nantmor Blinds Ltd,blinds northbourne
Tendring DC,http://statistics.data.gov.uk/id/local-authority-district/22UN,Life Opportunities,1880 - Office Accommodation Expenses,2100 - Building Repairs,18/02/2014,2113284-1,210.22,2102791 - Nantmor Blinds Ltd,town hall blinds
Tendring DC,http://statistics.data.gov.uk/id/local-authority-district/22UN,Life Opportunities,1240 - Commercial Management,3302 - Car Allowances - Officers,04/02/2014,1057348-1,60,REDACTED PERSONAL DATA,REDACTED PERSONAL DATA
Tendring DC,http://statistics.data.gov.uk/id/local-authority-district/22UN,Life Opportunities,7600 - Tourist Information Centres,9356 - Commission Sales,11/02/2014,2113062-1,422.24,2110032 - National Express Ltd,national express
Tendring DC,http://statistics.data.gov.uk/id/local-authority-district/22UN,Life Opportunities,7600 - Tourist Information Centres,4040 - Equipment & Tools,18/02/2014,7011660-1,485,2112714 - New Horizon Systems Ltd,
Tendring DC,http://statistics.data.gov.uk/id/local-authority-district/22UN,Life Opportunities,6160 - Princes Theatre,4040 - Equipment & Tools,18/02/2014,7011661-1,455,2112714 - New Horizon Systems Ltd,TILL FOR THEATRE
Tendring DC,http://statistics.data.gov.uk/id/local-authority-district/22UN,Life Opportunities,H945 - Empty Homes funding,C402 - Grant payments for Empty Homes scheme,04/02/2014,1057352-1,6786,REDACTED PERSONAL DATA,REDACTED PERSONAL DATA
Tendring DC,http://statistics.data.gov.uk/id/local-authority-district/22UN,Life Opportunities,6160 - Princes Theatre,5160 - Advertising,11/02/2014,7011410-1,220,2113536 - Newsquest Media Group,POLKADOT PANTO
Tendring DC,http://statistics.data.gov.uk/id/local-authority-district/22UN,Life Opportunities,5880 - Management Of Sport & Leisure Facilities,5166 - Marketing and Promotion,18/02/2014,7011617-1,717.5,2113536 - Newsquest Media Group,FPA CFG HMS JAN PROMO
Tendring DC,http://statistics.data.gov.uk/id/local-authority-district/22UN,Life Opportunities,6160 - Princes Theatre,5160 - Advertising,18/02/2014,7011627-1,84.3,2113536 - Newsquest Media Group,OLD MACDONALD
Tendring DC,http://statistics.data.gov.uk/id/local-authority-district/22UN,Life Opportunities,6160 - Princes Theatre,5160 - Advertising,25/02/2014,7011726-1,84.3,2113536 - Newsquest Media Group,OLD MACDONALD
Tendring DC,http://statistics.data.gov.uk/id/local-authority-district/22UN,Life Opportunities,6160 - Princes Theatre,4000 - Furniture,04/02/2014,1057299-1,239.92,2108282 - Nisbets,BARRIERS FOR THEATRE
Tendring DC,http://statistics.data.gov.uk/id/local-authority-district/22UN,Life Opportunities,1597 - Employment Support Allowance,4753 - Computer - Application Software,18/02/2014,1055008-1,-345.81,2101204 - Northgate Information Solutions UK Ltd,PART CREDIT RE 91037413 SUPPORT + MAINT
Tendring DC,http://statistics.data.gov.uk/id/local-authority-district/22UN,Life Opportunities,"1580 - Benefits, Revenues and Customer Contact SU",4753 - Computer - Application Software,18/02/2014,1055009-1,-827.81,2101204 - Northgate Information Solutions UK Ltd,FULL CREDIT RE 91259654 NNDR + CT
Tendring DC,http://statistics.data.gov.uk/id/local-authority-district/22UN,Life Opportunities,"1580 - Benefits, Revenues and Customer Contact SU",4753 - Computer - Application Software,18/02/2014,1055010-1,-100.72,2101204 - Northgate Information Solutions UK Ltd,PART CR RE 91233872
Tendring DC,http://statistics.data.gov.uk/id/local-authority-district/22UN,Life Opportunities,"1580 - Benefits, Revenues and Customer Contact SU",4753 - Computer - Application Software,18/02/2014,1055011-1,-192.82,2101204 - Northgate Information Solutions UK Ltd,PART CREDIT RE 91242444 HB SUMMARY
Tendring DC,http://statistics.data.gov.uk/id/local-authority-district/22UN,Life Opportunities,"1580 - Benefits, Revenues and Customer Contact SU",4753 - Computer - Application Software,18/02/2014,1055012-1,-134.64,2101204 - Northgate Information Solutions UK Ltd,PART CR RE 91209640 FLAT FILE BILLING
Tendring DC,http://statistics.data.gov.uk/id/local-authority-district/22UN,Life Opportunities,"1580 - Benefits, Revenues and Customer Contact SU",4754 - IT Consultancy,18/02/2014,1057131-1,2200,2101204 - Northgate Information Solutions UK Ltd,YEAR END SUPPORT ANNUAL BILLING
Tendring DC,http://statistics.data.gov.uk/id/local-authority-district/22UN,Life Opportunities,"1580 - Benefits, Revenues and Customer Contact SU",4753 - Computer - Application Software,25/02/2014,1057579-1,4200,2101204 - Northgate Information Solutions UK Ltd,10.5 DAYS CONSULT NORTHGATE
Tendring DC,http://statistics.data.gov.uk/id/local-authority-district/22UN,Life Opportunities,5260 - HRA - Rent Collection And Accounting,4757 - IT External Charges,25/02/2014,1057579-2,4200,2101204 - Northgate Information Solutions UK Ltd,10.5 DAYS CONSULT NORTHGATE
Tendring DC,http://statistics.data.gov.uk/id/local-authority-district/22UN,Life Opportunities,"1580 - Benefits, Revenues and Customer Contact SU",4753 - Computer - Application Software,18/02/2014,2111409-1,-1288.63,2101204 - Northgate Information Solutions UK Ltd,Full Credit re 91247770 M & S
Tendring DC,http://statistics.data.gov.uk/id/local-authority-district/22UN,Life Opportunities,"1580 - Benefits, Revenues and Customer Contact SU",4753 - Computer - Application Software,18/02/2014,2111410-1,-3972.46,2101204 - Northgate Information Solutions UK Ltd,Part Cr re 91245105
Tendring DC,http://statistics.data.gov.uk/id/local-authority-district/22UN,Life Opportunities,5260 - HRA - Rent Collection And Accounting,4757 - IT External Charges,18/02/2014,2113345-1,22656.69,2101204 - Northgate Information Solutions UK Ltd,14/15 housing software support
Tendring DC,http://statistics.data.gov.uk/id/local-authority-district/22UN,Life Opportunities,"1580 - Benefits, Revenues and Customer Contact SU",4753 - Computer - Application Software,18/02/2014,2113346-1,2263.2,2101204 - Northgate Information Solutions UK Ltd,northgate business objects s&m 1/4/14 to 31/3/15
Tendring DC,http://statistics.data.gov.uk/id/local-authority-district/22UN,Life Opportunities,5260 - HRA - Rent Collection And Accounting,4757 - IT External Charges,18/02/2014,2113346-2,2263.21,2101204 - Northgate Information Solutions UK Ltd,northgate business objects s&m 1/4/14 to 31/3/15
Tendring DC,http://statistics.data.gov.uk/id/local-authority-district/22UN,Life Opportunities,"1580 - Benefits, Revenues and Customer Contact SU",4753 - Computer - Application Software,18/02/2014,2113347-1,81397.79,2101204 - Northgate Information Solutions UK Ltd,northgate s&m 1/4 to 31/3/15
Tendring DC,http://statistics.data.gov.uk/id/local-authority-district/22UN,Life Opportunities,"1580 - Benefits, Revenues and Customer Contact SU",4753 - Computer - Application Software,18/02/2014,2113348-1,24000,2101204 - Northgate Information Solutions UK Ltd,northgate gold rdba 1/4 to 31/3/15
Tendring DC,http://statistics.data.gov.uk/id/local-authority-district/22UN,Life Opportunities,5260 - HRA - Rent Collection And Accounting,4757 - IT External Charges,18/02/2014,2113348-2,15000,2101204 - Northgate Information Solutions UK Ltd,northgate gold rdba 1/4 to 31/3/15
Tendring DC,http://statistics.data.gov.uk/id/local-authority-district/22UN,Life Opportunities,"1580 - Benefits, Revenues and Customer Contact SU",4753 - Computer - Application Software,25/02/2014,7011700-1,1650,2101204 - Northgate Information Solutions UK Ltd,NORTHGATE SUBSIDY SERVICE
Tendring DC,http://statistics.data.gov.uk/id/local-authority-district/22UN,Life Opportunities,5860 - Manningtree Sports Centre,5311 - General Provisions - Vending,25/02/2014,1057557-1,119.84,2101083 - Osgood Smith,VENDING SUPPLIES
Tendring DC,http://statistics.data.gov.uk/id/local-authority-district/22UN,Life Opportunities,8520 - Frinton & Walton Swimming Pool,5311 - General Provisions - Vending,25/02/2014,1057558-1,33.45,2101083 - Osgood Smith,OSGOOD SMNACKS SUPPLIER
Tendring DC,http://statistics.data.gov.uk/id/local-authority-district/22UN,Life Opportunities,8520 - Frinton & Walton Swimming Pool,5311 - General Provisions - Vending,25/02/2014,1057559-1,93.49,2101083 - Osgood Smith,OSGOODS SNACK SUPPLIES
Tendring DC,http://statistics.data.gov.uk/id/local-authority-district/22UN,Life Opportunities,8520 - Frinton & Walton Swimming Pool,5311 - General Provisions - Vending,25/02/2014,1057560-1,184.13,2101083 - Osgood Smith,OSGOOD SNACKS SUPPLIES
Tendring DC,http://statistics.data.gov.uk/id/local-authority-district/22UN,Life Opportunities,8520 - Frinton & Walton Swimming Pool,5311 - General Provisions - Vending,25/02/2014,1057561-1,52.09,2101083 - Osgood Smith,OSGOODS SNACKS SUPPLIES
Tendring DC,http://statistics.data.gov.uk/id/local-authority-district/22UN,Life Opportunities,8520 - Frinton & Walton Swimming Pool,5311 - General Provisions - Vending,25/02/2014,1057562-1,111.42,2101083 - Osgood Smith,OSGOOD SNACKS SUPPLIER
Tendring DC,http://statistics.data.gov.uk/id/local-authority-district/22UN,Life Opportunities,5800 - Brightlingsea Sports Centre,5316 - General Provisions,11/02/2014,2113101-1,111.24,2101083 - Osgood Smith,osgood smith
Tendring DC,http://statistics.data.gov.uk/id/local-authority-district/22UN,Life Opportunities,5860 - Manningtree Sports Centre,5311 - General Provisions - Vending,11/02/2014,2113105-1,262.5,2101083 - Osgood Smith,vending supplies
Tendring DC,http://statistics.data.gov.uk/id/local-authority-district/22UN,Life Opportunities,5860 - Manningtree Sports Centre,5311 - General Provisions - Vending,18/02/2014,2113195-1,239.14,2101083 - Osgood Smith,vending supplies
Tendring DC,http://statistics.data.gov.uk/id/local-authority-district/22UN,Life Opportunities,8510 - Dovercourt Swimming Pool & All Weather Facilities,5311 - General Provisions - Vending,18/02/2014,2113206-1,291.91,2101083 - Osgood Smith,dovercourt pool - sweets
Tendring DC,http://statistics.data.gov.uk/id/local-authority-district/22UN,Life Opportunities,5820 - Harwich Sports Centre,5311 - General Provisions - Vending,04/02/2014,7011316-1,53.9,2101083 - Osgood Smith,CANTEEN GOODS
Tendring DC,http://statistics.data.gov.uk/id/local-authority-district/22UN,Life Opportunities,5820 - Harwich Sports Centre,5311 - General Provisions - Vending,11/02/2014,7011445-1,68.24,2101083 - Osgood Smith,CANTEEN GOODS
Tendring DC,http://statistics.data.gov.uk/id/local-authority-district/22UN,Life Opportunities,5820 - Harwich Sports Centre,5311 - General Provisions - Vending,18/02/2014,7011602-1,43.81,2101083 - Osgood Smith,CANTEEN GOODS
Tendring DC,http://statistics.data.gov.uk/id/local-authority-district/22UN,Life Opportunities,6160 - Princes Theatre,5306 - Confectionary,25/02/2014,7011731-1,184.28,2101083 - Osgood Smith,CONFECTIONARY FOR THEATRE
Tendring DC,http://statistics.data.gov.uk/id/local-authority-district/22UN,Life Opportunities,6160 - Princes Theatre,5306 - Confectionary,25/02/2014,7011731-2,8.02,2101083 - Osgood Smith,CONFECTIONARY FOR THEATRE
Tendring DC,http://statistics.data.gov.uk/id/local-authority-district/22UN,Life Opportunities,5820 - Harwich Sports Centre,5311 - General Provisions - Vending,25/02/2014,7011789-1,43.51,2101083 - Osgood Smith,CANTEEN GOODS
Tendring DC,http://statistics.data.gov.uk/id/local-authority-district/22UN,Life Opportunities,5860 - Manningtree Sports Centre,5311 - General Provisions - Vending,25/02/2014,7011802-1,323.67,2101083 - Osgood Smith,VENDING SUPPLIES
Tendring DC,http://statistics.data.gov.uk/id/local-authority-district/22UN,Life Opportunities,5480 - HRA - Repair & Maintenance,2077 - Gas Service Contract  Servicing/Testing (Large Sca,11/02/2014,1057374-1,2873.58,2113206 - P&R Installation Company Ltd,MECHANICAL SERVICES CONTRACT (LSB)
Tendring DC,http://statistics.data.gov.uk/id/local-authority-district/22UN,Life Opportunities,5480 - HRA - Repair & Maintenance,2078 - Gas Service Contract Other Refurbishment/Repairs (,11/02/2014,1057374-2,14257.87,2113206 - P&R Installation Company Ltd,MECHANICAL SERVICES CONTRACT (LSB)
Tendring DC,http://statistics.data.gov.uk/id/local-authority-district/22UN,Life Opportunities,5480 - HRA - Repair & Maintenance,2017 - Mechanical Equipment /Extract Fans,25/02/2014,1057459-1,590,REDACTED PERSONAL DATA,REDACTED PERSONAL DATA
Tendring DC,http://statistics.data.gov.uk/id/local-authority-district/22UN,Life Opportunities,5480 - HRA - Repair & Maintenance,2017 - Mechanical Equipment /Extract Fans,25/02/2014,1057459-2,299,REDACTED PERSONAL DATA,REDACTED PERSONAL DATA
Tendring DC,http://statistics.data.gov.uk/id/local-authority-district/22UN,Life Opportunities,5880 - Management Of Sport & Leisure Facilities,5166 - Marketing and Promotion,04/02/2014,7011289-1,175,2101097 - Peter Lockyer Advertising Ltd,AD ARTWORK BSC TOWN GUIDE
Tendring DC,http://statistics.data.gov.uk/id/local-authority-district/22UN,Life Opportunities,5880 - Management Of Sport & Leisure Facilities,5166 - Marketing and Promotion,04/02/2014,7011290-1,175,2101097 - Peter Lockyer Advertising Ltd,ARTWORK RE AD BSC
Tendring DC,http://statistics.data.gov.uk/id/local-authority-district/22UN,Life Opportunities,5880 - Management Of Sport & Leisure Facilities,5166 - Marketing and Promotion,18/02/2014,7011614-1,175,2101097 - Peter Lockyer Advertising Ltd,ARTWORK LEISURE IN TIME AD
Tendring DC,http://statistics.data.gov.uk/id/local-authority-district/22UN,Life Opportunities,5860 - Manningtree Sports Centre,4597 - Hired Services - Payments to Contractors,25/02/2014,7011803-1,240,2112933 - Phoenix Archery Club,PHOENIX ARCHERY CLUB - 12 HOURS COACHING
Tendring DC,http://statistics.data.gov.uk/id/local-authority-district/22UN,Life Opportunities,"1580 - Benefits, Revenues and Customer Contact SU",5500 - Miscellaneous Expenses,18/02/2014,2113281-1,121.5,2101078 - Pier Avenue Baptist Church,synergy recruitment
Tendring DC,http://statistics.data.gov.uk/id/local-authority-district/22UN,Life Opportunities,5420 - HRA - Communal Cleaning,2706 - Communal Areas Cleaning Expenses,04/02/2014,1057234-1,3521.58,2107884 - Pinnacle Essex,JANUARY 2014 CLEANING
Tendring DC,http://statistics.data.gov.uk/id/local-authority-district/22UN,Life Opportunities,6160 - Princes Theatre,5160 - Advertising,25/02/2014,1057523-1,148,2113700 - PJR Communications Ltd,ADVERT IN SPRING ISSUE LEISURETIME
Tendring DC,http://statistics.data.gov.uk/id/local-authority-district/22UN,Life Opportunities,6355 - Community Activity Network,4597 - Hired Services - Payments to Contractors,11/02/2014,7011378-1,50,2107996 - PLRS Media Ltd,DEPOSIT FOR SOUND SYSTEM
Tendring DC,http://statistics.data.gov.uk/id/local-authority-district/22UN,Life Opportunities,5480 - HRA - Repair & Maintenance,2090 - Fencing,04/02/2014,1057232-1,1347.17,REDACTED PERSONAL DATA,REDACTED PERSONAL DATA
Tendring DC,http://statistics.data.gov.uk/id/local-authority-district/22UN,Life Opportunities,5480 - HRA - Repair & Maintenance,2090 - Fencing,04/02/2014,1057278-1,357.58,REDACTED PERSONAL DATA,REDACTED PERSONAL DATA
Tendring DC,http://statistics.data.gov.uk/id/local-authority-district/22UN,Life Opportunities,5480 - HRA - Repair & Maintenance,2090 - Fencing,04/02/2014,1057279-1,585.18,REDACTED PERSONAL DATA,REDACTED PERSONAL DATA
Tendring DC,http://statistics.data.gov.uk/id/local-authority-district/22UN,Life Opportunities,5480 - HRA - Repair & Maintenance,2090 - Fencing,04/02/2014,1057280-1,90,REDACTED PERSONAL DATA,REDACTED PERSONAL DATA
Tendring DC,http://statistics.data.gov.uk/id/local-authority-district/22UN,Life Opportunities,5480 - HRA - Repair & Maintenance,2090 - Fencing,04/02/2014,1057289-1,180,REDACTED PERSONAL DATA,REDACTED PERSONAL DATA
Tendring DC,http://statistics.data.gov.uk/id/local-authority-district/22UN,Life Opportunities,5480 - HRA - Repair & Maintenance,2001 - Responsive Maintenance - Concrete And Other Extern,04/02/2014,1057289-2,117.5,REDACTED PERSONAL DATA,REDACTED PERSONAL DATA
Tendring DC,http://statistics.data.gov.uk/id/local-authority-district/22UN,Life Opportunities,5480 - HRA - Repair & Maintenance,2090 - Fencing,04/02/2014,1057290-1,90,REDACTED PERSONAL DATA,REDACTED PERSONAL DATA
Tendring DC,http://statistics.data.gov.uk/id/local-authority-district/22UN,Life Opportunities,5480 - HRA - Repair & Maintenance,2001 - Responsive Maintenance - Concrete And Other Extern,04/02/2014,1057290-2,70.5,REDACTED PERSONAL DATA,REDACTED PERSONAL DATA
Tendring DC,http://statistics.data.gov.uk/id/local-authority-district/22UN,Life Opportunities,5480 - HRA - Repair & Maintenance,2001 - Responsive Maintenance - Concrete And Other Extern,04/02/2014,1057291-1,40.88,REDACTED PERSONAL DATA,REDACTED PERSONAL DATA
Tendring DC,http://statistics.data.gov.uk/id/local-authority-district/22UN,Life Opportunities,5480 - HRA - Repair & Maintenance,2090 - Fencing,25/02/2014,1057566-1,228.77,REDACTED PERSONAL DATA,REDACTED PERSONAL DATA
Tendring DC,http://statistics.data.gov.uk/id/local-authority-district/22UN,Life Opportunities,5480 - HRA - Repair & Maintenance,2090 - Fencing,25/02/2014,1057567-1,135,REDACTED PERSONAL DATA,REDACTED PERSONAL DATA
Tendring DC,http://statistics.data.gov.uk/id/local-authority-district/22UN,Life Opportunities,5480 - HRA - Repair & Maintenance,2090 - Fencing,25/02/2014,1057568-1,394.88,REDACTED PERSONAL DATA,REDACTED PERSONAL DATA
Tendring DC,http://statistics.data.gov.uk/id/local-authority-district/22UN,Life Opportunities,5480 - HRA - Repair & Maintenance,2090 - Fencing,25/02/2014,1057569-1,199,REDACTED PERSONAL DATA,REDACTED PERSONAL DATA
Tendring DC,http://statistics.data.gov.uk/id/local-authority-district/22UN,Life Opportunities,5480 - HRA - Repair & Maintenance,2090 - Fencing,25/02/2014,1057570-1,330.2,REDACTED PERSONAL DATA,REDACTED PERSONAL DATA
Tendring DC,http://statistics.data.gov.uk/id/local-authority-district/22UN,Life Opportunities,5480 - HRA - Repair & Maintenance,2090 - Fencing,25/02/2014,1057571-1,90,REDACTED PERSONAL DATA,REDACTED PERSONAL DATA
Tendring DC,http://statistics.data.gov.uk/id/local-authority-district/22UN,Life Opportunities,5480 - HRA - Repair & Maintenance,2090 - Fencing,25/02/2014,1057572-1,30,REDACTED PERSONAL DATA,REDACTED PERSONAL DATA
Tendring DC,http://statistics.data.gov.uk/id/local-authority-district/22UN,Life Opportunities,5480 - HRA - Repair & Maintenance,2090 - Fencing,25/02/2014,1057573-1,120,REDACTED PERSONAL DATA,REDACTED PERSONAL DATA
Tendring DC,http://statistics.data.gov.uk/id/local-authority-district/22UN,Life Opportunities,5480 - HRA - Repair & Maintenance,2090 - Fencing,25/02/2014,1057574-1,30,REDACTED PERSONAL DATA,REDACTED PERSONAL DATA
Tendring DC,http://statistics.data.gov.uk/id/local-authority-district/22UN,Life Opportunities,5480 - HRA - Repair & Maintenance,2090 - Fencing,25/02/2014,1057575-1,30,REDACTED PERSONAL DATA,REDACTED PERSONAL DATA
Tendring DC,http://statistics.data.gov.uk/id/local-authority-district/22UN,Life Opportunities,5480 - HRA - Repair & Maintenance,2090 - Fencing,25/02/2014,1057576-1,180,REDACTED PERSONAL DATA,REDACTED PERSONAL DATA
Tendring DC,http://statistics.data.gov.uk/id/local-authority-district/22UN,Life Opportunities,5480 - HRA - Repair & Maintenance,2090 - Fencing,25/02/2014,1057577-1,135,REDACTED PERSONAL DATA,REDACTED PERSONAL DATA
Tendring DC,http://statistics.data.gov.uk/id/local-authority-district/22UN,Life Opportunities,5480 - HRA - Repair & Maintenance,2090 - Fencing,11/02/2014,2113024-1,398,REDACTED PERSONAL DATA,REDACTED PERSONAL DATA
Tendring DC,http://statistics.data.gov.uk/id/local-authority-district/22UN,Life Opportunities,5480 - HRA - Repair & Maintenance,2090 - Fencing,11/02/2014,2113025-1,60,REDACTED PERSONAL DATA,REDACTED PERSONAL DATA
Tendring DC,http://statistics.data.gov.uk/id/local-authority-district/22UN,Life Opportunities,5480 - HRA - Repair & Maintenance,2001 - Responsive Maintenance - Concrete And Other Extern,11/02/2014,2113025-2,23.5,REDACTED PERSONAL DATA,REDACTED PERSONAL DATA
Tendring DC,http://statistics.data.gov.uk/id/local-authority-district/22UN,Life Opportunities,5480 - HRA - Repair & Maintenance,2090 - Fencing,11/02/2014,2113026-1,90,REDACTED PERSONAL DATA,REDACTED PERSONAL DATA
Tendring DC,http://statistics.data.gov.uk/id/local-authority-district/22UN,Life Opportunities,5480 - HRA - Repair & Maintenance,2001 - Responsive Maintenance - Concrete And Other Extern,11/02/2014,2113026-2,23.5,REDACTED PERSONAL DATA,REDACTED PERSONAL DATA
Tendring DC,http://statistics.data.gov.uk/id/local-authority-district/22UN,Life Opportunities,5480 - HRA - Repair & Maintenance,2090 - Fencing,18/02/2014,2113259-1,111,REDACTED PERSONAL DATA,REDACTED PERSONAL DATA
Tendring DC,http://statistics.data.gov.uk/id/local-authority-district/22UN,Life Opportunities,5480 - HRA - Repair & Maintenance,2090 - Fencing,18/02/2014,2113260-1,94,REDACTED PERSONAL DATA,REDACTED PERSONAL DATA
Tendring DC,http://statistics.data.gov.uk/id/local-authority-district/22UN,Life Opportunities,5480 - HRA - Repair & Maintenance,2090 - Fencing,18/02/2014,2113261-1,78,REDACTED PERSONAL DATA,REDACTED PERSONAL DATA
Tendring DC,http://statistics.data.gov.uk/id/local-authority-district/22UN,Life Opportunities,5480 - HRA - Repair & Maintenance,2090 - Fencing,18/02/2014,2113286-1,90,REDACTED PERSONAL DATA,REDACTED PERSONAL DATA
Tendring DC,http://statistics.data.gov.uk/id/local-authority-district/22UN,Life Opportunities,5480 - HRA - Repair & Maintenance,2090 - Fencing,18/02/2014,2113287-1,304.26,REDACTED PERSONAL DATA,REDACTED PERSONAL DATA
Tendring DC,http://statistics.data.gov.uk/id/local-authority-district/22UN,Life Opportunities,5480 - HRA - Repair & Maintenance,2090 - Fencing,18/02/2014,2113288-1,201,REDACTED PERSONAL DATA,REDACTED PERSONAL DATA
Tendring DC,http://statistics.data.gov.uk/id/local-authority-district/22UN,Life Opportunities,5480 - HRA - Repair & Maintenance,2090 - Fencing,18/02/2014,2113309-1,2471.9,REDACTED PERSONAL DATA,REDACTED PERSONAL DATA
Tendring DC,http://statistics.data.gov.uk/id/local-authority-district/22UN,Life Opportunities,5480 - HRA - Repair & Maintenance,2001 - Responsive Maintenance - Concrete And Other Extern,18/02/2014,2113310-1,222,REDACTED PERSONAL DATA,REDACTED PERSONAL DATA
Tendring DC,http://statistics.data.gov.uk/id/local-authority-district/22UN,Life Opportunities,5480 - HRA - Repair & Maintenance,2090 - Fencing,18/02/2014,2113333-1,305.74,REDACTED PERSONAL DATA,REDACTED PERSONAL DATA
Tendring DC,http://statistics.data.gov.uk/id/local-authority-district/22UN,Life Opportunities,5480 - HRA - Repair & Maintenance,2090 - Fencing,18/02/2014,2113334-1,79.5,REDACTED PERSONAL DATA,REDACTED PERSONAL DATA
Tendring DC,http://statistics.data.gov.uk/id/local-authority-district/22UN,Life Opportunities,5480 - HRA - Repair & Maintenance,2090 - Fencing,18/02/2014,2113335-1,83.5,REDACTED PERSONAL DATA,REDACTED PERSONAL DATA
Tendring DC,http://statistics.data.gov.uk/id/local-authority-district/22UN,Life Opportunities,5480 - HRA - Repair & Maintenance,2090 - Fencing,18/02/2014,2113336-1,78,REDACTED PERSONAL DATA,REDACTED PERSONAL DATA
Tendring DC,http://statistics.data.gov.uk/id/local-authority-district/22UN,Life Opportunities,5480 - HRA - Repair & Maintenance,2001 - Responsive Maintenance - Concrete And Other Extern,18/02/2014,2113337-1,666,REDACTED PERSONAL DATA,REDACTED PERSONAL DATA
Tendring DC,http://statistics.data.gov.uk/id/local-authority-district/22UN,Life Opportunities,5480 - HRA - Repair & Maintenance,2090 - Fencing,18/02/2014,2113338-1,40.88,REDACTED PERSONAL DATA,REDACTED PERSONAL DATA
Tendring DC,http://statistics.data.gov.uk/id/local-authority-district/22UN,Life Opportunities,5480 - HRA - Repair & Maintenance,2090 - Fencing,18/02/2014,2113339-1,140.6,REDACTED PERSONAL DATA,REDACTED PERSONAL DATA
Tendring DC,http://statistics.data.gov.uk/id/local-authority-district/22UN,Life Opportunities,5480 - HRA - Repair & Maintenance,2090 - Fencing,18/02/2014,2113340-1,70.3,REDACTED PERSONAL DATA,REDACTED PERSONAL DATA
Tendring DC,http://statistics.data.gov.uk/id/local-authority-district/22UN,Life Opportunities,5480 - HRA - Repair & Maintenance,2090 - Fencing,18/02/2014,2113341-1,90,REDACTED PERSONAL DATA,REDACTED PERSONAL DATA
Tendring DC,http://statistics.data.gov.uk/id/local-authority-district/22UN,Life Opportunities,5480 - HRA - Repair & Maintenance,2090 - Fencing,18/02/2014,2113342-1,702.8,REDACTED PERSONAL DATA,REDACTED PERSONAL DATA
Tendring DC,http://statistics.data.gov.uk/id/local-authority-district/22UN,Life Opportunities,5480 - HRA - Repair & Maintenance,2090 - Fencing,18/02/2014,2113343-1,93.1,REDACTED PERSONAL DATA,REDACTED PERSONAL DATA
Tendring DC,http://statistics.data.gov.uk/id/local-authority-district/22UN,Life Opportunities,5480 - HRA - Repair & Maintenance,2001 - Responsive Maintenance - Concrete And Other Extern,18/02/2014,2113343-2,175,REDACTED PERSONAL DATA,REDACTED PERSONAL DATA
Tendring DC,http://statistics.data.gov.uk/id/local-authority-district/22UN,Life Opportunities,5480 - HRA - Repair & Maintenance,2090 - Fencing,18/02/2014,2113344-1,180,REDACTED PERSONAL DATA,REDACTED PERSONAL DATA
Tendring DC,http://statistics.data.gov.uk/id/local-authority-district/22UN,Life Opportunities,5480 - HRA - Repair & Maintenance,2090 - Fencing,04/02/2014,7011292-1,90,REDACTED PERSONAL DATA,REDACTED PERSONAL DATA
Tendring DC,http://statistics.data.gov.uk/id/local-authority-district/22UN,Life Opportunities,5480 - HRA - Repair & Maintenance,2090 - Fencing,04/02/2014,7011293-1,240,REDACTED PERSONAL DATA,REDACTED PERSONAL DATA
Tendring DC,http://statistics.data.gov.uk/id/local-authority-district/22UN,Life Opportunities,5480 - HRA - Repair & Maintenance,2090 - Fencing,04/02/2014,7011294-1,133,REDACTED PERSONAL DATA,REDACTED PERSONAL DATA
Tendring DC,http://statistics.data.gov.uk/id/local-authority-district/22UN,Life Opportunities,5480 - HRA - Repair & Maintenance,2090 - Fencing,04/02/2014,7011295-1,180,REDACTED PERSONAL DATA,REDACTED PERSONAL DATA
Tendring DC,http://statistics.data.gov.uk/id/local-authority-district/22UN,Life Opportunities,5480 - HRA - Repair & Maintenance,2090 - Fencing,04/02/2014,7011296-1,705.6,REDACTED PERSONAL DATA,REDACTED PERSONAL DATA
Tendring DC,http://statistics.data.gov.uk/id/local-authority-district/22UN,Life Opportunities,5480 - HRA - Repair & Maintenance,2090 - Fencing,04/02/2014,7011297-1,580,REDACTED PERSONAL DATA,REDACTED PERSONAL DATA
Tendring DC,http://statistics.data.gov.uk/id/local-authority-district/22UN,Life Opportunities,5480 - HRA - Repair & Maintenance,2090 - Fencing,04/02/2014,7011298-1,343.99,REDACTED PERSONAL DATA,REDACTED PERSONAL DATA
Tendring DC,http://statistics.data.gov.uk/id/local-authority-district/22UN,Life Opportunities,5480 - HRA - Repair & Maintenance,2090 - Fencing,18/02/2014,7011632-1,90,REDACTED PERSONAL DATA,REDACTED PERSONAL DATA
Tendring DC,http://statistics.data.gov.uk/id/local-authority-district/22UN,Life Opportunities,5480 - HRA - Repair & Maintenance,2090 - Fencing,18/02/2014,7011633-1,455.35,REDACTED PERSONAL DATA,REDACTED PERSONAL DATA
Tendring DC,http://statistics.data.gov.uk/id/local-authority-district/22UN,Life Opportunities,7620 - Air Show,4627 - Hired Services - Emergency Services,25/02/2014,7011728-1,2500,2113538 - Police and Crime Commissioner for Essex,POLICING AT CLACTON AIR SHOW
Tendring DC,http://statistics.data.gov.uk/id/local-authority-district/22UN,Life Opportunities,H920 - Disabled Facilities Grants,C400 - Grant payments,11/02/2014,7011481-1,4256.8,REDACTED PERSONAL DATA,REDACTED PERSONAL DATA
Tendring DC,http://statistics.data.gov.uk/id/local-authority-district/22UN,Life Opportunities,5480 - HRA - Repair & Maintenance,2012 - Responsive Maintenance - Clearance And Cleaning,04/02/2014,1057301-1,75,REDACTED PERSONAL DATA,REDACTED PERSONAL DATA
Tendring DC,http://statistics.data.gov.uk/id/local-authority-district/22UN,Life Opportunities,5480 - HRA - Repair & Maintenance,2012 - Responsive Maintenance - Clearance And Cleaning,04/02/2014,1057302-1,55,REDACTED PERSONAL DATA,REDACTED PERSONAL DATA
Tendring DC,http://statistics.data.gov.uk/id/local-authority-district/22UN,Life Opportunities,5480 - HRA - Repair & Maintenance,2012 - Responsive Maintenance - Clearance And Cleaning,04/02/2014,1057303-1,100,REDACTED PERSONAL DATA,REDACTED PERSONAL DATA
Tendring DC,http://statistics.data.gov.uk/id/local-authority-district/22UN,Life Opportunities,5480 - HRA - Repair & Maintenance,2012 - Responsive Maintenance - Clearance And Cleaning,04/02/2014,1057304-1,85,REDACTED PERSONAL DATA,REDACTED PERSONAL DATA
Tendring DC,http://statistics.data.gov.uk/id/local-authority-district/22UN,Life Opportunities,5480 - HRA - Repair & Maintenance,2012 - Responsive Maintenance - Clearance And Cleaning,11/02/2014,2113018-1,100,REDACTED PERSONAL DATA,REDACTED PERSONAL DATA
Tendring DC,http://statistics.data.gov.uk/id/local-authority-district/22UN,Life Opportunities,5480 - HRA - Repair & Maintenance,2012 - Responsive Maintenance - Clearance And Cleaning,11/02/2014,2113019-1,85,REDACTED PERSONAL DATA,REDACTED PERSONAL DATA
Tendring DC,http://statistics.data.gov.uk/id/local-authority-district/22UN,Life Opportunities,5480 - HRA - Repair & Maintenance,2012 - Responsive Maintenance - Clearance And Cleaning,11/02/2014,2113023-1,65,REDACTED PERSONAL DATA,REDACTED PERSONAL DATA
Tendring DC,http://statistics.data.gov.uk/id/local-authority-district/22UN,Life Opportunities,6160 - Princes Theatre,5160 - Advertising,11/02/2014,7011448-1,198,2107459 - Prospector,DISTRIBUTION PROSPECTOR
Tendring DC,http://statistics.data.gov.uk/id/local-authority-district/22UN,Life Opportunities,5860 - Manningtree Sports Centre,2100 - Building Repairs,25/02/2014,1057564-1,14,2101172 - Pulse Fitness plc,8 X BUNGEE STRAPS FOR CROSS TRAINER
Tendring DC,http://statistics.data.gov.uk/id/local-authority-district/22UN,Life Opportunities,1880 - Office Accommodation Expenses,4000 - Furniture,18/02/2014,2113226-1,69.95,2113149 - Quality Office Supplies Ltd,operators chair and arms
Tendring DC,http://statistics.data.gov.uk/id/local-authority-district/22UN,Life Opportunities,1880 - Office Accommodation Expenses,4000 - Furniture,18/02/2014,2113227-1,69.95,2113149 - Quality Office Supplies Ltd,operators chair with arms
Tendring DC,http://statistics.data.gov.uk/id/local-authority-district/22UN,Life Opportunities,1880 - Office Accommodation Expenses,4000 - Furniture,18/02/2014,2113228-1,9.9,2113149 - Quality Office Supplies Ltd,keys for filing cabinet
Tendring DC,http://statistics.data.gov.uk/id/local-authority-district/22UN,Life Opportunities,1880 - Office Accommodation Expenses,4000 - Furniture,18/02/2014,2113229-1,254.84,2113149 - Quality Office Supplies Ltd,operators chair and range chair
Tendring DC,http://statistics.data.gov.uk/id/local-authority-district/22UN,Life Opportunities,5480 - HRA - Repair & Maintenance,2089 - Sewer Repairs,11/02/2014,7011373-1,580,2101134 - R J Roe & Sons Ltd,3 HEATH ROAD
Tendring DC,http://statistics.data.gov.uk/id/local-authority-district/22UN,Life Opportunities,9900 - General Fund Balance Sheet,B382 - Rechargeable Works - Other,25/02/2014,1057519-1,449,2103109 - Richard Jackson PLC,SANDLES INN
Tendring DC,http://statistics.data.gov.uk/id/local-authority-district/22UN,Life Opportunities,8520 - Frinton & Walton Swimming Pool,4400 - Maintenance Under Service Agreements,11/02/2014,2113103-1,114.26,2101090 - Ricoh UK Ltd,fwsp-ricoh
Tendring DC,http://statistics.data.gov.uk/id/local-authority-district/22UN,Life Opportunities,5240 - HRA - Managing Tenancies,4312 - Tenancy Stationery,18/02/2014,2113282-1,463.13,2101090 - Ricoh UK Ltd,reception copier copy charges
Tendring DC,http://statistics.data.gov.uk/id/local-authority-district/22UN,Life Opportunities,5260 - HRA - Rent Collection And Accounting,4312 - Tenancy Stationery,25/02/2014,7011703-1,158.33,2101090 - Ricoh UK Ltd,RENTAL 01.02.14 - 30.04.14
Tendring DC,http://statistics.data.gov.uk/id/local-authority-district/22UN,Life Opportunities,"1580 - Benefits, Revenues and Customer Contact SU",4350 - Photocopier Hire,25/02/2014,7011704-1,20.03,2101090 - Ricoh UK Ltd,B/W CLICK CHARGE K2049000285
Tendring DC,http://statistics.data.gov.uk/id/local-authority-district/22UN,Life Opportunities,5820 - Harwich Sports Centre,4300 - Printing & Stationery,25/02/2014,7011791-1,4.88,2101090 - Ricoh UK Ltd,
Tendring DC,http://statistics.data.gov.uk/id/local-authority-district/22UN,Life Opportunities,8540 - Leisure Centre Clacton,4000 - Furniture,18/02/2014,2113211-1,233.29,2101127 - RLSS UK Enterprises Ltd,aqyabiard refurb pack
Tendring DC,http://statistics.data.gov.uk/id/local-authority-district/22UN,Life Opportunities,5140 - Homelessness,4689 - Special Homelessness Projects Expenses,04/02/2014,1057195-1,50.06,REDACTED PERSONAL DATA,REDACTED PERSONAL DATA
Tendring DC,http://statistics.data.gov.uk/id/local-authority-district/22UN,Life Opportunities,H730 - Energy & Water Conservation,C200 - Main Contractor,04/02/2014,1057196-1,647.92,REDACTED PERSONAL DATA,REDACTED PERSONAL DATA
Tendring DC,http://statistics.data.gov.uk/id/local-authority-district/22UN,Life Opportunities,H730 - Energy & Water Conservation,C200 - Main Contractor,04/02/2014,1057197-1,647.92,REDACTED PERSONAL DATA,REDACTED PERSONAL DATA
Tendring DC,http://statistics.data.gov.uk/id/local-authority-district/22UN,Life Opportunities,H706 - Kitchen & Bathroom Replacement,C200 - Main Contractor,18/02/2014,1057396-1,-16.26,REDACTED PERSONAL DATA,REDACTED PERSONAL DATA
Tendring DC,http://statistics.data.gov.uk/id/local-authority-district/22UN,Life Opportunities,H706 - Kitchen & Bathroom Replacement,C200 - Main Contractor,18/02/2014,1057397-1,-1306.15,REDACTED PERSONAL DATA,REDACTED PERSONAL DATA
Tendring DC,http://statistics.data.gov.uk/id/local-authority-district/22UN,Life Opportunities,5480 - HRA - Repair & Maintenance,2000 - Responsive Maintenance - Miscellaneous,18/02/2014,1057450-1,102397.66,REDACTED PERSONAL DATA,REDACTED PERSONAL DATA
Tendring DC,http://statistics.data.gov.uk/id/local-authority-district/22UN,Life Opportunities,5480 - HRA - Repair & Maintenance,2088 - Disabled Adaptations,25/02/2014,1057524-1,40.02,REDACTED PERSONAL DATA,REDACTED PERSONAL DATA
Tendring DC,http://statistics.data.gov.uk/id/local-authority-district/22UN,Life Opportunities,5480 - HRA - Repair & Maintenance,2088 - Disabled Adaptations,25/02/2014,1057525-1,31.71,REDACTED PERSONAL DATA,REDACTED PERSONAL DATA
Tendring DC,http://statistics.data.gov.uk/id/local-authority-district/22UN,Life Opportunities,5480 - HRA - Repair & Maintenance,2089 - Sewer Repairs,11/02/2014,2113073-1,695,REDACTED PERSONAL DATA,REDACTED PERSONAL DATA
Tendring DC,http://statistics.data.gov.uk/id/local-authority-district/22UN,Life Opportunities,H706 - Kitchen & Bathroom Replacement,C200 - Main Contractor,11/02/2014,2113076-1,3564.05,REDACTED PERSONAL DATA,REDACTED PERSONAL DATA
Tendring DC,http://statistics.data.gov.uk/id/local-authority-district/22UN,Life Opportunities,H710 - Selected Improvements,C200 - Main Contractor,11/02/2014,2113077-1,3054.28,REDACTED PERSONAL DATA,REDACTED PERSONAL DATA
Tendring DC,http://statistics.data.gov.uk/id/local-authority-district/22UN,Life Opportunities,H706 - Kitchen & Bathroom Replacement,C200 - Main Contractor,18/02/2014,2113233-1,4027.65,REDACTED PERSONAL DATA,REDACTED PERSONAL DATA
Tendring DC,http://statistics.data.gov.uk/id/local-authority-district/22UN,Life Opportunities,H706 - Kitchen & Bathroom Replacement,C200 - Main Contractor,18/02/2014,2113234-1,5165.32,REDACTED PERSONAL DATA,REDACTED PERSONAL DATA
Tendring DC,http://statistics.data.gov.uk/id/local-authority-district/22UN,Life Opportunities,5480 - HRA - Repair & Maintenance,2088 - Disabled Adaptations,18/02/2014,2113235-1,151.77,REDACTED PERSONAL DATA,REDACTED PERSONAL DATA
Tendring DC,http://statistics.data.gov.uk/id/local-authority-district/22UN,Life Opportunities,5480 - HRA - Repair & Maintenance,2088 - Disabled Adaptations,18/02/2014,2113236-1,7.93,REDACTED PERSONAL DATA,REDACTED PERSONAL DATA
Tendring DC,http://statistics.data.gov.uk/id/local-authority-district/22UN,Life Opportunities,5480 - HRA - Repair & Maintenance,2088 - Disabled Adaptations,18/02/2014,2113237-1,303.54,REDACTED PERSONAL DATA,REDACTED PERSONAL DATA
Tendring DC,http://statistics.data.gov.uk/id/local-authority-district/22UN,Life Opportunities,H730 - Energy & Water Conservation,C200 - Main Contractor,18/02/2014,2113238-1,624.78,REDACTED PERSONAL DATA,REDACTED PERSONAL DATA
Tendring DC,http://statistics.data.gov.uk/id/local-authority-district/22UN,Life Opportunities,H710 - Selected Improvements,C200 - Main Contractor,18/02/2014,2113239-1,2795.54,REDACTED PERSONAL DATA,REDACTED PERSONAL DATA
Tendring DC,http://statistics.data.gov.uk/id/local-authority-district/22UN,Life Opportunities,H710 - Selected Improvements,C200 - Main Contractor,18/02/2014,2113240-1,2841.23,REDACTED PERSONAL DATA,REDACTED PERSONAL DATA
Tendring DC,http://statistics.data.gov.uk/id/local-authority-district/22UN,Life Opportunities,H710 - Selected Improvements,C200 - Main Contractor,18/02/2014,2113241-1,2817.04,REDACTED PERSONAL DATA,REDACTED PERSONAL DATA
Tendring DC,http://statistics.data.gov.uk/id/local-authority-district/22UN,Life Opportunities,H706 - Kitchen & Bathroom Replacement,C200 - Main Contractor,18/02/2014,2113242-1,3261.78,REDACTED PERSONAL DATA,REDACTED PERSONAL DATA
Tendring DC,http://statistics.data.gov.uk/id/local-authority-district/22UN,Life Opportunities,H706 - Kitchen & Bathroom Replacement,C200 - Main Contractor,18/02/2014,2113243-1,5933.69,REDACTED PERSONAL DATA,REDACTED PERSONAL DATA
Tendring DC,http://statistics.data.gov.uk/id/local-authority-district/22UN,Life Opportunities,5140 - Homelessness,4689 - Special Homelessness Projects Expenses,18/02/2014,2113244-1,119.38,REDACTED PERSONAL DATA,REDACTED PERSONAL DATA
Tendring DC,http://statistics.data.gov.uk/id/local-authority-district/22UN,Life Opportunities,5140 - Homelessness,4689 - Special Homelessness Projects Expenses,18/02/2014,2113245-1,31.71,REDACTED PERSONAL DATA,REDACTED PERSONAL DATA
Tendring DC,http://statistics.data.gov.uk/id/local-authority-district/22UN,Life Opportunities,5480 - HRA - Repair & Maintenance,2088 - Disabled Adaptations,18/02/2014,2113246-1,47.57,REDACTED PERSONAL DATA,REDACTED PERSONAL DATA
Tendring DC,http://statistics.data.gov.uk/id/local-authority-district/22UN,Life Opportunities,H710 - Selected Improvements,C200 - Main Contractor,18/02/2014,2113247-1,2668.7,REDACTED PERSONAL DATA,REDACTED PERSONAL DATA
Tendring DC,http://statistics.data.gov.uk/id/local-authority-district/22UN,Life Opportunities,H706 - Kitchen & Bathroom Replacement,C200 - Main Contractor,18/02/2014,2113248-1,3653.48,REDACTED PERSONAL DATA,REDACTED PERSONAL DATA
Tendring DC,http://statistics.data.gov.uk/id/local-authority-district/22UN,Life Opportunities,H710 - Selected Improvements,C200 - Main Contractor,11/02/2014,7011471-1,2671.13,REDACTED PERSONAL DATA,REDACTED PERSONAL DATA
Tendring DC,http://statistics.data.gov.uk/id/local-authority-district/22UN,Life Opportunities,5820 - Harwich Sports Centre,2700 - Cleaning Materials,18/02/2014,2113201-1,40,2104019 - Roger Hyde Ltd,black mark remover hall floor
Tendring DC,http://statistics.data.gov.uk/id/local-authority-district/22UN,Life Opportunities,5820 - Harwich Sports Centre,2700 - Cleaning Materials,04/02/2014,7011288-1,45,2104019 - Roger Hyde Ltd,FLOOR CLEANER - NEUTRACLEAN
Tendring DC,http://statistics.data.gov.uk/id/local-authority-district/22UN,Life Opportunities,9900 - General Fund Balance Sheet,B382 - Rechargeable Works - Other,04/02/2014,1057190-1,2707,REDACTED PERSONAL DATA,REDACTED PERSONAL DATA
Tendring DC,http://statistics.data.gov.uk/id/local-authority-district/22UN,Life Opportunities,H800 - Structural Repairs,C200 - Main Contractor,04/02/2014,1057191-1,428,2101893 - Rose Builders Ltd,POUND FARM DRIVE
Tendring DC,http://statistics.data.gov.uk/id/local-authority-district/22UN,Life Opportunities,5240 - HRA - Managing Tenancies,5242 - Tenant Relations,25/02/2014,1057493-1,30,REDACTED PERSONAL DATA,REDACTED PERSONAL DATA
Tendring DC,http://statistics.data.gov.uk/id/local-authority-district/22UN,Life Opportunities,5240 - HRA - Managing Tenancies,5242 - Tenant Relations,25/02/2014,1057498-1,10,REDACTED PERSONAL DATA,REDACTED PERSONAL DATA
Tendring DC,http://statistics.data.gov.uk/id/local-authority-district/22UN,Life Opportunities,"1580 - Benefits, Revenues and Customer Contact SU",4700 - Postage,04/02/2014,7011310-1,1368.2,2101139 - Royal Mail,OUTGOING POST JAN 14
Tendring DC,http://statistics.data.gov.uk/id/local-authority-district/22UN,Life Opportunities,5240 - HRA - Managing Tenancies,5242 - Tenant Relations,25/02/2014,7011713-1,71.62,2101139 - Royal Mail,POST INLAND 23-30/11/13
Tendring DC,http://statistics.data.gov.uk/id/local-authority-district/22UN,Life Opportunities,"1580 - Benefits, Revenues and Customer Contact SU",4700 - Postage,25/02/2014,7011723-1,30.3,2101139 - Royal Mail,RESPONSE PLUS
Tendring DC,http://statistics.data.gov.uk/id/local-authority-district/22UN,Life Opportunities,"1580 - Benefits, Revenues and Customer Contact SU",4700 - Postage,25/02/2014,7011723-2,6.86,2101139 - Royal Mail,RESPONSE PLUS
Tendring DC,http://statistics.data.gov.uk/id/local-authority-district/22UN,Life Opportunities,"1580 - Benefits, Revenues and Customer Contact SU",4700 - Postage,25/02/2014,7011724-1,1021.86,2101139 - Royal Mail,OUTGOING POST & THEATRE
Tendring DC,http://statistics.data.gov.uk/id/local-authority-district/22UN,Life Opportunities,6160 - Princes Theatre,4700 - Postage,25/02/2014,7011724-2,107.91,2101139 - Royal Mail,OUTGOING POST & THEATRE
Tendring DC,http://statistics.data.gov.uk/id/local-authority-district/22UN,Life Opportunities,"1580 - Benefits, Revenues and Customer Contact SU",4700 - Postage,11/02/2014,2113090-1,583.8,2108306 - Royal Mail Group Ltd,outgoing post and theatre
Tendring DC,http://statistics.data.gov.uk/id/local-authority-district/22UN,Life Opportunities,"1580 - Benefits, Revenues and Customer Contact SU",4700 - Postage,11/02/2014,2113090-2,2341.88,2108306 - Royal Mail Group Ltd,outgoing post and theatre
Tendring DC,http://statistics.data.gov.uk/id/local-authority-district/22UN,Life Opportunities,"1580 - Benefits, Revenues and Customer Contact SU",4700 - Postage,18/02/2014,2113296-1,990.51,2108306 - Royal Mail Group Ltd,outgoing post jan 2014
Tendring DC,http://statistics.data.gov.uk/id/local-authority-district/22UN,Life Opportunities,6160 - Princes Theatre,4700 - Postage,18/02/2014,2113296-2,2126.13,2108306 - Royal Mail Group Ltd,outgoing post jan 2014
Tendring DC,http://statistics.data.gov.uk/id/local-authority-district/22UN,Life Opportunities,8540 - Leisure Centre Clacton,4400 - Maintenance Under Service Agreements,04/02/2014,7011320-1,311.52,2109169 - S J Leisure Contractors Ltd,SERVICE SAUNA / STEAM ROOM
Tendring DC,http://statistics.data.gov.uk/id/local-authority-district/22UN,Life Opportunities,H860 - Disabled Adaptations,C200 - Main Contractor,18/02/2014,1057392-1,2360,REDACTED PERSONAL DATA,REDACTED PERSONAL DATA
Tendring DC,http://statistics.data.gov.uk/id/local-authority-district/22UN,Life Opportunities,H860 - Disabled Adaptations,C200 - Main Contractor,18/02/2014,1057392-2,1368.88,REDACTED PERSONAL DATA,REDACTED PERSONAL DATA
Tendring DC,http://statistics.data.gov.uk/id/local-authority-district/22UN,Life Opportunities,H860 - Disabled Adaptations,C200 - Main Contractor,25/02/2014,1057609-1,1825.35,REDACTED PERSONAL DATA,REDACTED PERSONAL DATA
Tendring DC,http://statistics.data.gov.uk/id/local-authority-district/22UN,Life Opportunities,H860 - Disabled Adaptations,C200 - Main Contractor,25/02/2014,1057609-2,847.2,REDACTED PERSONAL DATA,REDACTED PERSONAL DATA
Tendring DC,http://statistics.data.gov.uk/id/local-authority-district/22UN,Life Opportunities,H860 - Disabled Adaptations,C200 - Main Contractor,11/02/2014,2113074-1,2000,REDACTED PERSONAL DATA,REDACTED PERSONAL DATA
Tendring DC,http://statistics.data.gov.uk/id/local-authority-district/22UN,Life Opportunities,H860 - Disabled Adaptations,C200 - Main Contractor,11/02/2014,2113074-2,3704.93,REDACTED PERSONAL DATA,REDACTED PERSONAL DATA
Tendring DC,http://statistics.data.gov.uk/id/local-authority-district/22UN,Life Opportunities,H920 - Disabled Facilities Grants,C400 - Grant payments,18/02/2014,1057405-1,1542.71,REDACTED PERSONAL DATA,REDACTED PERSONAL DATA
Tendring DC,http://statistics.data.gov.uk/id/local-authority-district/22UN,Life Opportunities,H920 - Disabled Facilities Grants,C400 - Grant payments,25/02/2014,1057511-1,2530.41,REDACTED PERSONAL DATA,REDACTED PERSONAL DATA
Tendring DC,http://statistics.data.gov.uk/id/local-authority-district/22UN,Life Opportunities,H920 - Disabled Facilities Grants,C400 - Grant payments,25/02/2014,1057512-1,2155.54,REDACTED PERSONAL DATA,REDACTED PERSONAL DATA
Tendring DC,http://statistics.data.gov.uk/id/local-authority-district/22UN,Life Opportunities,5240 - HRA - Managing Tenancies,6625 - Tenants Compensation Scheme,18/02/2014,7011624-1,87.5,REDACTED PERSONAL DATA,REDACTED PERSONAL DATA
Tendring DC,http://statistics.data.gov.uk/id/local-authority-district/22UN,Life Opportunities,5240 - HRA - Managing Tenancies,6625 - Tenants Compensation Scheme,18/02/2014,7011625-1,87.5,REDACTED PERSONAL DATA,REDACTED PERSONAL DATA
Tendring DC,http://statistics.data.gov.uk/id/local-authority-district/22UN,Life Opportunities,6355 - Community Activity Network,4597 - Hired Services - Payments to Contractors,04/02/2014,1057369-1,650,2113604 - SBX,FOOTBALL & BASKETBALL STAFF SHOW TOUR DE TENDRING 11/5/14
Tendring DC,http://statistics.data.gov.uk/id/local-authority-district/22UN,Life Opportunities,5480 - HRA - Repair & Maintenance,2096 - Asbestos testing/removal,25/02/2014,1057460-1,180,REDACTED PERSONAL DATA,REDACTED PERSONAL DATA
Tendring DC,http://statistics.data.gov.uk/id/local-authority-district/22UN,Life Opportunities,5480 - HRA - Repair & Maintenance,2096 - Asbestos testing/removal,25/02/2014,1057460-2,150,REDACTED PERSONAL DATA,REDACTED PERSONAL DATA
